Workbook

Sheet 0.ΕΙΣΑΓΩΓΗ

Sheet 1α.ΔΕΛΤΙΟ ΔΕΔΟΜΕΝΩΝ
A1: Α/Α | B1: Δασικό είδος | C1: Συνολική έκταση (ha) | D1: ΒΕ | E1: Βαθμός εδαφο-κάλυψης (%) | F1: ΜΗ ΞΥΛΩΔΗ ΔΑΣΙΚΑ ΠΡΟΪΟΝΤΑ | J1: ΕΚΤΑΣΗ ΠΟΥ ΔΕΝ ΕΠΙΤΡΕΠΕΤΑΙ ΜΟΝΙΜΑ | L1: Μέση κλίση (%) | O1: Υψόμετρο | Q1: ΔΙΑΒΡΩΣΗ ΕΔΑΦΟΥΣ: Κατηγορίες | S1: ΔΕΣΜΕΥΣΗ ΑΝΘΡΑΚΑ ΚΑΙ ΒΙΟΠΟΙΚΙΛΟΤΗΤΑΣ: Κατηγορίες
F2: Ρη-τίνη | G2: Μανι-τάρια | H2: Μέλι | I2: Λοι-πά | J2: Βόσκηση (ha) | K2: Κυνήγι (ha) | L2: από GIS | M2: επιλογή | N2: από τύπο | O2: max | P2: min | Q2: Πετρώματος | R2: Βλάστησης | S2: Για συν/τή BEF | T2: Για συν/τη φυσικότητας | W2: Μέλι | X2: Δασικά είδη | Z2: Γεωλογικοί σχηματισμοί | AB2: Κατηγορίες συντ/τη BEF | AD2: Κατηγορίες συντ/τη φυσικότητας Ν | AG2: =IF(OR(B3="Ελάτη",B3="Ερυθρελάτη",B3="Πεύκη Χαλέπιος ή Τραχεία",B3="Πεύκη Λοιπά",B3="Αείφυλλα πλατύφυλλα"),$AI$4:$AK$4,IF(OR(B3="Οξυά",B3="Δρυς",B3="Λοιπά πλατύφυλλα"),$AI$8:$AJ$8,$AI$15:$AK$15)) -> 
A3: 1 | D3: =IF(E3="",1,VLOOKUP(E3,AB$15:AC$23,2,FALSE)) -> 1 | E3: =IF(C3>0,"90-100%","") ->  | F3: =IF(B3="",0,IF(B3="Πεύκη χαλέπιος ή τραχεία",TRUE,FALSE)) -> 0 | G3: =IF(B3="",0,NOT(OR(B3="Φρύγανα",B3="Χορτολίβαδα>800 m",B3="Χορτολίβαδα<800 m",B3="Άγονη / βραχώδης έκταση",F3=TRUE))) -> 0 | H3: =IF(B3="",0,NOT(OR(C3="Άγονη / βραχώδης έκταση"))) -> 0 | I3: ΝΑΙ | M3: =IF(L3="",IF(N3=0,0,IF(N3>90,">90%",IF(N3>60,"60-90%",IF(N3>40,"40-60%",IF(N3>25,"25-40%","0-25%"))))),L3) -> 0 | N3: =IF(C3>0,IF(L3="",(O3-P3)/C3^0.5,"Δ/Α"),0) -> 0 | Q3: =IF(B3="Άγονη / βραχώδης έκταση","Δεν απαιτείται","") ->  | R3: =IF(B3="Άγονη / βραχώδης έκταση","Επιφάνεια χωρίς φυτοκάλυψη","") ->  | S3: =IF(OR(B3="Φρύγανα",B3="Χορτολίβαδα>800 m",B3="Χορτολίβαδα<800 m",B3="Άγονη / βραχώδης έκταση"),"ΔΕΝ ΑΠΑΙΤΕΙΤΑΙ","") ->  | T3: =IF(OR(B3="Φρύγανα",B3="Χορτολίβαδα>800 m",B3="Χορτολίβαδα<800 m",B3="Άγονη / βραχώδης έκταση"),"Θάμνοι και Μεσογειακά maquis","") ->  | W3: =IF(B3="Άγονη / βραχώδης έκταση",0.3,1) -> 1 | X3: ='2.ΒΑΣΙΚΕΣ ΤΙΜΕΣ'!A6 -> Ελάτη | Z3: Σκληρά πετρώματα, ανθεκτικά στη διάβρωση | AB3: A (Δάση σφενδάμου Υγρόφιλα παρόχθια δάση Υψηλά δάση δρυός σε χαμηλά υψόμετρα Υψηλά δάση οξυάς ή σημύδας) | AD3: Φυτείες ξενικών ειδών | AH3: ΕΙΔΟΣ ΚΑΙ ΔΙΑΒΡΩΣΗ | AI3: Μικτές δασοσυστάδες και πυκνοί θαμνώνες ή δασοσυστάδες αραιές με υπόροφο | AJ3: Δασοσυστάδες κωνοφόρων με υπόροφο ασθενή ή θαμνώνες όχι σύμπυκνοι | AK3: Δασοσυστάδες και θαμνώνες υποβαθμισμένοι, λιβάδια | AL3: Λιβάδια και εδάφη καλλιεργούμενα, υποβαθμισμένα | AM3: Επιφάνεια χωρίς φυτοκάλυψη
A4: 2 | D4: =IF(E4="",1,VLOOKUP(E4,AB$15:AC$23,2,FALSE)) -> 1 | F4: =IF(B4="",0,IF(B4="Πεύκη χαλέπιος ή τραχεία",TRUE,FALSE)) -> 0 | G4: =IF(B4="",0,NOT(OR(B4="Φρύγανα",B4="Χορτολίβαδα>800 m",B4="Χορτολίβαδα<800 m",B4="Άγονη / βραχώδης έκταση",F4=TRUE))) -> 0 | H4: =IF(B4="",0,NOT(OR(C4="Άγονη / βραχώδης έκταση"))) -> 0 | M4: =IF(L4="",IF(N4=0,0,IF(N4>90,">90%",IF(N4>60,"60-90%",IF(N4>40,"40-60%",IF(N4>25,"25-40%","0-25%"))))),L4) -> 0 | N4: 0 | Q4: =IF(B4="Άγονη / βραχώδης έκταση","Δεν απαιτείται","") ->  | R4: =IF(B4="Άγονη / βραχώδης έκταση","Επιφάνεια χωρίς φυτοκάλυψη","") ->  | S4: =IF(OR(B4="Φρύγανα",B4="Χορτολίβαδα>800 m",B4="Χορτολίβαδα<800 m",B4="Άγονη / βραχώδης έκταση"),"ΔΕΝ ΑΠΑΙΤΕΙΤΑΙ","") ->  | T4: =IF(OR(B4="Φρύγανα",B4="Χορτολίβαδα>800 m",B4="Χορτολίβαδα<800 m",B4="Άγονη / βραχώδης έκταση"),"Θάμνοι και Μεσογειακά maquis","") ->  | W4: =IF(B4="Άγονη / βραχώδης έκταση",0.3,1) -> 1 | X4: ='2.ΒΑΣΙΚΕΣ ΤΙΜΕΣ'!A7 -> Ερυθρελάτη | Z4: Πετρώματα μετρίως ανθεκτικά στη διάβρωση | AB4: B (Υψηλά δάση δρυός (Q. petreae, Q.pubescens, Q.cerris) Αειθαλή υψηλά δάση δρυός) | AD4: Μονοκαλλιέργεια πρεμνοφυών δασών που διαχειρίζονται τακτικά (ηλικία μικρότερη 1.5t*) | AH4: Ελάτη | AI4: Μικτές δασοσυστάδες και πυκνοί θαμνώνες ή δασοσυστάδες αραιές με υπόροφο | AJ4: Δασοσυστάδες κωνοφόρων με υπόροφο ασθενή ή θαμνώνες όχι σύμπυκνοι | AK4: Δασοσυστάδες και θαμνώνες υποβαθμισμένοι, λιβάδια
A5: 3 | D5: 1 | F5: 0 | G5: 0 | H5: 0 | M5: 0 | N5: 0 | R5: =IF(B5="Άγονη / βραχώδης έκταση","Δεν απαιτείται","") ->  | W5: 1 | X5: Πεύκη Χαλέπιος ή Τραχεία | Z5: Εύθρυπτα πετρώματα | AB5: C (Δάση ερυθρελάτης ή ελάτης Μεικτά δάση ελάτης και ερυθρελάτης Δάση δασικής ή μαύρης πεύκης) | AD5: Μικτά πρεμνοφυή δάση που διαχειρίζονται τακτικά (ηλικία μικρότερη 1.5t*) | AH5: Ερυθρελάτη | AI5: Μικτές δασοσυστάδες και πυκνοί θαμνώνες ή δασοσυστάδες αραιές με υπόροφο | AJ5: Δασοσυστάδες κωνοφόρων με υπόροφο ασθενή ή θαμνώνες όχι σύμπυκνοι | AK5: Δασοσυστάδες και θαμνώνες υποβαθμισμένοι, λιβάδια
A6: 4 | D6: 1 | F6: 0 | G6: 0 | H6: 0 | M6: 0 | N6: 0 | W6: 1 | X6: Πεύκη λοιπά | Z6: Αποθέσεις, μορένες, άργιλοι, ψαμμόλιθοι και άλλα ανθεκτικά πετρώματα | AB6: D (Λοφώδη και επίπεδα δάση δασικής πεύκης Δάση τραχείας και λευκόδερμου πεύκης Λοφώδη δάση μαύρης πεύκης Μεσογειακά δάση πεύκης Άλλα δάση κωνοφόρων) | AD6: Θάμνοι και Μεσογειακά maquis | AH6: Πεύκη Χαλέπιος ή Τραχεία | AI6: Μικτές δασοσυστάδες και πυκνοί θαμνώνες ή δασοσυστάδες αραιές με υπόροφο | AJ6: Δασοσυστάδες κωνοφόρων με υπόροφο ασθενή ή θαμνώνες όχι σύμπυκνοι | AK6: Δασοσυστάδες και θαμνώνες υποβαθμισμένοι, λιβάδια
A7: 5 | D7: 1 | F7: 0 | G7: 0 | H7: 0 | M7: 0 | N7: 0 | W7: 1 | X7: Οξυά | Z7: Πολύ ευαίσθητα στη διάβρωση πετρώματα και εδάφη | AB7: E (Πρεμνοφυή δάση οξυάς ή καστανιάς ή γαύρου) | AD7: Σύνθετα πρεμνοφυή δάση | AH7: Πεύκη λοιπά | AI7: Μικτές δασοσυστάδες και πυκνοί θαμνώνες ή δασοσυστάδες αραιές με υπόροφο | AJ7: Δασοσυστάδες κωνοφόρων με υπόροφο ασθενή ή θαμνώνες όχι σύμπυκνοι | AK7: Δασοσυστάδες και θαμνώνες υποβαθμισμένοι, λιβάδια
A8: 6 | D8: 1 | F8: 0 | G8: 0 | H8: 0 | M8: 0 | N8: 0 | W8: 1 | X8: Δρυς | AB8: F (Πρεμνοφυή δάση δρυός (Q.petreae, Q. pubescens, Q. aegilops, Q. frainetto, Q. trojana) Πρεμνοφυή δάση οστριάς Πρεμνοφυή αειθαλή δάση δρυός) | AD8: Πρεμνοφυή δάση υπό αναγωγή σε υψηλά δάση | AH8: Οξυά | AI8: Μικτές δασοσυστάδες και πυκνοί θαμνώνες ή δασοσυστάδες αραιές με υπόροφο | AJ8: Δασοσυστάδες και θαμνώνες υποβαθμισμένοι, λιβάδια
A9: 7 | D9: 1 | F9: 0 | G9: 0 | H9: 0 | M9: 0 | N9: 0 | W9: 1 | X9: Λοιπά πλατύφυλλα | Z9: Κατηγορίες βλάστησης | AB9: G (Μεσογειακά δάση αειφύλλων πλατυφύλλων) | AD9: Μονοκαλλιέργεια υψηλών δασών | AH9: Δρυς | AI9: Μικτές δασοσυστάδες και πυκνοί θαμνώνες ή δασοσυστάδες αραιές με υπόροφο | AJ9: Δασοσυστάδες και θαμνώνες υποβαθμισμένοι, λιβάδια
A10: 8 | D10: 1 | F10: 0 | G10: 0 | H10: 0 | M10: 0 | N10: 0 | W10: 1 | X10: Αείφυλλα πλατύφυλλα | Z10: Μικτές δασοσυστάδες και πυκνοί θαμνώνες ή δασοσυστάδες αραιές με υπόροφο | AB10: H (Δάση πλατύφυλλων με μέσο ύψος <3,5 m) | AD10: Μεικτά υψηλά δάση | AH10: Λοιπά πλατύφυλλα | AI10: Μικτές δασοσυστάδες και πυκνοί θαμνώνες ή δασοσυστάδες αραιές με υπόροφο | AJ10: Δασοσυστάδες και θαμνώνες υποβαθμισμένοι, λιβάδια
A11: 9 | D11: 1 | F11: 0 | G11: 0 | H11: 0 | M11: 0 | N11: 0 | W11: 1 | X11: Φρύγανα | Z11: Δασοσυστάδες κωνοφόρων με υπόροφο ασθενή ή θαμνώνες όχι σύμπυκνοι | AB11: I (Δάση κωνοφόρων με μέσο ύψος <3,5 m) | AD11: Αναδασώσεις στη φάση μετατροπής σε φυσικό δάσος | AH11: Αείφυλλα πλατύφυλλα | AI11: Μικτές δασοσυστάδες και πυκνοί θαμνώνες ή δασοσυστάδες αραιές με υπόροφο | AJ11: Δασοσυστάδες κωνοφόρων με υπόροφο ασθενή ή θαμνώνες όχι σύμπυκνοι | AK11: Δασοσυστάδες και θαμνώνες υποβαθμισμένοι, λιβάδια
A12: 10 | D12: 1 | F12: 0 | G12: 0 | H12: 0 | M12: 0 | N12: 0 | W12: 1 | X12: Χορτολίβαδα>800 m | Z12: Δασοσυστάδες και θαμνώνες υποβαθμισμένοι, λιβάδια | AB12: Άλλο | AD12: Πολυώροφα μεικτά υψηλά δάση και παρόχθια δάση | AH12: Φρύγανα | AI12: Δασοσυστάδες και θαμνώνες υποβαθμισμένοι, λιβάδια | AJ12: Λιβάδια και εδάφη καλλιεργούμενα, υποβαθμισμένα
A13: 11 | D13: 1 | F13: 0 | G13: 0 | H13: 0 | M13: 0 | N13: 0 | W13: 1 | X13: Χορτολίβαδα<800 m | Z13: Λιβάδια και εδάφη καλλιεργούμενα, υποβαθμισμένα | AD13: Παρθένα ή αρχέγονα δάση | AH13: Χορτολίβαδα>800 m | AI13: Δασοσυστάδες και θαμνώνες υποβαθμισμένοι, λιβάδια | AJ13: Λιβάδια και εδάφη καλλιεργούμενα, υποβαθμισμένα
A14: 12 | D14: 1 | F14: 0 | G14: 0 | H14: 0 | M14: 0 | N14: 0 | W14: 1 | X14: Άγονη / βραχώδης έκταση | Z14: Επιφάνεια χωρίς φυτοκάλυψη | AB14: Β.Ε | AD14: Άλλο | AH14: Χορτολίβαδα<800 m | AI14: Δασοσυστάδες και θαμνώνες υποβαθμισμένοι, λιβάδια | AJ14: Λιβάδια και εδάφη καλλιεργούμενα, υποβαθμισμένα
A15: 13 | D15: 1 | F15: 0 | G15: 0 | H15: 0 | M15: 0 | N15: 0 | W15: 1 | AB15: 90-100% | AC15: 1 | AH15: Άγονη / βραχώδης έκταση | AI15: Δασοσυστάδες και θαμνώνες υποβαθμισμένοι, λιβάδια | AJ15: Λιβάδια και εδάφη καλλιεργούμενα, υποβαθμισμένα | AK15: Επιφάνεια χωρίς φυτοκάλυψη
A16: 14 | D16: 1 | F16: 0 | G16: 0 | H16: 0 | M16: 0 | N16: 0 | W16: 1 | X16: Κατηγορίες κλίσεων | Z16: ΝΑΙ | AB16: 80-90% | AC16: 0.9 | AG16: =IF(OR(B3="Ελάτη",B3="Ερυθρελάτη"),$AI$18:$AJ$18,IF(B3="Πεύκη Χαλέπιος ή Τραχεία",$AI$20:$AJ$20,IF(B3="Πεύκη Λοιπά",$AI$21:$AK$21,IF(B3="Οξυά",$AI$22:$AK$22,IF(B3="Δρυς",$AI$23:$AL$23,IF(B3="Λοιπά πλατύφυλλα",$AI$24:$AL$24,IF(B3="Αείφυλλα πλατύφυλλα",$AI$25,$AI$17:$AR$17))))))) ->  | AH16: =IF(OR(B3="Ελάτη",B3="Ερυθρελάτη"),$AI$18:$AJ$18,IF(B3="Πεύκη Χαλέπιος ή Τραχεία",$AI$20:$AJ$20,IF(B3="Πεύκη Λοιπά",$AI$21:$AK$21,IF(B3="Οξυά",$AI$22:$AK$22,IF(B3="Δρυς",$AI$23:$AL$23,IF(B3="Αείφυλλα πλατύφυλλα",$AI$25,$AI$17:$AR$17)))))) -> 
A17: 15 | D17: 1 | F17: 0 | G17: 0 | H17: 0 | M17: 0 | N17: 0 | W17: 1 | X17: 0-25% | Z17: ΌΧΙ | AB17: 70-80% | AC17: 0.8 | AH17: ΕΙΔΟΣ ΚΑΙ BEF | AI17: A (Δάση σφενδάμου Υγρόφιλα παρόχθια δάση Υψηλά δάση δρυός σε χαμηλά υψόμετρα Υψηλά δάση οξυάς ή σημύδας) | AJ17: B (Υψηλά δάση δρυός (Q. petreae, Q.pubescens, Q.cerris) Αειθαλή υψηλά δάση δρυός) | AK17: C (Δάση ερυθρελάτης ή ελάτης Μεικτά δάση ελάτης και ερυθρελάτης Δάση δασικής ή μαύρης πεύκης) | AL17: D (Λοφώδη και επίπεδα δάση δασικής πεύκης Δάση τραχείας και λευκόδερμου πεύκης Λοφώδη δάση μαύρης πεύκης Μεσογειακά δάση πεύκης Άλλα δάση κωνοφόρων) | AM17: E (Πρεμνοφυή δάση οξυάς ή καστανιάς ή γαύρου) | AN17: F (Πρεμνοφυή δάση δρυός (Q.petreae, Q. pubescens, Q. aegilops, Q. frainetto, Q. trojana) Πρεμνοφυή δάση οστριάς Πρεμνοφυή αειθαλή δάση δρυός) | AO17: G (Μεσογειακά δάση αειφύλλων πλατυφύλλων) | AP17: H (Δάση πλατύφυλλων με μέσο ύψος <3,5 m) | AQ17: I (Δάση κωνοφόρων με μέσο ύψος <3,5 m) | AR17: Άλλο
A18: 16 | D18: 1 | F18: 0 | G18: 0 | H18: 0 | M18: 0 | N18: 0 | W18: 1 | X18: 25-40% | AB18: 60-70% | AC18: 0.7 | AH18: Ελάτη | AI18: C (Δάση ερυθρελάτης ή ελάτης Μεικτά δάση ελάτης και ερυθρελάτης Δάση δασικής ή μαύρης πεύκης) | AJ18: I (Δάση κωνοφόρων με μέσο ύψος <3,5 m)
A19: 17 | D19: 1 | F19: 0 | G19: 0 | H19: 0 | M19: 0 | N19: 0 | W19: 1 | X19: 40-60% | AB19: 50-60% | AC19: 0.6 | AH19: Ερυθρελάτη | AI19: C (Δάση ερυθρελάτης ή ελάτης Μεικτά δάση ελάτης και ερυθρελάτης Δάση δασικής ή μαύρης πεύκης) | AJ19: I (Δάση κωνοφόρων με μέσο ύψος <3,5 m)
A20: 18 | D20: 1 | F20: 0 | G20: 0 | H20: 0 | M20: 0 | N20: 0 | W20: 1 | X20: 60-90% | AB20: 40-50% | AC20: 0.5 | AH20: Πεύκη Χαλέπιος ή Τραχεία | AI20: D (Λοφώδη και επίπεδα δάση δασικής πεύκης Δάση τραχείας και λευκόδερμου πεύκης Λοφώδη δάση μαύρης πεύκης Μεσογειακά δάση πεύκης Άλλα δάση κωνοφόρων) | AJ20: I (Δάση κωνοφόρων με μέσο ύψος <3,5 m)
A21: 19 | D21: 1 | F21: 0 | G21: 0 | H21: 0 | M21: 0 | N21: 0 | W21: 1 | X21: >90% | AB21: 30-40% | AC21: 0.4 | AH21: Πεύκη λοιπά | AI21: C (Δάση ερυθρελάτης ή ελάτης Μεικτά δάση ελάτης και ερυθρελάτης Δάση δασικής ή μαύρης πεύκης) | AJ21: D (Λοφώδη και επίπεδα δάση δασικής πεύκης Δάση τραχείας και λευκόδερμου πεύκης Λοφώδη δάση μαύρης πεύκης Μεσογειακά δάση πεύκης Άλλα δάση κωνοφόρων) | AK21: I (Δάση κωνοφόρων με μέσο ύψος <3,5 m)
A22: 20 | D22: 1 | F22: 0 | G22: 0 | H22: 0 | M22: 0 | N22: 0 | W22: 1 | AB22: 20-30% | AC22: 0.3 | AH22: Οξυά | AI22: A (Δάση σφενδάμου Υγρόφιλα παρόχθια δάση Υψηλά δάση δρυός σε χαμηλά υψόμετρα Υψηλά δάση οξυάς ή σημύδας) | AJ22: E (Πρεμνοφυή δάση οξυάς ή καστανιάς ή γαύρου) | AK22: H (Δάση πλατύφυλλων με μέσο ύψος <3,5 m)
C23: =SUM(C3:C22) -> 0 | S23: ΑΠΟΤΕΛΕΣΜΑΤΑ | AB23: 10-20% | AC23: 0.2 | AH23: Δρυς | AI23: A (Δάση σφενδάμου Υγρόφιλα παρόχθια δάση Υψηλά δάση δρυός σε χαμηλά υψόμετρα Υψηλά δάση οξυάς ή σημύδας) | AJ23: B (Υψηλά δάση δρυός (Q. petreae, Q.pubescens, Q.cerris) Αειθαλή υψηλά δάση δρυός) | AK23: F (Πρεμνοφυή δάση δρυός (Q.petreae, Q. pubescens, Q. aegilops, Q. frainetto, Q. trojana) Πρεμνοφυή δάση οστριάς Πρεμνοφυή αειθαλή δάση δρυός) | AL23: H (Δάση πλατύφυλλων με μέσο ύψος <3,5 m)
AH24: Λοιπά πλατύφυλλα | AI24: A (Δάση σφενδάμου Υγρόφιλα παρόχθια δάση Υψηλά δάση δρυός σε χαμηλά υψόμετρα Υψηλά δάση οξυάς ή σημύδας) | AJ24: E (Πρεμνοφυή δάση οξυάς ή καστανιάς ή γαύρου) | AK24: F (Πρεμνοφυή δάση δρυός (Q.petreae, Q. pubescens, Q. aegilops, Q. frainetto, Q. trojana) Πρεμνοφυή δάση οστριάς Πρεμνοφυή αειθαλή δάση δρυός) | AL24: H (Δάση πλατύφυλλων με μέσο ύψος <3,5 m)
AH25: Αείφυλλα πλατύφυλλα | AI25: G (Μεσογειακά δάση αειφύλλων πλατυφύλλων)
AH26: Φρύγανα
AH27: Χορτολίβαδα>800 m
AH28: Χορτολίβαδα<800 m
AH29: Άγονη / βραχώδης έκταση
AG30: =IF(OR(B3="Ελάτη",B3="Ερυθρελάτη",B3="Πεύκη Χαλέπιος ή Τραχεία",B3="Πεύκη Λοιπά"),$AI$32:$AM$32,IF(OR(B3="Οξυά",B3="Δρυς",B3="Λοιπά πλατύφυλλα"),$AI$36:$AO$36,IF(B3="Αείφυλλα πλατύφυλλα",$AI$39:$AJ$39,$AI$31:$AS$31))) -> 
AH31: ΕΙΔΟΣ ΚΑΙ Ν | AI31: Φυτείες ξενικών ειδών | AJ31: Μονοκαλλιέργεια πρεμνοφυών δασών που διαχειρίζονται τακτικά (ηλικία μικρότερη 1.5t*) | AK31: Μικτά πρεμνοφυή δάση που διαχειρίζονται τακτικά (ηλικία μικρότερη 1.5t*) | AL31: Θάμνοι και Μεσογειακά maquis | AM31: Σύνθετα πρεμνοφυή δάση | AN31: Πρεμνοφυή δάση υπό αναγωγή σε υψηλά δάση | AO31: Μονοκαλλιέργεια υψηλών δασών | AP31: Μεικτά υψηλά δάση | AQ31: Αναδασώσεις στη φάση μετατροπής σε φυσικό δάσος | AR31: Πολυώροφα μεικτά υψηλά δάση και παρόχθια δάση | AS31: Παρθένα ή αρχέγονα δάση | AT31: Άλλο
AH32: Ελάτη | AI32: Μονοκαλλιέργεια υψηλών δασών | AJ32: Μεικτά υψηλά δάση | AK32: Αναδασώσεις στη φάση μετατροπής σε φυσικό δάσος | AL32: Πολυώροφα μεικτά υψηλά δάση και παρόχθια δάση | AM32: Παρθένα ή αρχέγονα δάση
AH33: Ερυθρελάτη | AI33: Μονοκαλλιέργεια υψηλών δασών | AJ33: Μεικτά υψηλά δάση | AK33: Αναδασώσεις στη φάση μετατροπής σε φυσικό δάσος | AL33: Πολυώροφα μεικτά υψηλά δάση και παρόχθια δάση | AM33: Παρθένα ή αρχέγονα δάση
AH34: Πεύκη Χαλέπιος ή Τραχεία | AI34: Μονοκαλλιέργεια υψηλών δασών | AJ34: Μεικτά υψηλά δάση | AK34: Αναδασώσεις στη φάση μετατροπής σε φυσικό δάσος | AL34: Πολυώροφα μεικτά υψηλά δάση και παρόχθια δάση | AM34: Παρθένα ή αρχέγονα δάση
AH35: Πεύκη λοιπά | AI35: Μονοκαλλιέργεια υψηλών δασών | AJ35: Μεικτά υψηλά δάση | AK35: Αναδασώσεις στη φάση μετατροπής σε φυσικό δάσος | AL35: Πολυώροφα μεικτά υψηλά δάση και παρόχθια δάση | AM35: Παρθένα ή αρχέγονα δάση
AH36: Οξυά | AI36: Μονοκαλλιέργεια πρεμνοφυών δασών που διαχειρίζονται τακτικά (ηλικία μικρότερη 1.5t*) | AJ36: Μικτά πρεμνοφυή δάση που διαχειρίζονται τακτικά (ηλικία μικρότερη 1.5t*) | AK36: Σύνθετα πρεμνοφυή δάση | AL36: Πρεμνοφυή δάση υπό αναγωγή σε υψηλά δάση | AM36: Μεικτά υψηλά δάση | AN36: Πολυώροφα μεικτά υψηλά δάση και παρόχθια δάση | AO36: Παρθένα ή αρχέγονα δάση
AH37: Δρυς | AI37: Μονοκαλλιέργεια πρεμνοφυών δασών που διαχειρίζονται τακτικά (ηλικία μικρότερη 1.5t*) | AJ37: Μικτά πρεμνοφυή δάση που διαχειρίζονται τακτικά (ηλικία μικρότερη 1.5t*) | AK37: Σύνθετα πρεμνοφυή δάση | AL37: Πρεμνοφυή δάση υπό αναγωγή σε υψηλά δάση | AM37: Μεικτά υψηλά δάση | AN37: Πολυώροφα μεικτά υψηλά δάση και παρόχθια δάση | AO37: Παρθένα ή αρχέγονα δάση
AH38: Λοιπά πλατύφυλλα | AI38: Μονοκαλλιέργεια πρεμνοφυών δασών που διαχειρίζονται τακτικά (ηλικία μικρότερη 1.5t*) | AJ38: Μικτά πρεμνοφυή δάση που διαχειρίζονται τακτικά (ηλικία μικρότερη 1.5t*) | AK38: Σύνθετα πρεμνοφυή δάση | AL38: Μεικτά υψηλά δάση | AM38: Πολυώροφα μεικτά υψηλά δάση και παρόχθια δάση | AN38: Παρθένα ή αρχέγονα δάση
AH39: Αείφυλλα πλατύφυλλα | AI39: Θάμνοι και Μεσογειακά maquis | AJ39: Παρθένα ή αρχέγονα δάση
AH40: Φρύγανα | AI40: Άλλο
AH41: Χορτολίβαδα>800 m | AI41: Άλλο
AH42: Χορτολίβαδα<800 m | AI42: Άλλο
AH43: Άγονη / βραχώδης έκταση | AI43: Άλλο

Sheet 1β.ΜΞΔΠ
A1: ΔΕΛΤΙΟ ΚΑΤΑΓΡΑΦΗΣ ΛΟΙΠΩΝ ΜΗ ΞΥΛΩΔΩΝ ΔΑΣΙΚΩΝ ΠΡΟΪΟΝΤΩΝ | L1: ΕΙΔΟΣ | M1: ΜΟΝΑΔΑ | N1: ΠΟΣΟΤΗΤΑ (ΜΕΣΟΣ ΕΤΗΣΙΟΣ) | O1: ΤΙΜΗ | P1: ΑΞΙΑ
A2: Προϊόν | B2: μ/μ | C2: Ποσότητα | D2: Τιμή | E2: Έκταση | F2: Αξία | G2: Παρατηρήσεις | O2: €/μονάδα | P2: €
C3: ανά ha | D3: € ανά μ/μ | E3: ha | F3: € | K3: ='1α.ΔΕΛΤΙΟ ΔΕΔΟΜΕΝΩΝ'!C23 -> 0 | L3: αγριοτριανταφυλλιάς καρποί | M3: kgr. | N3: 41.67 | O3: 0.64 | P3: 26.57
B4: =IF(A4="","",VLOOKUP(A4,L:M,2,FALSE)) ->  | D4: =IF(A4="",0,VLOOKUP(A4,L:O,4,FALSE)) -> 0 | F4: =C4*D4*E4 -> 0 | G4: =IF(F4=0,"",IF(F4/E4>500,"ΠΡΟΣΟΧΗ! Υπερβολικά υψηλή τιμή","")) ->  | L4: άνθη φιλύρας | M4: kgr. | N4: 1.75 | O4: 4.2 | P4: 7.35
B5: =IF(A5="","",VLOOKUP(A5,L:M,2,FALSE)) ->  | D5: =IF(A5="",0,VLOOKUP(A5,L:O,4,FALSE)) -> 0 | F5: =C5*D5*E5 -> 0 | G5: =IF(F5=0,"",IF(F5/E5>500,"ΠΡΟΣΟΧΗ! Υπερβολικά υψηλή τιμή","")) ->  | L5: βελανίδια | M5: kgr.
D6: 0 | F6: 0 | G6: =IF(F6=0,"",IF(F6/E6>500,"ΠΡΟΣΟΧΗ! Υπερβολικά υψηλή τιμή","")) ->  | L6: δαδί | M6: kgr. | N6: 11622.67 | O6: 0.16 | P6: 1859.5
D7: 0 | F7: 0 | L7: δαφνόφυλλα | M7: kgr. | N7: 150 | O7: 0.18 | P7: 27
D8: 0 | F8: 0 | L8: Ιξός | M8: kgr. | N8: 241.83 | O8: 0.11 | P8: 26.56
D9: 0 | F9: 0 | L9: καλδοι μυρτιάς- κουμαριάς | M9: kgr. | N9: 4650 | O9: 0.1 | P9: 465
D10: 0 | F10: 0 | L10: Καλλωπιστικοί κλώνοι ελάτης | M10: kgr. | N10: 300 | O10: 0.04 | P10: 12
D11: 0 | F11: 0 | L11: καπνόβεργες καστανιάς | M11: kgr. | N11: 350 | O11: 0.23 | P11: 80.5
D12: 0 | F12: 0 | L12: καρποί βατομουριάς | M12: kgr. | N12: 10 | O12: 0.64 | P12: 6.4
D13: 0 | F13: 0 | L13: καρποί κορομηλιάς | M13: kgr. | N13: 1.67 | O13: 0.64 | P13: 1.76
D14: 0 | F14: 0 | L14: καρποί μυρτιάς | M14: kgr. | N14: 33.33 | O14: 0.64 | P14: 21.33
D15: 0 | F15: 0 | L15: καρπούς κρανιάς | M15: kgr. | N15: 185 | O15: 0.64 | P15: 118.4
D16: 0 | F16: 0 | L16: καστανόχωμα | M16: kgr. | N16: 200 | O16: 0.29 | P16: 58
D17: 0 | F17: 0 | L17: κλάδοι αρκουδοπούρναρου | M17: kgr. | N17: 3743.67 | O17: 0.21 | P17: 786.17
D18: 0 | F18: 0 | L18: κλάδοι πυξού | M18: kgr. | N18: 800 | O18: 0.1 | P18: 80
D19: 0 | F19: 0 | L19: κλαδοι σχινου | M19: kgr. | N19: 83.33 | O19: 0.1 | P19: 9.34
D20: 0 | F20: 0 | L20: κλώνοι ελάτης | M20: kgr. | N20: 4825.17 | O20: 0.16 | P20: 772.32
A21: ΛΟΙΠΑ (Περιγράψτε) | F21: 0 | L21: λαδανιά (cistus incanus) | M21: kgr. | N21: 2666.67 | O21: 0.44 | P21: 1173.33
F22: 0 | G22: =IF(F22=0,"",IF(F22/E22>500,"ΠΡΟΣΟΧΗ! Υπερβολικά υψηλή τιμή","")) ->  | L22: μέντα | M22: kgr. | N22: 52.75 | O22: 0.44 | P22: 33.21
F23: 0 | G23: =IF(F23=0,"",IF(F23/E23>500,"ΠΡΟΣΟΧΗ! Υπερβολικά υψηλή τιμή","")) ->  | L23: μύκητες | M23: kgr. | N23: 100 | O23: 0.78 | P23: 78
F24: 0 | L24: ξυλάνθρακες | M24: kgr. | N24: 239685.33 | O24: 0.39 | P24: 93477
A25: ΣΥΝΟΛΟ | F25: =SUM(F4:F24) -> 0 | L25: ριγανη | M25: kgr. | N25: 201.67 | O25: 0.44 | P25: 88.73
L26: ρίζες ερείκης | M26: kgr. | N26: 17833.33 | O26: 0.27 | P26: 4814.99
A27: ΜΕΤΑΦΟΡΑ ΑΠΌ ΔΕΛΤΙΟ ΔΕΔΟΜΕΝΩΝ | L27: σπαθόχορτο | M27: kgr. | N27: 41.17 | O27: 0.44 | P27: 18.11
A28: ='1α.ΔΕΛΤΙΟ ΔΕΔΟΜΕΝΩΝ'!F2 -> Ρη-τίνη | B28: ='2.ΒΑΣΙΚΕΣ ΤΙΜΕΣ'!B22 -> Kg | C28: ='2.ΒΑΣΙΚΕΣ ΤΙΜΕΣ'!C22 -> 161 | D28: ='2.ΒΑΣΙΚΕΣ ΤΙΜΕΣ'!D22 -> 0.16 | G28: ΕΠΙΣΤΡΟΦΗ ΣΤΟ ΔΕΛΤΙΟ ΔΕΔΟΜΕΝΩΝ | L28: σπόροι κουκουναριάς | M28: kgr. | O28: 15
A29: Μανιτάρια | B29: ='2.ΒΑΣΙΚΕΣ ΤΙΜΕΣ'!B25 -> Kg | C29: ='2.ΒΑΣΙΚΕΣ ΤΙΜΕΣ'!C25 -> 1 | D29: ='2.ΒΑΣΙΚΕΣ ΤΙΜΕΣ'!D25 -> 1.5 | G29: ΜΕΤΑΒΑΣΗ ΣΤΟ ΦΥΛΛΟ ΑΠΟΤΕΛΕΣΜΑΤΩΝ | L29: τσάι βουνού | M29: kgr. | N29: 305 | O29: 0.44 | P29: 134.2
A30: Μέλι | B30: ='2.ΒΑΣΙΚΕΣ ΤΙΜΕΣ'!B27 -> Kg | C30: ='2.ΒΑΣΙΚΕΣ ΤΙΜΕΣ'!C27 -> 1.59 | D30: ='2.ΒΑΣΙΚΕΣ ΤΙΜΕΣ'!D27 -> 6.44 | L30: φασκόμηλο | M30: kgr. | N30: 1.67 | O30: 0.44 | P30: 0.73
L31: φλαμούρι | M31: kgr. | N31: 1.67 | O31: 0.44 | P31: 0.73
L32: φλοιός μαύρης πεύκης | M32: kgr. | N32: 1620 | O32: 0.18 | P32: 391.6
L33: φτέρη | M33: kgr. | N33: 16.67 | O33: 0.12 | P33: 2.7
L34: φυλλόχωμα | M34: kgr. | N34: 1000 | O34: 0.29 | P34: 290
L35: Χριστ. δέντρα ψευδοτσούγκας | M35: τεμ. | N35: 109 | O35: 12.24 | P35: 1334.2
L36: Χριστ. δέντρα κυπαρίσσου | M36: τεμ. | N36: 1246 | O36: 4.2 | P36: 5333.2
L37: Χριστ. δέντρα μαύρη πεύκης | M37: τεμ. | N37: 127 | O37: 4.2 | P37: 533.4
L38: Χριστ. δέντρα ελάτης | M38: τεμ. | N38: 50613 | O38: 12.24 | P38: 619503

Sheet 2.ΒΑΣΙΚΕΣ ΤΙΜΕΣ
A1: 2. ΒΑΣΙΚΕΣ ΤΙΜΕΣ
A3: 2.1 ΠΑΡΑΓΩΓΗ ΞΥΛΕΙΑΣ
A4: Δασοπονικό είδος | B4: MAI (m3/ha/yr) | E4: Μέση περίτροπη προσαύξηση (Πίνακες Παραγωγής) (p=0,7) | K4: Τιμή πρέμνου (€/m3)
B5: Απογρ. Δασών (1992) | C5: Επεξεργ. Στοιχείων Δασ.Υπηρ. | D5: Τιμές χρήστη | E5: ΠΤ Ι | F5: ΠΤ ΙΙ | G5: ΠΤ ΙΙΙ | H5: ΠΤ ΙV | I5: ΠΤ V | J5: Παρατηρήσεις
A6: Ελάτη | B6: 1.74 | C6: 5.2 | D6: =C6 -> 5.2 | J6: Διαχ/κή μελέτη ΠΔ Περτουλίου 4,48 m3/ha | K6: 20.39
A7: Ερυθρελάτη | B7: 17.54 | C7: 8.5 | D7: 8.5 | E7: 16.64 | F7: =(E7+G7)/2 -> 13.705 | G7: 10.77 | H7: =(G7+I7)/2 -> 7.825 | I7: 4.88 | J7: Γκατζογιάννης, 1999 (u=80) | K7: 30.96
A8: Πεύκη | B8: 1.33 | C8: 5.87 | D8: =C8 -> 5.87 | E8: 15.3 | F8: 11.9 | G8: 8.9 | H8: 6.3 | I8: 3.9 | J8: Μ.Πεύκη Γράμμου, u=80 | K8: 10.97
A9: Οξυά | B9: 2.8 | C9: 6.3 | D9: 6.3 | E9: 8.3 | F9: 6.3 | G9: 4.5 | H9: 2.8 | I9: 1.2 | J9: Οξυά Αρναίας υπό αναγωγή, u=80 | K9: 14.13
A10: Δρυς | B10: 0.48 | C10: 2.62 | D10: 2.62 | E10: 3.86 | F10: 3.21 | G10: 2.53 | H10: 1.83 | I10: 1.23 | J10: Πίν.Παραγ. Κοσσενάκη (για πρεμνοφυή) (u=20) | K10: 13.24
A11: Λοιπά πλατύφυλλα | B11: 2.27 | C11: 2.06 | D11: 2.06 | K11: 12.81
A12: Αείφυλλα πλατύφυλλα | C12: 0.3 | D12: 0.3 | K12: 2.35
A13: Πεύκη Χαλέπιος ή Τραχεία | D13: =D8 -> 5.87 | K13: =K8 -> 10.97
A14: Πεύκη λοιπά | D14: =D8 -> 5.87 | K14: =K13 -> 10.97
A15: Φρύγανα | D15: 0 | K15: 0
A16: Χορτολίβαδα>800 m | D16: 0 | K16: 0
A17: Χορτολίβαδα<800 m | D17: 0 | K17: 0
A18: Άγονη / βραχώδης έκταση | D18: 0 | K18: 0
A20: 2.2 ΜΗ ΞΥΛΩΔΗ ΔΑΣΙΚΑ ΠΡΟΪΟΝΤΑ
A21: Περιγραφή | B21: Μ/Μ | C21: μονάδ. / ha | D21: € / μονάδ. | E21: Παρατηρήσεις | J21: ΤΙΜΕΣ ΜΕ ΔΥΝΑΤΟΤΗΤΑ ΕΠΙΛΟΓΗΣ ΑΠΌ ΧΡΗΣΤΗ
A22: Ρητίνη | B22: Kg | C22: 161 | D22: 0.16
A23: Χριστουγεννιάτικα δένδρα | B23: τεμάχιο | C23: 10 | D23: 12.24 | J23: ΤΙΜΕΣ ΑΝΑΘΕΩΡΟΥΜΕΝΕΣ ΠΕΡΙΟΔΙΚΑ | K23: ΑΠΑΙΤΕΙΤΑΙ Η ΧΡΗΣΗ ΚΩΔΙΚΟΥ ΠΡΟΣΒΑΣΗΣ
A24: Κώνοι κουκουναριάς | B24: Kg | C24: 337.5 | D24: 15
A25: Μανιτάρια κοινά | B25: Kg | C25: 1 | D25: 1.5
A26: Μανιτάρια (τρούφα) | B26: Kg | C26: 1 | D26: 35
A27: Μέλι | B27: Kg | C27: 1.59 | D27: 6.44
A28: Βελανίδια
A29: Ρίζες ερείκης | B29: Kg | D29: 0.27
A30: Άλλα ΜΞΔΠ
A34: 2.3-2.4-2.5 ΒΟΣΚΗΣΗ - ΚΥΝΗΓΙ - ΑΝΑΨΥΧΗ (ετήσιες πρόσοδοι σε ευρώ/ha)
A35: Κατηγορία βλάστησης | B35: Βόσκηση | C35: Αναψυχή | D35: Κυνήγι | E35: Παρατηρήσεις
A36: Υψηλά δάση | B36: 45 | C36: 94.3 | D36: 1.57 | E36: 0,68 συντ/της για υψηλά δάση
A37: Αείφυλλα πλατύφυλλα | B37: 82.5 | C37: 75.4
A38: Φρυγανικά οικοσυστήματα | B38: 80 | C38: 66
A39: Χορτολιβαδικές εκτάσεις | B39: 125 | C39: 47.2
A40: Ελάτη | B40: =B36*0.68 -> 30.6 | C40: =C36 -> 94.3
A41: Ερυθρελάτη | B41: =B40 -> 30.6 | C41: =C40 -> 94.3
A42: Πεύκη | B42: =B41 -> 30.6 | C42: =C41 -> 94.3
A43: Οξυά | B43: 30.6 | C43: 94.3
A44: Δρυς | B44: 30.6 | C44: 94.3
A45: Λοιπά πλατύφυλλα | B45: 30.6 | C45: 94.3
A46: Πεύκη Χαλέπιος ή Τραχεία | B46: 30.6 | C46: 94.3
A47: Πεύκη λοιπά | B47: 30.6 | C47: 94.3
A48: Φρύγανα | B48: =B38 -> 80 | C48: =C38 -> 66
A49: Χορτολίβαδα>800 m | B49: =B39 -> 125 | C49: =C39 -> 47.2
A50: Χορτολίβαδα<800 m | B50: =B49 -> 125 | C50: =C49 -> 47.2
A51: Άγονη / βραχώδης έκταση | B51: =0.3*B38 -> 24 | C51: =C38 -> 66
A53: 2.6 ΠΡΟΣΤΑΣΙΑ ΤΟΥ ΕΔΑΦΟΥΣ
A54: Τιμή εδάφους (€/m3) | B54: 6 | C54: ΑΤΑΕ 2012Γ
A55: Τιμές S: Πετρώματα / κατηγορίες βλάστησης | B55: Α | C55: Β | D55: Γ | E55: Δ | F55: Ε
A56: Σκληρά πετρώματα, ανθεκτικά στη διάβρωση | B56: =IF($F$54<25,'5.ΥΠΟΛΟΓΙΣΜΟΙ'!B6,IF($F$54<40,'5.ΥΠΟΛΟΓΙΣΜΟΙ'!B7,IF($F$54<60,'5.ΥΠΟΛΟΓΙΣΜΟΙ'!B8,IF($F$54<90,'5.ΥΠΟΛΟΓΙΣΜΟΙ'!B9,'5.ΥΠΟΛΟΓΙΣΜΟΙ'!B10)))) -> 3.16 | C56: =IF($F$54<25,'5.ΥΠΟΛΟΓΙΣΜΟΙ'!C6,IF($F$54<40,'5.ΥΠΟΛΟΓΙΣΜΟΙ'!C7,IF($F$54<60,'5.ΥΠΟΛΟΓΙΣΜΟΙ'!C8,IF($F$54<90,'5.ΥΠΟΛΟΓΙΣΜΟΙ'!C9,'5.ΥΠΟΛΟΓΙΣΜΟΙ'!C10)))) -> 2.93 | D56: =IF($F$54<25,'5.ΥΠΟΛΟΓΙΣΜΟΙ'!D6,IF($F$54<40,'5.ΥΠΟΛΟΓΙΣΜΟΙ'!D7,IF($F$54<60,'5.ΥΠΟΛΟΓΙΣΜΟΙ'!D8,IF($F$54<90,'5.ΥΠΟΛΟΓΙΣΜΟΙ'!D9,'5.ΥΠΟΛΟΓΙΣΜΟΙ'!D10)))) -> 2.44 | E56: =IF($F$54<25,'5.ΥΠΟΛΟΓΙΣΜΟΙ'!E6,IF($F$54<40,'5.ΥΠΟΛΟΓΙΣΜΟΙ'!E7,IF($F$54<60,'5.ΥΠΟΛΟΓΙΣΜΟΙ'!E8,IF($F$54<90,'5.ΥΠΟΛΟΓΙΣΜΟΙ'!E9,'5.ΥΠΟΛΟΓΙΣΜΟΙ'!E10)))) -> 1.31 | F56: =IF($F$54<25,'5.ΥΠΟΛΟΓΙΣΜΟΙ'!F6,IF($F$54<40,'5.ΥΠΟΛΟΓΙΣΜΟΙ'!F7,IF($F$54<60,'5.ΥΠΟΛΟΓΙΣΜΟΙ'!F8,IF($F$54<90,'5.ΥΠΟΛΟΓΙΣΜΟΙ'!F9,'5.ΥΠΟΛΟΓΙΣΜΟΙ'!F10)))) -> 0
A57: Πετρώματα μετρίως ανθεκτικά στη διάβρωση | B57: =IF($F$54<25,'5.ΥΠΟΛΟΓΙΣΜΟΙ'!B13,IF($F$54<40,'5.ΥΠΟΛΟΓΙΣΜΟΙ'!B14,IF($F$54<60,'5.ΥΠΟΛΟΓΙΣΜΟΙ'!B15,IF($F$54<90,'5.ΥΠΟΛΟΓΙΣΜΟΙ'!B16,'5.ΥΠΟΛΟΓΙΣΜΟΙ'!B11)))) -> 8.93 | C57: =IF($F$54<25,'5.ΥΠΟΛΟΓΙΣΜΟΙ'!C13,IF($F$54<40,'5.ΥΠΟΛΟΓΙΣΜΟΙ'!C14,IF($F$54<60,'5.ΥΠΟΛΟΓΙΣΜΟΙ'!C15,IF($F$54<90,'5.ΥΠΟΛΟΓΙΣΜΟΙ'!C16,'5.ΥΠΟΛΟΓΙΣΜΟΙ'!C11)))) -> 8.29 | D57: =IF($F$54<25,'5.ΥΠΟΛΟΓΙΣΜΟΙ'!D13,IF($F$54<40,'5.ΥΠΟΛΟΓΙΣΜΟΙ'!D14,IF($F$54<60,'5.ΥΠΟΛΟΓΙΣΜΟΙ'!D15,IF($F$54<90,'5.ΥΠΟΛΟΓΙΣΜΟΙ'!D16,'5.ΥΠΟΛΟΓΙΣΜΟΙ'!D11)))) -> 6.91 | E57: =IF($F$54<25,'5.ΥΠΟΛΟΓΙΣΜΟΙ'!E13,IF($F$54<40,'5.ΥΠΟΛΟΓΙΣΜΟΙ'!E14,IF($F$54<60,'5.ΥΠΟΛΟΓΙΣΜΟΙ'!E15,IF($F$54<90,'5.ΥΠΟΛΟΓΙΣΜΟΙ'!E16,'5.ΥΠΟΛΟΓΙΣΜΟΙ'!E11)))) -> 3.7 | F57: =IF($F$54<25,'5.ΥΠΟΛΟΓΙΣΜΟΙ'!F13,IF($F$54<40,'5.ΥΠΟΛΟΓΙΣΜΟΙ'!F14,IF($F$54<60,'5.ΥΠΟΛΟΓΙΣΜΟΙ'!F15,IF($F$54<90,'5.ΥΠΟΛΟΓΙΣΜΟΙ'!F16,'5.ΥΠΟΛΟΓΙΣΜΟΙ'!F11)))) -> 0
A58: Εύθρυπτα πετρώματα | B58: =IF($F$54<25,'5.ΥΠΟΛΟΓΙΣΜΟΙ'!B20,IF($F$54<40,'5.ΥΠΟΛΟΓΙΣΜΟΙ'!B21,IF($F$54<60,'5.ΥΠΟΛΟΓΙΣΜΟΙ'!B22,IF($F$54<90,'5.ΥΠΟΛΟΓΙΣΜΟΙ'!B23,'5.ΥΠΟΛΟΓΙΣΜΟΙ'!B12)))) -> 15.39 | C58: =IF($F$54<25,'5.ΥΠΟΛΟΓΙΣΜΟΙ'!C20,IF($F$54<40,'5.ΥΠΟΛΟΓΙΣΜΟΙ'!C21,IF($F$54<60,'5.ΥΠΟΛΟΓΙΣΜΟΙ'!C22,IF($F$54<90,'5.ΥΠΟΛΟΓΙΣΜΟΙ'!C23,'5.ΥΠΟΛΟΓΙΣΜΟΙ'!C12)))) -> 14.29 | D58: =IF($F$54<25,'5.ΥΠΟΛΟΓΙΣΜΟΙ'!D20,IF($F$54<40,'5.ΥΠΟΛΟΓΙΣΜΟΙ'!D21,IF($F$54<60,'5.ΥΠΟΛΟΓΙΣΜΟΙ'!D22,IF($F$54<90,'5.ΥΠΟΛΟΓΙΣΜΟΙ'!D23,'5.ΥΠΟΛΟΓΙΣΜΟΙ'!D12)))) -> 11.9 | E58: =IF($F$54<25,'5.ΥΠΟΛΟΓΙΣΜΟΙ'!E20,IF($F$54<40,'5.ΥΠΟΛΟΓΙΣΜΟΙ'!E21,IF($F$54<60,'5.ΥΠΟΛΟΓΙΣΜΟΙ'!E22,IF($F$54<90,'5.ΥΠΟΛΟΓΙΣΜΟΙ'!E23,'5.ΥΠΟΛΟΓΙΣΜΟΙ'!E12)))) -> 6.38 | F58: =IF($F$54<25,'5.ΥΠΟΛΟΓΙΣΜΟΙ'!F20,IF($F$54<40,'5.ΥΠΟΛΟΓΙΣΜΟΙ'!F21,IF($F$54<60,'5.ΥΠΟΛΟΓΙΣΜΟΙ'!F22,IF($F$54<90,'5.ΥΠΟΛΟΓΙΣΜΟΙ'!F23,'5.ΥΠΟΛΟΓΙΣΜΟΙ'!F12)))) -> 0
A59: Αποθέσεις, μορένες, άργιλοι, ψαμμόλιθοι και άλλα ανθεκτικά πετρώματα | B59: =IF($F$54<25,'5.ΥΠΟΛΟΓΙΣΜΟΙ'!B27,IF($F$54<40,'5.ΥΠΟΛΟΓΙΣΜΟΙ'!B28,IF($F$54<60,'5.ΥΠΟΛΟΓΙΣΜΟΙ'!B29,IF($F$54<90,'5.ΥΠΟΛΟΓΙΣΜΟΙ'!B30,'5.ΥΠΟΛΟΓΙΣΜΟΙ'!B13)))) -> 24.08 | C59: =IF($F$54<25,'5.ΥΠΟΛΟΓΙΣΜΟΙ'!C27,IF($F$54<40,'5.ΥΠΟΛΟΓΙΣΜΟΙ'!C28,IF($F$54<60,'5.ΥΠΟΛΟΓΙΣΜΟΙ'!C29,IF($F$54<90,'5.ΥΠΟΛΟΓΙΣΜΟΙ'!C30,'5.ΥΠΟΛΟΓΙΣΜΟΙ'!C13)))) -> 22.37 | D59: =IF($F$54<25,'5.ΥΠΟΛΟΓΙΣΜΟΙ'!D27,IF($F$54<40,'5.ΥΠΟΛΟΓΙΣΜΟΙ'!D28,IF($F$54<60,'5.ΥΠΟΛΟΓΙΣΜΟΙ'!D29,IF($F$54<90,'5.ΥΠΟΛΟΓΙΣΜΟΙ'!D30,'5.ΥΠΟΛΟΓΙΣΜΟΙ'!D13)))) -> 18.62 | E59: =IF($F$54<25,'5.ΥΠΟΛΟΓΙΣΜΟΙ'!E27,IF($F$54<40,'5.ΥΠΟΛΟΓΙΣΜΟΙ'!E28,IF($F$54<60,'5.ΥΠΟΛΟΓΙΣΜΟΙ'!E29,IF($F$54<90,'5.ΥΠΟΛΟΓΙΣΜΟΙ'!E30,'5.ΥΠΟΛΟΓΙΣΜΟΙ'!E13)))) -> 9.98 | F59: =IF($F$54<25,'5.ΥΠΟΛΟΓΙΣΜΟΙ'!F27,IF($F$54<40,'5.ΥΠΟΛΟΓΙΣΜΟΙ'!F28,IF($F$54<60,'5.ΥΠΟΛΟΓΙΣΜΟΙ'!F29,IF($F$54<90,'5.ΥΠΟΛΟΓΙΣΜΟΙ'!F30,'5.ΥΠΟΛΟΓΙΣΜΟΙ'!F13)))) -> 0
A60: Πολύ ευαίσθητα στη διάβρωση πετρώματα και εδάφη | B60: =IF($F$54<25,'5.ΥΠΟΛΟΓΙΣΜΟΙ'!B34,IF($F$54<40,'5.ΥΠΟΛΟΓΙΣΜΟΙ'!B35,IF($F$54<60,'5.ΥΠΟΛΟΓΙΣΜΟΙ'!B36,IF($F$54<90,'5.ΥΠΟΛΟΓΙΣΜΟΙ'!B37,'5.ΥΠΟΛΟΓΙΣΜΟΙ'!B14)))) -> 32.67 | C60: =IF($F$54<25,'5.ΥΠΟΛΟΓΙΣΜΟΙ'!C34,IF($F$54<40,'5.ΥΠΟΛΟΓΙΣΜΟΙ'!C35,IF($F$54<60,'5.ΥΠΟΛΟΓΙΣΜΟΙ'!C36,IF($F$54<90,'5.ΥΠΟΛΟΓΙΣΜΟΙ'!C37,'5.ΥΠΟΛΟΓΙΣΜΟΙ'!C14)))) -> 30.35 | D60: =IF($F$54<25,'5.ΥΠΟΛΟΓΙΣΜΟΙ'!D34,IF($F$54<40,'5.ΥΠΟΛΟΓΙΣΜΟΙ'!D35,IF($F$54<60,'5.ΥΠΟΛΟΓΙΣΜΟΙ'!D36,IF($F$54<90,'5.ΥΠΟΛΟΓΙΣΜΟΙ'!D37,'5.ΥΠΟΛΟΓΙΣΜΟΙ'!D14)))) -> 25.27 | E60: =IF($F$54<25,'5.ΥΠΟΛΟΓΙΣΜΟΙ'!E34,IF($F$54<40,'5.ΥΠΟΛΟΓΙΣΜΟΙ'!E35,IF($F$54<60,'5.ΥΠΟΛΟΓΙΣΜΟΙ'!E36,IF($F$54<90,'5.ΥΠΟΛΟΓΙΣΜΟΙ'!E37,'5.ΥΠΟΛΟΓΙΣΜΟΙ'!E14)))) -> 13.55 | F60: =IF($F$54<25,'5.ΥΠΟΛΟΓΙΣΜΟΙ'!F34,IF($F$54<40,'5.ΥΠΟΛΟΓΙΣΜΟΙ'!F35,IF($F$54<60,'5.ΥΠΟΛΟΓΙΣΜΟΙ'!F36,IF($F$54<90,'5.ΥΠΟΛΟΓΙΣΜΟΙ'!F37,'5.ΥΠΟΛΟΓΙΣΜΟΙ'!F14)))) -> 0
A62: 2.7 - 2.8 ΔΕΣΜΕΥΣΗ ΑΝΘΡΑΚΑ & ΠΡΟΣΤΑΣΙΑ ΒΙΟΠΟΙΚΙΛΟΤΗΤΑΣ
A63: Συντελεστές BEF | B63: t/m3 | C63: Συντελεστής R | E63: Συντελεστές φυσικότητας | J63: Μέση παραγωγή δασικών προϊόντων | K63: m3/ha | L63: R | M63: MAI-V
A64: A | B64: 0.8 | C64: Δάσος Κωνοφόρων | D64: 0.46 | E64: Φυτείες ξενικών ειδών | F64: 0.1 | J64: Ελάτη | K64: 0.15 | L64: =D64 -> 0.46 | M64: =D6-K64 -> 5.05
A65: B | B65: 0.95 | C65: Δάσος Πλατυφύλλων | D65: 0.43 | E65: Μονοκαλλιέργεια πρεμνοφυών δασών που διαχειρίζονται τακτικά (ηλικία μικρότερη 1.5t*) | F65: 0.2 | J65: Ερυθρελάτη | K65: 5.65 | L65: =D64 -> 0.46 | M65: =D7-K65 -> 2.85
A66: C | B66: 0.6 | C66: Αείφυλλα πλατύφυλλα | D66: 2.83 | E66: Μικτά πρεμνοφυή δάση που διαχειρίζονται τακτικά (ηλικία μικρότερη 1.5t*) | F66: 0.3 | J66: Πεύκη | K66: 0.3 | L66: =D64 -> 0.46 | M66: 5.57
A67: D | B67: 0.7 | C67: Φρυγανικά οικοσυστήματα | D67: 1.48 | E67: Θάμνοι και Μεσογειακά maquis | F67: 0.4 | J67: Οξυά | K67: 0.86 | L67: =D65 -> 0.43 | M67: 5.44
A68: E | B68: 0.8 | E68: Σύνθετα πρεμνοφυή δάση | F68: 0.5 | J68: Δρυς | K68: 0.2 | L68: =D65 -> 0.43 | M68: 2.42
A69: F | B69: 0.9 | C69: ΑΝΑΘΕΩΡΟΥΜΕΝΕΣ ΤΙΜΕΣ | E69: Πρεμνοφυή δάση υπό αναγωγή σε υψηλά δάση | F69: 0.6 | J69: Λοιπά πλατύφυλλα | K69: 0.43 | L69: =D65 -> 0.43 | M69: 1.63
A70: G | B70: 1 | C70: Τιμή άνθρακα (€/tn) | D70: 4.87 | E70: Μονοκαλλιέργεια υψηλών δασών | F70: 0.7 | J70: Αείφυλλα πλατύφυλλα | K70: 0.2 | L70: =D66 -> 2.83 | M70: 0.1
A71: H | B71: 0.9 | C71: Ετήσια αξία βιοποικιλότητας (€/ha) | D71: 120 | E71: Μεικτά υψηλά δάση | F71: 0.8 | J71: Φρύγανα | K71: 0 | L71: =D67 -> 1.48 | M71: =D15 -> 0
A72: I | B72: 0.6 | E72: Αναδασώσεις στη φάση μετατροπής σε φυσικό δάσος | F72: 0.8 | J72: Χορτολίβαδα | K72: 0 | L72: 0
E73: Πολυώροφα μεικτά υψηλά δάση και παρόχθια δάση | F73: 0.9 | J73: Πεύκη Χαλέπιος ή Τραχεία | K73: =K66 -> 0.3 | L73: =L66 -> 0.46 | M73: =M66 -> 5.57
A74: 2.9 ΕΤΗΣΙΑ ΖΗΜΙΑ ΛΟΓΩ ΠΥΡΚΑΓΙΩΝ | E74: Παρθένα ή αρχέγονα δάση | F74: 1 | J74: Πεύκη λοιπά | K74: =K66 -> 0.3 | L74: =L66 -> 0.46 | M74: =M73 -> 5.57
A75: Δασικό είδος / οικοσύστημα | B75: €/ha | J75: Χορτολίβαδα>800 m | K75: 0 | L75: 0
A76: Ελάτη | B76: 38.63 | J76: Χορτολίβαδα<800 m | K76: 0 | L76: 0
A77: Ερυθρελάτη | B77: 44.46 | J77: Άγονη / βραχώδης έκταση | K77: 0 | L77: 0
A78: Πεύκη | B78: 55.13
A79: Οξυά | B79: 36.93
A80: Δρυς | B80: 46.88
A81: Λοιπά πλατύφυλλα | B81: 85.8
A82: Αείφυλλα πλατύφυλλα | B82: 39.54
A83: Φρύγανα | B83: 41.1
A84: Χορτολίβαδα | B84: 37.67
A85: Πεύκη Χαλέπιος ή Τραχεία | B85: =B78 -> 55.13
A86: Πεύκη λοιπά | B86: =B78 -> 55.13
A87: Χορτολίβαδα>800 m | B87: =B84 -> 37.67
A88: Χορτολίβαδα<800 m | B88: =B84 -> 37.67
A89: Άγονη / βραχώδης έκταση | B89: 0

Sheet 3α.ΑΠΟΤΕΛΕΣΜΑΤΑ
A1: Α/Α | B1: Παραγωγή ξύλου | C1: Μη ξυλώδη δασικά προϊόντα | D1: Βόσκηση | E1: Κυνήγι | F1: Αναψυχή | G1: Προστασία εδάφους | H1: Αποθήκευση άνθρακα | I1: Βιοποικιλότητα | J1: Ζημίες από πυρκαγιές | K1: Σύνολο | N1: επιμερισμός
B2: Vw | C2: Vnfwp | D2: Vg | E2: Vh | F2: Vr | G2: Vps | H2: Vcs | I2: Vb | J2: Df | N2: λοιπ.ΜΞΔΠ
A3: 1 | B3: =IF('1α.ΔΕΛΤΙΟ ΔΕΔΟΜΕΝΩΝ'!B3="",0,IF('1α.ΔΕΛΤΙΟ ΔΕΔΟΜΕΝΩΝ'!C3>0,VLOOKUP('1α.ΔΕΛΤΙΟ ΔΕΔΟΜΕΝΩΝ'!B3,'2.ΒΑΣΙΚΕΣ ΤΙΜΕΣ'!A$6:D$18,4,FALSE)*VLOOKUP('1α.ΔΕΛΤΙΟ ΔΕΔΟΜΕΝΩΝ'!B3,'2.ΒΑΣΙΚΕΣ ΤΙΜΕΣ'!A$6:K$18,11,FALSE),0)*'1α.ΔΕΛΤΙΟ ΔΕΔΟΜΕΝΩΝ'!C3*'1α.ΔΕΛΤΙΟ ΔΕΔΟΜΕΝΩΝ'!D3) -> 0 | C3: ='1α.ΔΕΛΤΙΟ ΔΕΔΟΜΕΝΩΝ'!F3*'2.ΒΑΣΙΚΕΣ ΤΙΜΕΣ'!C$22*'2.ΒΑΣΙΚΕΣ ΤΙΜΕΣ'!D$22*'1α.ΔΕΛΤΙΟ ΔΕΔΟΜΕΝΩΝ'!C3+'1α.ΔΕΛΤΙΟ ΔΕΔΟΜΕΝΩΝ'!C3*'1α.ΔΕΛΤΙΟ ΔΕΔΟΜΕΝΩΝ'!G3*'2.ΒΑΣΙΚΕΣ ΤΙΜΕΣ'!C$25*'2.ΒΑΣΙΚΕΣ ΤΙΜΕΣ'!D$25+'1α.ΔΕΛΤΙΟ ΔΕΔΟΜΕΝΩΝ'!H3*'1α.ΔΕΛΤΙΟ ΔΕΔΟΜΕΝΩΝ'!C3*'2.ΒΑΣΙΚΕΣ ΤΙΜΕΣ'!C$27*'2.ΒΑΣΙΚΕΣ ΤΙΜΕΣ'!D$27*'1α.ΔΕΛΤΙΟ ΔΕΔΟΜΕΝΩΝ'!W3+N3 -> 0 | D3: =IF('1α.ΔΕΛΤΙΟ ΔΕΔΟΜΕΝΩΝ'!B3="",0,VLOOKUP('1α.ΔΕΛΤΙΟ ΔΕΔΟΜΕΝΩΝ'!B3,'2.ΒΑΣΙΚΕΣ ΤΙΜΕΣ'!A$36:B$51,2,FALSE)*('1α.ΔΕΛΤΙΟ ΔΕΔΟΜΕΝΩΝ'!C3-'1α.ΔΕΛΤΙΟ ΔΕΔΟΜΕΝΩΝ'!J3)) -> 0 | E3: ='2.ΒΑΣΙΚΕΣ ΤΙΜΕΣ'!D$36*0.7*('1α.ΔΕΛΤΙΟ ΔΕΔΟΜΕΝΩΝ'!C3-'1α.ΔΕΛΤΙΟ ΔΕΔΟΜΕΝΩΝ'!K3) -> 0 | F3: =IF('1α.ΔΕΛΤΙΟ ΔΕΔΟΜΕΝΩΝ'!B3="",0,VLOOKUP('1α.ΔΕΛΤΙΟ ΔΕΔΟΜΕΝΩΝ'!B3,'2.ΒΑΣΙΚΕΣ ΤΙΜΕΣ'!A$36:C$51,3,FALSE)*'1α.ΔΕΛΤΙΟ ΔΕΔΟΜΕΝΩΝ'!C3) -> 0 | G3: =(IF(OR('1α.ΔΕΛΤΙΟ ΔΕΔΟΜΕΝΩΝ'!M3="",'1α.ΔΕΛΤΙΟ ΔΕΔΟΜΕΝΩΝ'!Q3="",'1α.ΔΕΛΤΙΟ ΔΕΔΟΜΕΝΩΝ'!R3="",'1α.ΔΕΛΤΙΟ ΔΕΔΟΜΕΝΩΝ'!R3="Επιφάνεια χωρίς φυτοκάλυψη "),0,IF('1α.ΔΕΛΤΙΟ ΔΕΔΟΜΕΝΩΝ'!M3=0,0,VLOOKUP('1α.ΔΕΛΤΙΟ ΔΕΔΟΜΕΝΩΝ'!M3&'1α.ΔΕΛΤΙΟ ΔΕΔΟΜΕΝΩΝ'!Q3&'1α.ΔΕΛΤΙΟ ΔΕΔΟΜΕΝΩΝ'!R3,'PS DATA'!D:E,2,FALSE)*'1α.ΔΕΛΤΙΟ ΔΕΔΟΜΕΝΩΝ'!C3*'2.ΒΑΣΙΚΕΣ ΤΙΜΕΣ'!B$54))) -> 0 | H3: =IF('1α.ΔΕΛΤΙΟ ΔΕΔΟΜΕΝΩΝ'!B3="",0,VLOOKUP('1α.ΔΕΛΤΙΟ ΔΕΔΟΜΕΝΩΝ'!B3,'CS DATA'!D$2:H$13,5,FALSE)*'1α.ΔΕΛΤΙΟ ΔΕΔΟΜΕΝΩΝ'!D3*'1α.ΔΕΛΤΙΟ ΔΕΔΟΜΕΝΩΝ'!C3*'2.ΒΑΣΙΚΕΣ ΤΙΜΕΣ'!D$70)*IF('1α.ΔΕΛΤΙΟ ΔΕΔΟΜΕΝΩΝ'!S3="",0,VLOOKUP('1α.ΔΕΛΤΙΟ ΔΕΔΟΜΕΝΩΝ'!S3,'CS DATA'!A$1:B$13,2,FALSE)) -> 0 | I3: =IF('1α.ΔΕΛΤΙΟ ΔΕΔΟΜΕΝΩΝ'!T3="",0,VLOOKUP('1α.ΔΕΛΤΙΟ ΔΕΔΟΜΕΝΩΝ'!T3,'2.ΒΑΣΙΚΕΣ ΤΙΜΕΣ'!E$64:F$74,2,FALSE)*'1α.ΔΕΛΤΙΟ ΔΕΔΟΜΕΝΩΝ'!C3)*'2.ΒΑΣΙΚΕΣ ΤΙΜΕΣ'!D$71 -> 0 | J3: =IF('1α.ΔΕΛΤΙΟ ΔΕΔΟΜΕΝΩΝ'!B3="",0,VLOOKUP('1α.ΔΕΛΤΙΟ ΔΕΔΟΜΕΝΩΝ'!B3,'2.ΒΑΣΙΚΕΣ ΤΙΜΕΣ'!A$76:B$89,2,FALSE)*'1α.ΔΕΛΤΙΟ ΔΕΔΟΜΕΝΩΝ'!C3) -> 0 | K3: =SUM(B3:I3)-J3 -> 0 | N3: =IF('1α.ΔΕΛΤΙΟ ΔΕΔΟΜΕΝΩΝ'!C$23=0,0,'1β.ΜΞΔΠ'!F25*'1α.ΔΕΛΤΙΟ ΔΕΔΟΜΕΝΩΝ'!C3/'1α.ΔΕΛΤΙΟ ΔΕΔΟΜΕΝΩΝ'!C$23) -> 0
A4: 2 | B4: =IF('1α.ΔΕΛΤΙΟ ΔΕΔΟΜΕΝΩΝ'!B4="",0,IF('1α.ΔΕΛΤΙΟ ΔΕΔΟΜΕΝΩΝ'!C4>0,VLOOKUP('1α.ΔΕΛΤΙΟ ΔΕΔΟΜΕΝΩΝ'!B4,'2.ΒΑΣΙΚΕΣ ΤΙΜΕΣ'!A$6:D$18,4,FALSE)*VLOOKUP('1α.ΔΕΛΤΙΟ ΔΕΔΟΜΕΝΩΝ'!B4,'2.ΒΑΣΙΚΕΣ ΤΙΜΕΣ'!A$6:K$18,11,FALSE),0)*'1α.ΔΕΛΤΙΟ ΔΕΔΟΜΕΝΩΝ'!C4*'1α.ΔΕΛΤΙΟ ΔΕΔΟΜΕΝΩΝ'!D4) -> 0 | C4: ='1α.ΔΕΛΤΙΟ ΔΕΔΟΜΕΝΩΝ'!F4*'2.ΒΑΣΙΚΕΣ ΤΙΜΕΣ'!C$22*'2.ΒΑΣΙΚΕΣ ΤΙΜΕΣ'!D$22*'1α.ΔΕΛΤΙΟ ΔΕΔΟΜΕΝΩΝ'!C4+'1α.ΔΕΛΤΙΟ ΔΕΔΟΜΕΝΩΝ'!C4*'1α.ΔΕΛΤΙΟ ΔΕΔΟΜΕΝΩΝ'!G4*'2.ΒΑΣΙΚΕΣ ΤΙΜΕΣ'!C$25*'2.ΒΑΣΙΚΕΣ ΤΙΜΕΣ'!D$25+'1α.ΔΕΛΤΙΟ ΔΕΔΟΜΕΝΩΝ'!H4*'1α.ΔΕΛΤΙΟ ΔΕΔΟΜΕΝΩΝ'!C4*'2.ΒΑΣΙΚΕΣ ΤΙΜΕΣ'!C$27*'2.ΒΑΣΙΚΕΣ ΤΙΜΕΣ'!D$27*'1α.ΔΕΛΤΙΟ ΔΕΔΟΜΕΝΩΝ'!W4+N4 -> 0 | D4: =IF('1α.ΔΕΛΤΙΟ ΔΕΔΟΜΕΝΩΝ'!B4="",0,VLOOKUP('1α.ΔΕΛΤΙΟ ΔΕΔΟΜΕΝΩΝ'!B4,'2.ΒΑΣΙΚΕΣ ΤΙΜΕΣ'!A$36:B$51,2,FALSE)*('1α.ΔΕΛΤΙΟ ΔΕΔΟΜΕΝΩΝ'!C4-'1α.ΔΕΛΤΙΟ ΔΕΔΟΜΕΝΩΝ'!J4)) -> 0 | E4: ='2.ΒΑΣΙΚΕΣ ΤΙΜΕΣ'!D$36*0.7*('1α.ΔΕΛΤΙΟ ΔΕΔΟΜΕΝΩΝ'!C4-'1α.ΔΕΛΤΙΟ ΔΕΔΟΜΕΝΩΝ'!K4) -> 0 | F4: =IF('1α.ΔΕΛΤΙΟ ΔΕΔΟΜΕΝΩΝ'!B4="",0,VLOOKUP('1α.ΔΕΛΤΙΟ ΔΕΔΟΜΕΝΩΝ'!B4,'2.ΒΑΣΙΚΕΣ ΤΙΜΕΣ'!A$36:C$51,3,FALSE)*'1α.ΔΕΛΤΙΟ ΔΕΔΟΜΕΝΩΝ'!C4) -> 0 | G4: =(IF(OR('1α.ΔΕΛΤΙΟ ΔΕΔΟΜΕΝΩΝ'!M4="",'1α.ΔΕΛΤΙΟ ΔΕΔΟΜΕΝΩΝ'!Q4="",'1α.ΔΕΛΤΙΟ ΔΕΔΟΜΕΝΩΝ'!R4="",'1α.ΔΕΛΤΙΟ ΔΕΔΟΜΕΝΩΝ'!R4="Επιφάνεια χωρίς φυτοκάλυψη "),0,IF('1α.ΔΕΛΤΙΟ ΔΕΔΟΜΕΝΩΝ'!M4=0,0,VLOOKUP('1α.ΔΕΛΤΙΟ ΔΕΔΟΜΕΝΩΝ'!M4&'1α.ΔΕΛΤΙΟ ΔΕΔΟΜΕΝΩΝ'!Q4&'1α.ΔΕΛΤΙΟ ΔΕΔΟΜΕΝΩΝ'!R4,'PS DATA'!D:E,2,FALSE)*'1α.ΔΕΛΤΙΟ ΔΕΔΟΜΕΝΩΝ'!C4*'2.ΒΑΣΙΚΕΣ ΤΙΜΕΣ'!B$54))) -> 0 | H4: =IF('1α.ΔΕΛΤΙΟ ΔΕΔΟΜΕΝΩΝ'!B4="",0,VLOOKUP('1α.ΔΕΛΤΙΟ ΔΕΔΟΜΕΝΩΝ'!B4,'CS DATA'!D$2:H$13,5,FALSE)*'1α.ΔΕΛΤΙΟ ΔΕΔΟΜΕΝΩΝ'!D4*'1α.ΔΕΛΤΙΟ ΔΕΔΟΜΕΝΩΝ'!C4*'2.ΒΑΣΙΚΕΣ ΤΙΜΕΣ'!D$70)*IF('1α.ΔΕΛΤΙΟ ΔΕΔΟΜΕΝΩΝ'!S4="",0,VLOOKUP('1α.ΔΕΛΤΙΟ ΔΕΔΟΜΕΝΩΝ'!S4,'CS DATA'!A$1:B$13,2,FALSE)) -> 0 | I4: =IF('1α.ΔΕΛΤΙΟ ΔΕΔΟΜΕΝΩΝ'!T4="",0,VLOOKUP('1α.ΔΕΛΤΙΟ ΔΕΔΟΜΕΝΩΝ'!T4,'2.ΒΑΣΙΚΕΣ ΤΙΜΕΣ'!E$64:F$74,2,FALSE)*'1α.ΔΕΛΤΙΟ ΔΕΔΟΜΕΝΩΝ'!C4)*'2.ΒΑΣΙΚΕΣ ΤΙΜΕΣ'!D$71 -> 0 | J4: =IF('1α.ΔΕΛΤΙΟ ΔΕΔΟΜΕΝΩΝ'!B4="",0,VLOOKUP('1α.ΔΕΛΤΙΟ ΔΕΔΟΜΕΝΩΝ'!B4,'2.ΒΑΣΙΚΕΣ ΤΙΜΕΣ'!A$76:B$89,2,FALSE)*'1α.ΔΕΛΤΙΟ ΔΕΔΟΜΕΝΩΝ'!C4) -> 0 | K4: =SUM(B4:I4)-J4 -> 0 | N4: =IF('1α.ΔΕΛΤΙΟ ΔΕΔΟΜΕΝΩΝ'!C$23=0,0,'1β.ΜΞΔΠ'!F26*'1α.ΔΕΛΤΙΟ ΔΕΔΟΜΕΝΩΝ'!C4/'1α.ΔΕΛΤΙΟ ΔΕΔΟΜΕΝΩΝ'!C$23) -> 0
A5: 3 | B5: =IF('1α.ΔΕΛΤΙΟ ΔΕΔΟΜΕΝΩΝ'!B5="",0,IF('1α.ΔΕΛΤΙΟ ΔΕΔΟΜΕΝΩΝ'!C5>0,VLOOKUP('1α.ΔΕΛΤΙΟ ΔΕΔΟΜΕΝΩΝ'!B5,'2.ΒΑΣΙΚΕΣ ΤΙΜΕΣ'!A$6:D$18,4,FALSE)*VLOOKUP('1α.ΔΕΛΤΙΟ ΔΕΔΟΜΕΝΩΝ'!B5,'2.ΒΑΣΙΚΕΣ ΤΙΜΕΣ'!A$6:K$18,11,FALSE),0)*'1α.ΔΕΛΤΙΟ ΔΕΔΟΜΕΝΩΝ'!C5*'1α.ΔΕΛΤΙΟ ΔΕΔΟΜΕΝΩΝ'!D5) -> 0 | C5: ='1α.ΔΕΛΤΙΟ ΔΕΔΟΜΕΝΩΝ'!F5*'2.ΒΑΣΙΚΕΣ ΤΙΜΕΣ'!C$22*'2.ΒΑΣΙΚΕΣ ΤΙΜΕΣ'!D$22*'1α.ΔΕΛΤΙΟ ΔΕΔΟΜΕΝΩΝ'!C5+'1α.ΔΕΛΤΙΟ ΔΕΔΟΜΕΝΩΝ'!C5*'1α.ΔΕΛΤΙΟ ΔΕΔΟΜΕΝΩΝ'!G5*'2.ΒΑΣΙΚΕΣ ΤΙΜΕΣ'!C$25*'2.ΒΑΣΙΚΕΣ ΤΙΜΕΣ'!D$25+'1α.ΔΕΛΤΙΟ ΔΕΔΟΜΕΝΩΝ'!H5*'1α.ΔΕΛΤΙΟ ΔΕΔΟΜΕΝΩΝ'!C5*'2.ΒΑΣΙΚΕΣ ΤΙΜΕΣ'!C$27*'2.ΒΑΣΙΚΕΣ ΤΙΜΕΣ'!D$27*'1α.ΔΕΛΤΙΟ ΔΕΔΟΜΕΝΩΝ'!W5+N5 -> 0 | D5: =IF('1α.ΔΕΛΤΙΟ ΔΕΔΟΜΕΝΩΝ'!B5="",0,VLOOKUP('1α.ΔΕΛΤΙΟ ΔΕΔΟΜΕΝΩΝ'!B5,'2.ΒΑΣΙΚΕΣ ΤΙΜΕΣ'!A$36:B$51,2,FALSE)*('1α.ΔΕΛΤΙΟ ΔΕΔΟΜΕΝΩΝ'!C5-'1α.ΔΕΛΤΙΟ ΔΕΔΟΜΕΝΩΝ'!J5)) -> 0 | E5: ='2.ΒΑΣΙΚΕΣ ΤΙΜΕΣ'!D$36*0.7*('1α.ΔΕΛΤΙΟ ΔΕΔΟΜΕΝΩΝ'!C5-'1α.ΔΕΛΤΙΟ ΔΕΔΟΜΕΝΩΝ'!K5) -> 0 | F5: =IF('1α.ΔΕΛΤΙΟ ΔΕΔΟΜΕΝΩΝ'!B5="",0,VLOOKUP('1α.ΔΕΛΤΙΟ ΔΕΔΟΜΕΝΩΝ'!B5,'2.ΒΑΣΙΚΕΣ ΤΙΜΕΣ'!A$36:C$51,3,FALSE)*'1α.ΔΕΛΤΙΟ ΔΕΔΟΜΕΝΩΝ'!C5) -> 0 | G5: =(IF(OR('1α.ΔΕΛΤΙΟ ΔΕΔΟΜΕΝΩΝ'!M5="",'1α.ΔΕΛΤΙΟ ΔΕΔΟΜΕΝΩΝ'!Q5="",'1α.ΔΕΛΤΙΟ ΔΕΔΟΜΕΝΩΝ'!R5="",'1α.ΔΕΛΤΙΟ ΔΕΔΟΜΕΝΩΝ'!R5="Επιφάνεια χωρίς φυτοκάλυψη "),0,IF('1α.ΔΕΛΤΙΟ ΔΕΔΟΜΕΝΩΝ'!M5=0,0,VLOOKUP('1α.ΔΕΛΤΙΟ ΔΕΔΟΜΕΝΩΝ'!M5&'1α.ΔΕΛΤΙΟ ΔΕΔΟΜΕΝΩΝ'!Q5&'1α.ΔΕΛΤΙΟ ΔΕΔΟΜΕΝΩΝ'!R5,'PS DATA'!D:E,2,FALSE)*'1α.ΔΕΛΤΙΟ ΔΕΔΟΜΕΝΩΝ'!C5*'2.ΒΑΣΙΚΕΣ ΤΙΜΕΣ'!B$54))) -> 0 | H5: =IF('1α.ΔΕΛΤΙΟ ΔΕΔΟΜΕΝΩΝ'!B5="",0,VLOOKUP('1α.ΔΕΛΤΙΟ ΔΕΔΟΜΕΝΩΝ'!B5,'CS DATA'!D$2:H$13,5,FALSE)*'1α.ΔΕΛΤΙΟ ΔΕΔΟΜΕΝΩΝ'!D5*'1α.ΔΕΛΤΙΟ ΔΕΔΟΜΕΝΩΝ'!C5*'2.ΒΑΣΙΚΕΣ ΤΙΜΕΣ'!D$70)*IF('1α.ΔΕΛΤΙΟ ΔΕΔΟΜΕΝΩΝ'!S5="",0,VLOOKUP('1α.ΔΕΛΤΙΟ ΔΕΔΟΜΕΝΩΝ'!S5,'CS DATA'!A$1:B$13,2,FALSE)) -> 0 | I5: =IF('1α.ΔΕΛΤΙΟ ΔΕΔΟΜΕΝΩΝ'!T5="",0,VLOOKUP('1α.ΔΕΛΤΙΟ ΔΕΔΟΜΕΝΩΝ'!T5,'2.ΒΑΣΙΚΕΣ ΤΙΜΕΣ'!E$64:F$74,2,FALSE)*'1α.ΔΕΛΤΙΟ ΔΕΔΟΜΕΝΩΝ'!C5)*'2.ΒΑΣΙΚΕΣ ΤΙΜΕΣ'!D$71 -> 0 | J5: =IF('1α.ΔΕΛΤΙΟ ΔΕΔΟΜΕΝΩΝ'!B5="",0,VLOOKUP('1α.ΔΕΛΤΙΟ ΔΕΔΟΜΕΝΩΝ'!B5,'2.ΒΑΣΙΚΕΣ ΤΙΜΕΣ'!A$76:B$89,2,FALSE)*'1α.ΔΕΛΤΙΟ ΔΕΔΟΜΕΝΩΝ'!C5) -> 0 | K5: 0 | N5: =IF('1α.ΔΕΛΤΙΟ ΔΕΔΟΜΕΝΩΝ'!C$23=0,0,'1β.ΜΞΔΠ'!F27*'1α.ΔΕΛΤΙΟ ΔΕΔΟΜΕΝΩΝ'!C5/'1α.ΔΕΛΤΙΟ ΔΕΔΟΜΕΝΩΝ'!C$23) -> 0
A6: 4 | B6: =IF('1α.ΔΕΛΤΙΟ ΔΕΔΟΜΕΝΩΝ'!B6="",0,IF('1α.ΔΕΛΤΙΟ ΔΕΔΟΜΕΝΩΝ'!C6>0,VLOOKUP('1α.ΔΕΛΤΙΟ ΔΕΔΟΜΕΝΩΝ'!B6,'2.ΒΑΣΙΚΕΣ ΤΙΜΕΣ'!A$6:D$18,4,FALSE)*VLOOKUP('1α.ΔΕΛΤΙΟ ΔΕΔΟΜΕΝΩΝ'!B6,'2.ΒΑΣΙΚΕΣ ΤΙΜΕΣ'!A$6:K$18,11,FALSE),0)*'1α.ΔΕΛΤΙΟ ΔΕΔΟΜΕΝΩΝ'!C6*'1α.ΔΕΛΤΙΟ ΔΕΔΟΜΕΝΩΝ'!D6) -> 0 | C6: ='1α.ΔΕΛΤΙΟ ΔΕΔΟΜΕΝΩΝ'!F6*'2.ΒΑΣΙΚΕΣ ΤΙΜΕΣ'!C$22*'2.ΒΑΣΙΚΕΣ ΤΙΜΕΣ'!D$22*'1α.ΔΕΛΤΙΟ ΔΕΔΟΜΕΝΩΝ'!C6+'1α.ΔΕΛΤΙΟ ΔΕΔΟΜΕΝΩΝ'!C6*'1α.ΔΕΛΤΙΟ ΔΕΔΟΜΕΝΩΝ'!G6*'2.ΒΑΣΙΚΕΣ ΤΙΜΕΣ'!C$25*'2.ΒΑΣΙΚΕΣ ΤΙΜΕΣ'!D$25+'1α.ΔΕΛΤΙΟ ΔΕΔΟΜΕΝΩΝ'!H6*'1α.ΔΕΛΤΙΟ ΔΕΔΟΜΕΝΩΝ'!C6*'2.ΒΑΣΙΚΕΣ ΤΙΜΕΣ'!C$27*'2.ΒΑΣΙΚΕΣ ΤΙΜΕΣ'!D$27*'1α.ΔΕΛΤΙΟ ΔΕΔΟΜΕΝΩΝ'!W6+N6 -> 0 | D6: =IF('1α.ΔΕΛΤΙΟ ΔΕΔΟΜΕΝΩΝ'!B6="",0,VLOOKUP('1α.ΔΕΛΤΙΟ ΔΕΔΟΜΕΝΩΝ'!B6,'2.ΒΑΣΙΚΕΣ ΤΙΜΕΣ'!A$36:B$51,2,FALSE)*('1α.ΔΕΛΤΙΟ ΔΕΔΟΜΕΝΩΝ'!C6-'1α.ΔΕΛΤΙΟ ΔΕΔΟΜΕΝΩΝ'!J6)) -> 0 | E6: ='2.ΒΑΣΙΚΕΣ ΤΙΜΕΣ'!D$36*0.7*('1α.ΔΕΛΤΙΟ ΔΕΔΟΜΕΝΩΝ'!C6-'1α.ΔΕΛΤΙΟ ΔΕΔΟΜΕΝΩΝ'!K6) -> 0 | F6: =IF('1α.ΔΕΛΤΙΟ ΔΕΔΟΜΕΝΩΝ'!B6="",0,VLOOKUP('1α.ΔΕΛΤΙΟ ΔΕΔΟΜΕΝΩΝ'!B6,'2.ΒΑΣΙΚΕΣ ΤΙΜΕΣ'!A$36:C$51,3,FALSE)*'1α.ΔΕΛΤΙΟ ΔΕΔΟΜΕΝΩΝ'!C6) -> 0 | G6: =(IF(OR('1α.ΔΕΛΤΙΟ ΔΕΔΟΜΕΝΩΝ'!M6="",'1α.ΔΕΛΤΙΟ ΔΕΔΟΜΕΝΩΝ'!Q6="",'1α.ΔΕΛΤΙΟ ΔΕΔΟΜΕΝΩΝ'!R6="",'1α.ΔΕΛΤΙΟ ΔΕΔΟΜΕΝΩΝ'!R6="Επιφάνεια χωρίς φυτοκάλυψη "),0,IF('1α.ΔΕΛΤΙΟ ΔΕΔΟΜΕΝΩΝ'!M6=0,0,VLOOKUP('1α.ΔΕΛΤΙΟ ΔΕΔΟΜΕΝΩΝ'!M6&'1α.ΔΕΛΤΙΟ ΔΕΔΟΜΕΝΩΝ'!Q6&'1α.ΔΕΛΤΙΟ ΔΕΔΟΜΕΝΩΝ'!R6,'PS DATA'!D:E,2,FALSE)*'1α.ΔΕΛΤΙΟ ΔΕΔΟΜΕΝΩΝ'!C6*'2.ΒΑΣΙΚΕΣ ΤΙΜΕΣ'!B$54))) -> 0 | H6: =IF('1α.ΔΕΛΤΙΟ ΔΕΔΟΜΕΝΩΝ'!B6="",0,VLOOKUP('1α.ΔΕΛΤΙΟ ΔΕΔΟΜΕΝΩΝ'!B6,'CS DATA'!D$2:H$13,5,FALSE)*'1α.ΔΕΛΤΙΟ ΔΕΔΟΜΕΝΩΝ'!D6*'1α.ΔΕΛΤΙΟ ΔΕΔΟΜΕΝΩΝ'!C6*'2.ΒΑΣΙΚΕΣ ΤΙΜΕΣ'!D$70)*IF('1α.ΔΕΛΤΙΟ ΔΕΔΟΜΕΝΩΝ'!S6="",0,VLOOKUP('1α.ΔΕΛΤΙΟ ΔΕΔΟΜΕΝΩΝ'!S6,'CS DATA'!A$1:B$13,2,FALSE)) -> 0 | I6: =IF('1α.ΔΕΛΤΙΟ ΔΕΔΟΜΕΝΩΝ'!T6="",0,VLOOKUP('1α.ΔΕΛΤΙΟ ΔΕΔΟΜΕΝΩΝ'!T6,'2.ΒΑΣΙΚΕΣ ΤΙΜΕΣ'!E$64:F$74,2,FALSE)*'1α.ΔΕΛΤΙΟ ΔΕΔΟΜΕΝΩΝ'!C6)*'2.ΒΑΣΙΚΕΣ ΤΙΜΕΣ'!D$71 -> 0 | J6: =IF('1α.ΔΕΛΤΙΟ ΔΕΔΟΜΕΝΩΝ'!B6="",0,VLOOKUP('1α.ΔΕΛΤΙΟ ΔΕΔΟΜΕΝΩΝ'!B6,'2.ΒΑΣΙΚΕΣ ΤΙΜΕΣ'!A$76:B$89,2,FALSE)*'1α.ΔΕΛΤΙΟ ΔΕΔΟΜΕΝΩΝ'!C6) -> 0 | K6: 0 | N6: =IF('1α.ΔΕΛΤΙΟ ΔΕΔΟΜΕΝΩΝ'!C$23=0,0,'1β.ΜΞΔΠ'!F28*'1α.ΔΕΛΤΙΟ ΔΕΔΟΜΕΝΩΝ'!C6/'1α.ΔΕΛΤΙΟ ΔΕΔΟΜΕΝΩΝ'!C$23) -> 0
A7: 5 | B7: =IF('1α.ΔΕΛΤΙΟ ΔΕΔΟΜΕΝΩΝ'!B7="",0,IF('1α.ΔΕΛΤΙΟ ΔΕΔΟΜΕΝΩΝ'!C7>0,VLOOKUP('1α.ΔΕΛΤΙΟ ΔΕΔΟΜΕΝΩΝ'!B7,'2.ΒΑΣΙΚΕΣ ΤΙΜΕΣ'!A$6:D$18,4,FALSE)*VLOOKUP('1α.ΔΕΛΤΙΟ ΔΕΔΟΜΕΝΩΝ'!B7,'2.ΒΑΣΙΚΕΣ ΤΙΜΕΣ'!A$6:K$18,11,FALSE),0)*'1α.ΔΕΛΤΙΟ ΔΕΔΟΜΕΝΩΝ'!C7*'1α.ΔΕΛΤΙΟ ΔΕΔΟΜΕΝΩΝ'!D7) -> 0 | C7: ='1α.ΔΕΛΤΙΟ ΔΕΔΟΜΕΝΩΝ'!F7*'2.ΒΑΣΙΚΕΣ ΤΙΜΕΣ'!C$22*'2.ΒΑΣΙΚΕΣ ΤΙΜΕΣ'!D$22*'1α.ΔΕΛΤΙΟ ΔΕΔΟΜΕΝΩΝ'!C7+'1α.ΔΕΛΤΙΟ ΔΕΔΟΜΕΝΩΝ'!C7*'1α.ΔΕΛΤΙΟ ΔΕΔΟΜΕΝΩΝ'!G7*'2.ΒΑΣΙΚΕΣ ΤΙΜΕΣ'!C$25*'2.ΒΑΣΙΚΕΣ ΤΙΜΕΣ'!D$25+'1α.ΔΕΛΤΙΟ ΔΕΔΟΜΕΝΩΝ'!H7*'1α.ΔΕΛΤΙΟ ΔΕΔΟΜΕΝΩΝ'!C7*'2.ΒΑΣΙΚΕΣ ΤΙΜΕΣ'!C$27*'2.ΒΑΣΙΚΕΣ ΤΙΜΕΣ'!D$27*'1α.ΔΕΛΤΙΟ ΔΕΔΟΜΕΝΩΝ'!W7+N7 -> 0 | D7: =IF('1α.ΔΕΛΤΙΟ ΔΕΔΟΜΕΝΩΝ'!B7="",0,VLOOKUP('1α.ΔΕΛΤΙΟ ΔΕΔΟΜΕΝΩΝ'!B7,'2.ΒΑΣΙΚΕΣ ΤΙΜΕΣ'!A$36:B$51,2,FALSE)*('1α.ΔΕΛΤΙΟ ΔΕΔΟΜΕΝΩΝ'!C7-'1α.ΔΕΛΤΙΟ ΔΕΔΟΜΕΝΩΝ'!J7)) -> 0 | E7: ='2.ΒΑΣΙΚΕΣ ΤΙΜΕΣ'!D$36*0.7*('1α.ΔΕΛΤΙΟ ΔΕΔΟΜΕΝΩΝ'!C7-'1α.ΔΕΛΤΙΟ ΔΕΔΟΜΕΝΩΝ'!K7) -> 0 | F7: =IF('1α.ΔΕΛΤΙΟ ΔΕΔΟΜΕΝΩΝ'!B7="",0,VLOOKUP('1α.ΔΕΛΤΙΟ ΔΕΔΟΜΕΝΩΝ'!B7,'2.ΒΑΣΙΚΕΣ ΤΙΜΕΣ'!A$36:C$51,3,FALSE)*'1α.ΔΕΛΤΙΟ ΔΕΔΟΜΕΝΩΝ'!C7) -> 0 | G7: =(IF(OR('1α.ΔΕΛΤΙΟ ΔΕΔΟΜΕΝΩΝ'!M7="",'1α.ΔΕΛΤΙΟ ΔΕΔΟΜΕΝΩΝ'!Q7="",'1α.ΔΕΛΤΙΟ ΔΕΔΟΜΕΝΩΝ'!R7="",'1α.ΔΕΛΤΙΟ ΔΕΔΟΜΕΝΩΝ'!R7="Επιφάνεια χωρίς φυτοκάλυψη "),0,IF('1α.ΔΕΛΤΙΟ ΔΕΔΟΜΕΝΩΝ'!M7=0,0,VLOOKUP('1α.ΔΕΛΤΙΟ ΔΕΔΟΜΕΝΩΝ'!M7&'1α.ΔΕΛΤΙΟ ΔΕΔΟΜΕΝΩΝ'!Q7&'1α.ΔΕΛΤΙΟ ΔΕΔΟΜΕΝΩΝ'!R7,'PS DATA'!D:E,2,FALSE)*'1α.ΔΕΛΤΙΟ ΔΕΔΟΜΕΝΩΝ'!C7*'2.ΒΑΣΙΚΕΣ ΤΙΜΕΣ'!B$54))) -> 0 | H7: =IF('1α.ΔΕΛΤΙΟ ΔΕΔΟΜΕΝΩΝ'!B7="",0,VLOOKUP('1α.ΔΕΛΤΙΟ ΔΕΔΟΜΕΝΩΝ'!B7,'CS DATA'!D$2:H$13,5,FALSE)*'1α.ΔΕΛΤΙΟ ΔΕΔΟΜΕΝΩΝ'!D7*'1α.ΔΕΛΤΙΟ ΔΕΔΟΜΕΝΩΝ'!C7*'2.ΒΑΣΙΚΕΣ ΤΙΜΕΣ'!D$70)*IF('1α.ΔΕΛΤΙΟ ΔΕΔΟΜΕΝΩΝ'!S7="",0,VLOOKUP('1α.ΔΕΛΤΙΟ ΔΕΔΟΜΕΝΩΝ'!S7,'CS DATA'!A$1:B$13,2,FALSE)) -> 0 | I7: =IF('1α.ΔΕΛΤΙΟ ΔΕΔΟΜΕΝΩΝ'!T7="",0,VLOOKUP('1α.ΔΕΛΤΙΟ ΔΕΔΟΜΕΝΩΝ'!T7,'2.ΒΑΣΙΚΕΣ ΤΙΜΕΣ'!E$64:F$74,2,FALSE)*'1α.ΔΕΛΤΙΟ ΔΕΔΟΜΕΝΩΝ'!C7)*'2.ΒΑΣΙΚΕΣ ΤΙΜΕΣ'!D$71 -> 0 | J7: =IF('1α.ΔΕΛΤΙΟ ΔΕΔΟΜΕΝΩΝ'!B7="",0,VLOOKUP('1α.ΔΕΛΤΙΟ ΔΕΔΟΜΕΝΩΝ'!B7,'2.ΒΑΣΙΚΕΣ ΤΙΜΕΣ'!A$76:B$89,2,FALSE)*'1α.ΔΕΛΤΙΟ ΔΕΔΟΜΕΝΩΝ'!C7) -> 0 | K7: 0 | N7: =IF('1α.ΔΕΛΤΙΟ ΔΕΔΟΜΕΝΩΝ'!C$23=0,0,'1β.ΜΞΔΠ'!F29*'1α.ΔΕΛΤΙΟ ΔΕΔΟΜΕΝΩΝ'!C7/'1α.ΔΕΛΤΙΟ ΔΕΔΟΜΕΝΩΝ'!C$23) -> 0
A8: 6 | B8: =IF('1α.ΔΕΛΤΙΟ ΔΕΔΟΜΕΝΩΝ'!B8="",0,IF('1α.ΔΕΛΤΙΟ ΔΕΔΟΜΕΝΩΝ'!C8>0,VLOOKUP('1α.ΔΕΛΤΙΟ ΔΕΔΟΜΕΝΩΝ'!B8,'2.ΒΑΣΙΚΕΣ ΤΙΜΕΣ'!A$6:D$18,4,FALSE)*VLOOKUP('1α.ΔΕΛΤΙΟ ΔΕΔΟΜΕΝΩΝ'!B8,'2.ΒΑΣΙΚΕΣ ΤΙΜΕΣ'!A$6:K$18,11,FALSE),0)*'1α.ΔΕΛΤΙΟ ΔΕΔΟΜΕΝΩΝ'!C8*'1α.ΔΕΛΤΙΟ ΔΕΔΟΜΕΝΩΝ'!D8) -> 0 | C8: ='1α.ΔΕΛΤΙΟ ΔΕΔΟΜΕΝΩΝ'!F8*'2.ΒΑΣΙΚΕΣ ΤΙΜΕΣ'!C$22*'2.ΒΑΣΙΚΕΣ ΤΙΜΕΣ'!D$22*'1α.ΔΕΛΤΙΟ ΔΕΔΟΜΕΝΩΝ'!C8+'1α.ΔΕΛΤΙΟ ΔΕΔΟΜΕΝΩΝ'!C8*'1α.ΔΕΛΤΙΟ ΔΕΔΟΜΕΝΩΝ'!G8*'2.ΒΑΣΙΚΕΣ ΤΙΜΕΣ'!C$25*'2.ΒΑΣΙΚΕΣ ΤΙΜΕΣ'!D$25+'1α.ΔΕΛΤΙΟ ΔΕΔΟΜΕΝΩΝ'!H8*'1α.ΔΕΛΤΙΟ ΔΕΔΟΜΕΝΩΝ'!C8*'2.ΒΑΣΙΚΕΣ ΤΙΜΕΣ'!C$27*'2.ΒΑΣΙΚΕΣ ΤΙΜΕΣ'!D$27*'1α.ΔΕΛΤΙΟ ΔΕΔΟΜΕΝΩΝ'!W8+N8 -> 0 | D8: =IF('1α.ΔΕΛΤΙΟ ΔΕΔΟΜΕΝΩΝ'!B8="",0,VLOOKUP('1α.ΔΕΛΤΙΟ ΔΕΔΟΜΕΝΩΝ'!B8,'2.ΒΑΣΙΚΕΣ ΤΙΜΕΣ'!A$36:B$51,2,FALSE)*('1α.ΔΕΛΤΙΟ ΔΕΔΟΜΕΝΩΝ'!C8-'1α.ΔΕΛΤΙΟ ΔΕΔΟΜΕΝΩΝ'!J8)) -> 0 | E8: ='2.ΒΑΣΙΚΕΣ ΤΙΜΕΣ'!D$36*0.7*('1α.ΔΕΛΤΙΟ ΔΕΔΟΜΕΝΩΝ'!C8-'1α.ΔΕΛΤΙΟ ΔΕΔΟΜΕΝΩΝ'!K8) -> 0 | F8: =IF('1α.ΔΕΛΤΙΟ ΔΕΔΟΜΕΝΩΝ'!B8="",0,VLOOKUP('1α.ΔΕΛΤΙΟ ΔΕΔΟΜΕΝΩΝ'!B8,'2.ΒΑΣΙΚΕΣ ΤΙΜΕΣ'!A$36:C$51,3,FALSE)*'1α.ΔΕΛΤΙΟ ΔΕΔΟΜΕΝΩΝ'!C8) -> 0 | G8: =(IF(OR('1α.ΔΕΛΤΙΟ ΔΕΔΟΜΕΝΩΝ'!M8="",'1α.ΔΕΛΤΙΟ ΔΕΔΟΜΕΝΩΝ'!Q8="",'1α.ΔΕΛΤΙΟ ΔΕΔΟΜΕΝΩΝ'!R8="",'1α.ΔΕΛΤΙΟ ΔΕΔΟΜΕΝΩΝ'!R8="Επιφάνεια χωρίς φυτοκάλυψη "),0,IF('1α.ΔΕΛΤΙΟ ΔΕΔΟΜΕΝΩΝ'!M8=0,0,VLOOKUP('1α.ΔΕΛΤΙΟ ΔΕΔΟΜΕΝΩΝ'!M8&'1α.ΔΕΛΤΙΟ ΔΕΔΟΜΕΝΩΝ'!Q8&'1α.ΔΕΛΤΙΟ ΔΕΔΟΜΕΝΩΝ'!R8,'PS DATA'!D:E,2,FALSE)*'1α.ΔΕΛΤΙΟ ΔΕΔΟΜΕΝΩΝ'!C8*'2.ΒΑΣΙΚΕΣ ΤΙΜΕΣ'!B$54))) -> 0 | H8: =IF('1α.ΔΕΛΤΙΟ ΔΕΔΟΜΕΝΩΝ'!B8="",0,VLOOKUP('1α.ΔΕΛΤΙΟ ΔΕΔΟΜΕΝΩΝ'!B8,'CS DATA'!D$2:H$13,5,FALSE)*'1α.ΔΕΛΤΙΟ ΔΕΔΟΜΕΝΩΝ'!D8*'1α.ΔΕΛΤΙΟ ΔΕΔΟΜΕΝΩΝ'!C8*'2.ΒΑΣΙΚΕΣ ΤΙΜΕΣ'!D$70)*IF('1α.ΔΕΛΤΙΟ ΔΕΔΟΜΕΝΩΝ'!S8="",0,VLOOKUP('1α.ΔΕΛΤΙΟ ΔΕΔΟΜΕΝΩΝ'!S8,'CS DATA'!A$1:B$13,2,FALSE)) -> 0 | I8: =IF('1α.ΔΕΛΤΙΟ ΔΕΔΟΜΕΝΩΝ'!T8="",0,VLOOKUP('1α.ΔΕΛΤΙΟ ΔΕΔΟΜΕΝΩΝ'!T8,'2.ΒΑΣΙΚΕΣ ΤΙΜΕΣ'!E$64:F$74,2,FALSE)*'1α.ΔΕΛΤΙΟ ΔΕΔΟΜΕΝΩΝ'!C8)*'2.ΒΑΣΙΚΕΣ ΤΙΜΕΣ'!D$71 -> 0 | J8: =IF('1α.ΔΕΛΤΙΟ ΔΕΔΟΜΕΝΩΝ'!B8="",0,VLOOKUP('1α.ΔΕΛΤΙΟ ΔΕΔΟΜΕΝΩΝ'!B8,'2.ΒΑΣΙΚΕΣ ΤΙΜΕΣ'!A$76:B$89,2,FALSE)*'1α.ΔΕΛΤΙΟ ΔΕΔΟΜΕΝΩΝ'!C8) -> 0 | K8: 0 | N8: =IF('1α.ΔΕΛΤΙΟ ΔΕΔΟΜΕΝΩΝ'!C$23=0,0,'1β.ΜΞΔΠ'!F30*'1α.ΔΕΛΤΙΟ ΔΕΔΟΜΕΝΩΝ'!C8/'1α.ΔΕΛΤΙΟ ΔΕΔΟΜΕΝΩΝ'!C$23) -> 0
A9: 7 | B9: =IF('1α.ΔΕΛΤΙΟ ΔΕΔΟΜΕΝΩΝ'!B9="",0,IF('1α.ΔΕΛΤΙΟ ΔΕΔΟΜΕΝΩΝ'!C9>0,VLOOKUP('1α.ΔΕΛΤΙΟ ΔΕΔΟΜΕΝΩΝ'!B9,'2.ΒΑΣΙΚΕΣ ΤΙΜΕΣ'!A$6:D$18,4,FALSE)*VLOOKUP('1α.ΔΕΛΤΙΟ ΔΕΔΟΜΕΝΩΝ'!B9,'2.ΒΑΣΙΚΕΣ ΤΙΜΕΣ'!A$6:K$18,11,FALSE),0)*'1α.ΔΕΛΤΙΟ ΔΕΔΟΜΕΝΩΝ'!C9*'1α.ΔΕΛΤΙΟ ΔΕΔΟΜΕΝΩΝ'!D9) -> 0 | C9: ='1α.ΔΕΛΤΙΟ ΔΕΔΟΜΕΝΩΝ'!F9*'2.ΒΑΣΙΚΕΣ ΤΙΜΕΣ'!C$22*'2.ΒΑΣΙΚΕΣ ΤΙΜΕΣ'!D$22*'1α.ΔΕΛΤΙΟ ΔΕΔΟΜΕΝΩΝ'!C9+'1α.ΔΕΛΤΙΟ ΔΕΔΟΜΕΝΩΝ'!C9*'1α.ΔΕΛΤΙΟ ΔΕΔΟΜΕΝΩΝ'!G9*'2.ΒΑΣΙΚΕΣ ΤΙΜΕΣ'!C$25*'2.ΒΑΣΙΚΕΣ ΤΙΜΕΣ'!D$25+'1α.ΔΕΛΤΙΟ ΔΕΔΟΜΕΝΩΝ'!H9*'1α.ΔΕΛΤΙΟ ΔΕΔΟΜΕΝΩΝ'!C9*'2.ΒΑΣΙΚΕΣ ΤΙΜΕΣ'!C$27*'2.ΒΑΣΙΚΕΣ ΤΙΜΕΣ'!D$27*'1α.ΔΕΛΤΙΟ ΔΕΔΟΜΕΝΩΝ'!W9+N9 -> 0 | D9: =IF('1α.ΔΕΛΤΙΟ ΔΕΔΟΜΕΝΩΝ'!B9="",0,VLOOKUP('1α.ΔΕΛΤΙΟ ΔΕΔΟΜΕΝΩΝ'!B9,'2.ΒΑΣΙΚΕΣ ΤΙΜΕΣ'!A$36:B$51,2,FALSE)*('1α.ΔΕΛΤΙΟ ΔΕΔΟΜΕΝΩΝ'!C9-'1α.ΔΕΛΤΙΟ ΔΕΔΟΜΕΝΩΝ'!J9)) -> 0 | E9: ='2.ΒΑΣΙΚΕΣ ΤΙΜΕΣ'!D$36*0.7*('1α.ΔΕΛΤΙΟ ΔΕΔΟΜΕΝΩΝ'!C9-'1α.ΔΕΛΤΙΟ ΔΕΔΟΜΕΝΩΝ'!K9) -> 0 | F9: =IF('1α.ΔΕΛΤΙΟ ΔΕΔΟΜΕΝΩΝ'!B9="",0,VLOOKUP('1α.ΔΕΛΤΙΟ ΔΕΔΟΜΕΝΩΝ'!B9,'2.ΒΑΣΙΚΕΣ ΤΙΜΕΣ'!A$36:C$51,3,FALSE)*'1α.ΔΕΛΤΙΟ ΔΕΔΟΜΕΝΩΝ'!C9) -> 0 | G9: =(IF(OR('1α.ΔΕΛΤΙΟ ΔΕΔΟΜΕΝΩΝ'!M9="",'1α.ΔΕΛΤΙΟ ΔΕΔΟΜΕΝΩΝ'!Q9="",'1α.ΔΕΛΤΙΟ ΔΕΔΟΜΕΝΩΝ'!R9="",'1α.ΔΕΛΤΙΟ ΔΕΔΟΜΕΝΩΝ'!R9="Επιφάνεια χωρίς φυτοκάλυψη "),0,IF('1α.ΔΕΛΤΙΟ ΔΕΔΟΜΕΝΩΝ'!M9=0,0,VLOOKUP('1α.ΔΕΛΤΙΟ ΔΕΔΟΜΕΝΩΝ'!M9&'1α.ΔΕΛΤΙΟ ΔΕΔΟΜΕΝΩΝ'!Q9&'1α.ΔΕΛΤΙΟ ΔΕΔΟΜΕΝΩΝ'!R9,'PS DATA'!D:E,2,FALSE)*'1α.ΔΕΛΤΙΟ ΔΕΔΟΜΕΝΩΝ'!C9*'2.ΒΑΣΙΚΕΣ ΤΙΜΕΣ'!B$54))) -> 0 | H9: =IF('1α.ΔΕΛΤΙΟ ΔΕΔΟΜΕΝΩΝ'!B9="",0,VLOOKUP('1α.ΔΕΛΤΙΟ ΔΕΔΟΜΕΝΩΝ'!B9,'CS DATA'!D$2:H$13,5,FALSE)*'1α.ΔΕΛΤΙΟ ΔΕΔΟΜΕΝΩΝ'!D9*'1α.ΔΕΛΤΙΟ ΔΕΔΟΜΕΝΩΝ'!C9*'2.ΒΑΣΙΚΕΣ ΤΙΜΕΣ'!D$70)*IF('1α.ΔΕΛΤΙΟ ΔΕΔΟΜΕΝΩΝ'!S9="",0,VLOOKUP('1α.ΔΕΛΤΙΟ ΔΕΔΟΜΕΝΩΝ'!S9,'CS DATA'!A$1:B$13,2,FALSE)) -> 0 | I9: =IF('1α.ΔΕΛΤΙΟ ΔΕΔΟΜΕΝΩΝ'!T9="",0,VLOOKUP('1α.ΔΕΛΤΙΟ ΔΕΔΟΜΕΝΩΝ'!T9,'2.ΒΑΣΙΚΕΣ ΤΙΜΕΣ'!E$64:F$74,2,FALSE)*'1α.ΔΕΛΤΙΟ ΔΕΔΟΜΕΝΩΝ'!C9)*'2.ΒΑΣΙΚΕΣ ΤΙΜΕΣ'!D$71 -> 0 | J9: =IF('1α.ΔΕΛΤΙΟ ΔΕΔΟΜΕΝΩΝ'!B9="",0,VLOOKUP('1α.ΔΕΛΤΙΟ ΔΕΔΟΜΕΝΩΝ'!B9,'2.ΒΑΣΙΚΕΣ ΤΙΜΕΣ'!A$76:B$89,2,FALSE)*'1α.ΔΕΛΤΙΟ ΔΕΔΟΜΕΝΩΝ'!C9) -> 0 | K9: 0 | N9: =IF('1α.ΔΕΛΤΙΟ ΔΕΔΟΜΕΝΩΝ'!C$23=0,0,'1β.ΜΞΔΠ'!F31*'1α.ΔΕΛΤΙΟ ΔΕΔΟΜΕΝΩΝ'!C9/'1α.ΔΕΛΤΙΟ ΔΕΔΟΜΕΝΩΝ'!C$23) -> 0
A10: 8 | B10: =IF('1α.ΔΕΛΤΙΟ ΔΕΔΟΜΕΝΩΝ'!B10="",0,IF('1α.ΔΕΛΤΙΟ ΔΕΔΟΜΕΝΩΝ'!C10>0,VLOOKUP('1α.ΔΕΛΤΙΟ ΔΕΔΟΜΕΝΩΝ'!B10,'2.ΒΑΣΙΚΕΣ ΤΙΜΕΣ'!A$6:D$18,4,FALSE)*VLOOKUP('1α.ΔΕΛΤΙΟ ΔΕΔΟΜΕΝΩΝ'!B10,'2.ΒΑΣΙΚΕΣ ΤΙΜΕΣ'!A$6:K$18,11,FALSE),0)*'1α.ΔΕΛΤΙΟ ΔΕΔΟΜΕΝΩΝ'!C10*'1α.ΔΕΛΤΙΟ ΔΕΔΟΜΕΝΩΝ'!D10) -> 0 | C10: ='1α.ΔΕΛΤΙΟ ΔΕΔΟΜΕΝΩΝ'!F10*'2.ΒΑΣΙΚΕΣ ΤΙΜΕΣ'!C$22*'2.ΒΑΣΙΚΕΣ ΤΙΜΕΣ'!D$22*'1α.ΔΕΛΤΙΟ ΔΕΔΟΜΕΝΩΝ'!C10+'1α.ΔΕΛΤΙΟ ΔΕΔΟΜΕΝΩΝ'!C10*'1α.ΔΕΛΤΙΟ ΔΕΔΟΜΕΝΩΝ'!G10*'2.ΒΑΣΙΚΕΣ ΤΙΜΕΣ'!C$25*'2.ΒΑΣΙΚΕΣ ΤΙΜΕΣ'!D$25+'1α.ΔΕΛΤΙΟ ΔΕΔΟΜΕΝΩΝ'!H10*'1α.ΔΕΛΤΙΟ ΔΕΔΟΜΕΝΩΝ'!C10*'2.ΒΑΣΙΚΕΣ ΤΙΜΕΣ'!C$27*'2.ΒΑΣΙΚΕΣ ΤΙΜΕΣ'!D$27*'1α.ΔΕΛΤΙΟ ΔΕΔΟΜΕΝΩΝ'!W10+N10 -> 0 | D10: =IF('1α.ΔΕΛΤΙΟ ΔΕΔΟΜΕΝΩΝ'!B10="",0,VLOOKUP('1α.ΔΕΛΤΙΟ ΔΕΔΟΜΕΝΩΝ'!B10,'2.ΒΑΣΙΚΕΣ ΤΙΜΕΣ'!A$36:B$51,2,FALSE)*('1α.ΔΕΛΤΙΟ ΔΕΔΟΜΕΝΩΝ'!C10-'1α.ΔΕΛΤΙΟ ΔΕΔΟΜΕΝΩΝ'!J10)) -> 0 | E10: ='2.ΒΑΣΙΚΕΣ ΤΙΜΕΣ'!D$36*0.7*('1α.ΔΕΛΤΙΟ ΔΕΔΟΜΕΝΩΝ'!C10-'1α.ΔΕΛΤΙΟ ΔΕΔΟΜΕΝΩΝ'!K10) -> 0 | F10: =IF('1α.ΔΕΛΤΙΟ ΔΕΔΟΜΕΝΩΝ'!B10="",0,VLOOKUP('1α.ΔΕΛΤΙΟ ΔΕΔΟΜΕΝΩΝ'!B10,'2.ΒΑΣΙΚΕΣ ΤΙΜΕΣ'!A$36:C$51,3,FALSE)*'1α.ΔΕΛΤΙΟ ΔΕΔΟΜΕΝΩΝ'!C10) -> 0 | G10: =(IF(OR('1α.ΔΕΛΤΙΟ ΔΕΔΟΜΕΝΩΝ'!M10="",'1α.ΔΕΛΤΙΟ ΔΕΔΟΜΕΝΩΝ'!Q10="",'1α.ΔΕΛΤΙΟ ΔΕΔΟΜΕΝΩΝ'!R10="",'1α.ΔΕΛΤΙΟ ΔΕΔΟΜΕΝΩΝ'!R10="Επιφάνεια χωρίς φυτοκάλυψη "),0,IF('1α.ΔΕΛΤΙΟ ΔΕΔΟΜΕΝΩΝ'!M10=0,0,VLOOKUP('1α.ΔΕΛΤΙΟ ΔΕΔΟΜΕΝΩΝ'!M10&'1α.ΔΕΛΤΙΟ ΔΕΔΟΜΕΝΩΝ'!Q10&'1α.ΔΕΛΤΙΟ ΔΕΔΟΜΕΝΩΝ'!R10,'PS DATA'!D:E,2,FALSE)*'1α.ΔΕΛΤΙΟ ΔΕΔΟΜΕΝΩΝ'!C10*'2.ΒΑΣΙΚΕΣ ΤΙΜΕΣ'!B$54))) -> 0 | H10: =IF('1α.ΔΕΛΤΙΟ ΔΕΔΟΜΕΝΩΝ'!B10="",0,VLOOKUP('1α.ΔΕΛΤΙΟ ΔΕΔΟΜΕΝΩΝ'!B10,'CS DATA'!D$2:H$13,5,FALSE)*'1α.ΔΕΛΤΙΟ ΔΕΔΟΜΕΝΩΝ'!D10*'1α.ΔΕΛΤΙΟ ΔΕΔΟΜΕΝΩΝ'!C10*'2.ΒΑΣΙΚΕΣ ΤΙΜΕΣ'!D$70)*IF('1α.ΔΕΛΤΙΟ ΔΕΔΟΜΕΝΩΝ'!S10="",0,VLOOKUP('1α.ΔΕΛΤΙΟ ΔΕΔΟΜΕΝΩΝ'!S10,'CS DATA'!A$1:B$13,2,FALSE)) -> 0 | I10: =IF('1α.ΔΕΛΤΙΟ ΔΕΔΟΜΕΝΩΝ'!T10="",0,VLOOKUP('1α.ΔΕΛΤΙΟ ΔΕΔΟΜΕΝΩΝ'!T10,'2.ΒΑΣΙΚΕΣ ΤΙΜΕΣ'!E$64:F$74,2,FALSE)*'1α.ΔΕΛΤΙΟ ΔΕΔΟΜΕΝΩΝ'!C10)*'2.ΒΑΣΙΚΕΣ ΤΙΜΕΣ'!D$71 -> 0 | J10: =IF('1α.ΔΕΛΤΙΟ ΔΕΔΟΜΕΝΩΝ'!B10="",0,VLOOKUP('1α.ΔΕΛΤΙΟ ΔΕΔΟΜΕΝΩΝ'!B10,'2.ΒΑΣΙΚΕΣ ΤΙΜΕΣ'!A$76:B$89,2,FALSE)*'1α.ΔΕΛΤΙΟ ΔΕΔΟΜΕΝΩΝ'!C10) -> 0 | K10: 0 | N10: =IF('1α.ΔΕΛΤΙΟ ΔΕΔΟΜΕΝΩΝ'!C$23=0,0,'1β.ΜΞΔΠ'!F32*'1α.ΔΕΛΤΙΟ ΔΕΔΟΜΕΝΩΝ'!C10/'1α.ΔΕΛΤΙΟ ΔΕΔΟΜΕΝΩΝ'!C$23) -> 0
A11: 9 | B11: =IF('1α.ΔΕΛΤΙΟ ΔΕΔΟΜΕΝΩΝ'!B11="",0,IF('1α.ΔΕΛΤΙΟ ΔΕΔΟΜΕΝΩΝ'!C11>0,VLOOKUP('1α.ΔΕΛΤΙΟ ΔΕΔΟΜΕΝΩΝ'!B11,'2.ΒΑΣΙΚΕΣ ΤΙΜΕΣ'!A$6:D$18,4,FALSE)*VLOOKUP('1α.ΔΕΛΤΙΟ ΔΕΔΟΜΕΝΩΝ'!B11,'2.ΒΑΣΙΚΕΣ ΤΙΜΕΣ'!A$6:K$18,11,FALSE),0)*'1α.ΔΕΛΤΙΟ ΔΕΔΟΜΕΝΩΝ'!C11*'1α.ΔΕΛΤΙΟ ΔΕΔΟΜΕΝΩΝ'!D11) -> 0 | C11: ='1α.ΔΕΛΤΙΟ ΔΕΔΟΜΕΝΩΝ'!F11*'2.ΒΑΣΙΚΕΣ ΤΙΜΕΣ'!C$22*'2.ΒΑΣΙΚΕΣ ΤΙΜΕΣ'!D$22*'1α.ΔΕΛΤΙΟ ΔΕΔΟΜΕΝΩΝ'!C11+'1α.ΔΕΛΤΙΟ ΔΕΔΟΜΕΝΩΝ'!C11*'1α.ΔΕΛΤΙΟ ΔΕΔΟΜΕΝΩΝ'!G11*'2.ΒΑΣΙΚΕΣ ΤΙΜΕΣ'!C$25*'2.ΒΑΣΙΚΕΣ ΤΙΜΕΣ'!D$25+'1α.ΔΕΛΤΙΟ ΔΕΔΟΜΕΝΩΝ'!H11*'1α.ΔΕΛΤΙΟ ΔΕΔΟΜΕΝΩΝ'!C11*'2.ΒΑΣΙΚΕΣ ΤΙΜΕΣ'!C$27*'2.ΒΑΣΙΚΕΣ ΤΙΜΕΣ'!D$27*'1α.ΔΕΛΤΙΟ ΔΕΔΟΜΕΝΩΝ'!W11+N11 -> 0 | D11: =IF('1α.ΔΕΛΤΙΟ ΔΕΔΟΜΕΝΩΝ'!B11="",0,VLOOKUP('1α.ΔΕΛΤΙΟ ΔΕΔΟΜΕΝΩΝ'!B11,'2.ΒΑΣΙΚΕΣ ΤΙΜΕΣ'!A$36:B$51,2,FALSE)*('1α.ΔΕΛΤΙΟ ΔΕΔΟΜΕΝΩΝ'!C11-'1α.ΔΕΛΤΙΟ ΔΕΔΟΜΕΝΩΝ'!J11)) -> 0 | E11: ='2.ΒΑΣΙΚΕΣ ΤΙΜΕΣ'!D$36*0.7*('1α.ΔΕΛΤΙΟ ΔΕΔΟΜΕΝΩΝ'!C11-'1α.ΔΕΛΤΙΟ ΔΕΔΟΜΕΝΩΝ'!K11) -> 0 | F11: =IF('1α.ΔΕΛΤΙΟ ΔΕΔΟΜΕΝΩΝ'!B11="",0,VLOOKUP('1α.ΔΕΛΤΙΟ ΔΕΔΟΜΕΝΩΝ'!B11,'2.ΒΑΣΙΚΕΣ ΤΙΜΕΣ'!A$36:C$51,3,FALSE)*'1α.ΔΕΛΤΙΟ ΔΕΔΟΜΕΝΩΝ'!C11) -> 0 | G11: =(IF(OR('1α.ΔΕΛΤΙΟ ΔΕΔΟΜΕΝΩΝ'!M11="",'1α.ΔΕΛΤΙΟ ΔΕΔΟΜΕΝΩΝ'!Q11="",'1α.ΔΕΛΤΙΟ ΔΕΔΟΜΕΝΩΝ'!R11="",'1α.ΔΕΛΤΙΟ ΔΕΔΟΜΕΝΩΝ'!R11="Επιφάνεια χωρίς φυτοκάλυψη "),0,IF('1α.ΔΕΛΤΙΟ ΔΕΔΟΜΕΝΩΝ'!M11=0,0,VLOOKUP('1α.ΔΕΛΤΙΟ ΔΕΔΟΜΕΝΩΝ'!M11&'1α.ΔΕΛΤΙΟ ΔΕΔΟΜΕΝΩΝ'!Q11&'1α.ΔΕΛΤΙΟ ΔΕΔΟΜΕΝΩΝ'!R11,'PS DATA'!D:E,2,FALSE)*'1α.ΔΕΛΤΙΟ ΔΕΔΟΜΕΝΩΝ'!C11*'2.ΒΑΣΙΚΕΣ ΤΙΜΕΣ'!B$54))) -> 0 | H11: =IF('1α.ΔΕΛΤΙΟ ΔΕΔΟΜΕΝΩΝ'!B11="",0,VLOOKUP('1α.ΔΕΛΤΙΟ ΔΕΔΟΜΕΝΩΝ'!B11,'CS DATA'!D$2:H$13,5,FALSE)*'1α.ΔΕΛΤΙΟ ΔΕΔΟΜΕΝΩΝ'!D11*'1α.ΔΕΛΤΙΟ ΔΕΔΟΜΕΝΩΝ'!C11*'2.ΒΑΣΙΚΕΣ ΤΙΜΕΣ'!D$70)*IF('1α.ΔΕΛΤΙΟ ΔΕΔΟΜΕΝΩΝ'!S11="",0,VLOOKUP('1α.ΔΕΛΤΙΟ ΔΕΔΟΜΕΝΩΝ'!S11,'CS DATA'!A$1:B$13,2,FALSE)) -> 0 | I11: =IF('1α.ΔΕΛΤΙΟ ΔΕΔΟΜΕΝΩΝ'!T11="",0,VLOOKUP('1α.ΔΕΛΤΙΟ ΔΕΔΟΜΕΝΩΝ'!T11,'2.ΒΑΣΙΚΕΣ ΤΙΜΕΣ'!E$64:F$74,2,FALSE)*'1α.ΔΕΛΤΙΟ ΔΕΔΟΜΕΝΩΝ'!C11)*'2.ΒΑΣΙΚΕΣ ΤΙΜΕΣ'!D$71 -> 0 | J11: =IF('1α.ΔΕΛΤΙΟ ΔΕΔΟΜΕΝΩΝ'!B11="",0,VLOOKUP('1α.ΔΕΛΤΙΟ ΔΕΔΟΜΕΝΩΝ'!B11,'2.ΒΑΣΙΚΕΣ ΤΙΜΕΣ'!A$76:B$89,2,FALSE)*'1α.ΔΕΛΤΙΟ ΔΕΔΟΜΕΝΩΝ'!C11) -> 0 | K11: 0 | N11: =IF('1α.ΔΕΛΤΙΟ ΔΕΔΟΜΕΝΩΝ'!C$23=0,0,'1β.ΜΞΔΠ'!F33*'1α.ΔΕΛΤΙΟ ΔΕΔΟΜΕΝΩΝ'!C11/'1α.ΔΕΛΤΙΟ ΔΕΔΟΜΕΝΩΝ'!C$23) -> 0
A12: 10 | B12: =IF('1α.ΔΕΛΤΙΟ ΔΕΔΟΜΕΝΩΝ'!B12="",0,IF('1α.ΔΕΛΤΙΟ ΔΕΔΟΜΕΝΩΝ'!C12>0,VLOOKUP('1α.ΔΕΛΤΙΟ ΔΕΔΟΜΕΝΩΝ'!B12,'2.ΒΑΣΙΚΕΣ ΤΙΜΕΣ'!A$6:D$18,4,FALSE)*VLOOKUP('1α.ΔΕΛΤΙΟ ΔΕΔΟΜΕΝΩΝ'!B12,'2.ΒΑΣΙΚΕΣ ΤΙΜΕΣ'!A$6:K$18,11,FALSE),0)*'1α.ΔΕΛΤΙΟ ΔΕΔΟΜΕΝΩΝ'!C12*'1α.ΔΕΛΤΙΟ ΔΕΔΟΜΕΝΩΝ'!D12) -> 0 | C12: ='1α.ΔΕΛΤΙΟ ΔΕΔΟΜΕΝΩΝ'!F12*'2.ΒΑΣΙΚΕΣ ΤΙΜΕΣ'!C$22*'2.ΒΑΣΙΚΕΣ ΤΙΜΕΣ'!D$22*'1α.ΔΕΛΤΙΟ ΔΕΔΟΜΕΝΩΝ'!C12+'1α.ΔΕΛΤΙΟ ΔΕΔΟΜΕΝΩΝ'!C12*'1α.ΔΕΛΤΙΟ ΔΕΔΟΜΕΝΩΝ'!G12*'2.ΒΑΣΙΚΕΣ ΤΙΜΕΣ'!C$25*'2.ΒΑΣΙΚΕΣ ΤΙΜΕΣ'!D$25+'1α.ΔΕΛΤΙΟ ΔΕΔΟΜΕΝΩΝ'!H12*'1α.ΔΕΛΤΙΟ ΔΕΔΟΜΕΝΩΝ'!C12*'2.ΒΑΣΙΚΕΣ ΤΙΜΕΣ'!C$27*'2.ΒΑΣΙΚΕΣ ΤΙΜΕΣ'!D$27*'1α.ΔΕΛΤΙΟ ΔΕΔΟΜΕΝΩΝ'!W12+N12 -> 0 | D12: =IF('1α.ΔΕΛΤΙΟ ΔΕΔΟΜΕΝΩΝ'!B12="",0,VLOOKUP('1α.ΔΕΛΤΙΟ ΔΕΔΟΜΕΝΩΝ'!B12,'2.ΒΑΣΙΚΕΣ ΤΙΜΕΣ'!A$36:B$51,2,FALSE)*('1α.ΔΕΛΤΙΟ ΔΕΔΟΜΕΝΩΝ'!C12-'1α.ΔΕΛΤΙΟ ΔΕΔΟΜΕΝΩΝ'!J12)) -> 0 | E12: ='2.ΒΑΣΙΚΕΣ ΤΙΜΕΣ'!D$36*0.7*('1α.ΔΕΛΤΙΟ ΔΕΔΟΜΕΝΩΝ'!C12-'1α.ΔΕΛΤΙΟ ΔΕΔΟΜΕΝΩΝ'!K12) -> 0 | F12: =IF('1α.ΔΕΛΤΙΟ ΔΕΔΟΜΕΝΩΝ'!B12="",0,VLOOKUP('1α.ΔΕΛΤΙΟ ΔΕΔΟΜΕΝΩΝ'!B12,'2.ΒΑΣΙΚΕΣ ΤΙΜΕΣ'!A$36:C$51,3,FALSE)*'1α.ΔΕΛΤΙΟ ΔΕΔΟΜΕΝΩΝ'!C12) -> 0 | G12: =(IF(OR('1α.ΔΕΛΤΙΟ ΔΕΔΟΜΕΝΩΝ'!M12="",'1α.ΔΕΛΤΙΟ ΔΕΔΟΜΕΝΩΝ'!Q12="",'1α.ΔΕΛΤΙΟ ΔΕΔΟΜΕΝΩΝ'!R12="",'1α.ΔΕΛΤΙΟ ΔΕΔΟΜΕΝΩΝ'!R12="Επιφάνεια χωρίς φυτοκάλυψη "),0,IF('1α.ΔΕΛΤΙΟ ΔΕΔΟΜΕΝΩΝ'!M12=0,0,VLOOKUP('1α.ΔΕΛΤΙΟ ΔΕΔΟΜΕΝΩΝ'!M12&'1α.ΔΕΛΤΙΟ ΔΕΔΟΜΕΝΩΝ'!Q12&'1α.ΔΕΛΤΙΟ ΔΕΔΟΜΕΝΩΝ'!R12,'PS DATA'!D:E,2,FALSE)*'1α.ΔΕΛΤΙΟ ΔΕΔΟΜΕΝΩΝ'!C12*'2.ΒΑΣΙΚΕΣ ΤΙΜΕΣ'!B$54))) -> 0 | H12: =IF('1α.ΔΕΛΤΙΟ ΔΕΔΟΜΕΝΩΝ'!B12="",0,VLOOKUP('1α.ΔΕΛΤΙΟ ΔΕΔΟΜΕΝΩΝ'!B12,'CS DATA'!D$2:H$13,5,FALSE)*'1α.ΔΕΛΤΙΟ ΔΕΔΟΜΕΝΩΝ'!D12*'1α.ΔΕΛΤΙΟ ΔΕΔΟΜΕΝΩΝ'!C12*'2.ΒΑΣΙΚΕΣ ΤΙΜΕΣ'!D$70)*IF('1α.ΔΕΛΤΙΟ ΔΕΔΟΜΕΝΩΝ'!S12="",0,VLOOKUP('1α.ΔΕΛΤΙΟ ΔΕΔΟΜΕΝΩΝ'!S12,'CS DATA'!A$1:B$13,2,FALSE)) -> 0 | I12: =IF('1α.ΔΕΛΤΙΟ ΔΕΔΟΜΕΝΩΝ'!T12="",0,VLOOKUP('1α.ΔΕΛΤΙΟ ΔΕΔΟΜΕΝΩΝ'!T12,'2.ΒΑΣΙΚΕΣ ΤΙΜΕΣ'!E$64:F$74,2,FALSE)*'1α.ΔΕΛΤΙΟ ΔΕΔΟΜΕΝΩΝ'!C12)*'2.ΒΑΣΙΚΕΣ ΤΙΜΕΣ'!D$71 -> 0 | J12: =IF('1α.ΔΕΛΤΙΟ ΔΕΔΟΜΕΝΩΝ'!B12="",0,VLOOKUP('1α.ΔΕΛΤΙΟ ΔΕΔΟΜΕΝΩΝ'!B12,'2.ΒΑΣΙΚΕΣ ΤΙΜΕΣ'!A$76:B$89,2,FALSE)*'1α.ΔΕΛΤΙΟ ΔΕΔΟΜΕΝΩΝ'!C12) -> 0 | K12: 0 | N12: =IF('1α.ΔΕΛΤΙΟ ΔΕΔΟΜΕΝΩΝ'!C$23=0,0,'1β.ΜΞΔΠ'!F34*'1α.ΔΕΛΤΙΟ ΔΕΔΟΜΕΝΩΝ'!C12/'1α.ΔΕΛΤΙΟ ΔΕΔΟΜΕΝΩΝ'!C$23) -> 0
A13: 11 | B13: =IF('1α.ΔΕΛΤΙΟ ΔΕΔΟΜΕΝΩΝ'!B13="",0,IF('1α.ΔΕΛΤΙΟ ΔΕΔΟΜΕΝΩΝ'!C13>0,VLOOKUP('1α.ΔΕΛΤΙΟ ΔΕΔΟΜΕΝΩΝ'!B13,'2.ΒΑΣΙΚΕΣ ΤΙΜΕΣ'!A$6:D$18,4,FALSE)*VLOOKUP('1α.ΔΕΛΤΙΟ ΔΕΔΟΜΕΝΩΝ'!B13,'2.ΒΑΣΙΚΕΣ ΤΙΜΕΣ'!A$6:K$18,11,FALSE),0)*'1α.ΔΕΛΤΙΟ ΔΕΔΟΜΕΝΩΝ'!C13*'1α.ΔΕΛΤΙΟ ΔΕΔΟΜΕΝΩΝ'!D13) -> 0 | C13: ='1α.ΔΕΛΤΙΟ ΔΕΔΟΜΕΝΩΝ'!F13*'2.ΒΑΣΙΚΕΣ ΤΙΜΕΣ'!C$22*'2.ΒΑΣΙΚΕΣ ΤΙΜΕΣ'!D$22*'1α.ΔΕΛΤΙΟ ΔΕΔΟΜΕΝΩΝ'!C13+'1α.ΔΕΛΤΙΟ ΔΕΔΟΜΕΝΩΝ'!C13*'1α.ΔΕΛΤΙΟ ΔΕΔΟΜΕΝΩΝ'!G13*'2.ΒΑΣΙΚΕΣ ΤΙΜΕΣ'!C$25*'2.ΒΑΣΙΚΕΣ ΤΙΜΕΣ'!D$25+'1α.ΔΕΛΤΙΟ ΔΕΔΟΜΕΝΩΝ'!H13*'1α.ΔΕΛΤΙΟ ΔΕΔΟΜΕΝΩΝ'!C13*'2.ΒΑΣΙΚΕΣ ΤΙΜΕΣ'!C$27*'2.ΒΑΣΙΚΕΣ ΤΙΜΕΣ'!D$27*'1α.ΔΕΛΤΙΟ ΔΕΔΟΜΕΝΩΝ'!W13+N13 -> 0 | D13: =IF('1α.ΔΕΛΤΙΟ ΔΕΔΟΜΕΝΩΝ'!B13="",0,VLOOKUP('1α.ΔΕΛΤΙΟ ΔΕΔΟΜΕΝΩΝ'!B13,'2.ΒΑΣΙΚΕΣ ΤΙΜΕΣ'!A$36:B$51,2,FALSE)*('1α.ΔΕΛΤΙΟ ΔΕΔΟΜΕΝΩΝ'!C13-'1α.ΔΕΛΤΙΟ ΔΕΔΟΜΕΝΩΝ'!J13)) -> 0 | E13: ='2.ΒΑΣΙΚΕΣ ΤΙΜΕΣ'!D$36*0.7*('1α.ΔΕΛΤΙΟ ΔΕΔΟΜΕΝΩΝ'!C13-'1α.ΔΕΛΤΙΟ ΔΕΔΟΜΕΝΩΝ'!K13) -> 0 | F13: =IF('1α.ΔΕΛΤΙΟ ΔΕΔΟΜΕΝΩΝ'!B13="",0,VLOOKUP('1α.ΔΕΛΤΙΟ ΔΕΔΟΜΕΝΩΝ'!B13,'2.ΒΑΣΙΚΕΣ ΤΙΜΕΣ'!A$36:C$51,3,FALSE)*'1α.ΔΕΛΤΙΟ ΔΕΔΟΜΕΝΩΝ'!C13) -> 0 | G13: =(IF(OR('1α.ΔΕΛΤΙΟ ΔΕΔΟΜΕΝΩΝ'!M13="",'1α.ΔΕΛΤΙΟ ΔΕΔΟΜΕΝΩΝ'!Q13="",'1α.ΔΕΛΤΙΟ ΔΕΔΟΜΕΝΩΝ'!R13="",'1α.ΔΕΛΤΙΟ ΔΕΔΟΜΕΝΩΝ'!R13="Επιφάνεια χωρίς φυτοκάλυψη "),0,IF('1α.ΔΕΛΤΙΟ ΔΕΔΟΜΕΝΩΝ'!M13=0,0,VLOOKUP('1α.ΔΕΛΤΙΟ ΔΕΔΟΜΕΝΩΝ'!M13&'1α.ΔΕΛΤΙΟ ΔΕΔΟΜΕΝΩΝ'!Q13&'1α.ΔΕΛΤΙΟ ΔΕΔΟΜΕΝΩΝ'!R13,'PS DATA'!D:E,2,FALSE)*'1α.ΔΕΛΤΙΟ ΔΕΔΟΜΕΝΩΝ'!C13*'2.ΒΑΣΙΚΕΣ ΤΙΜΕΣ'!B$54))) -> 0 | H13: =IF('1α.ΔΕΛΤΙΟ ΔΕΔΟΜΕΝΩΝ'!B13="",0,VLOOKUP('1α.ΔΕΛΤΙΟ ΔΕΔΟΜΕΝΩΝ'!B13,'CS DATA'!D$2:H$13,5,FALSE)*'1α.ΔΕΛΤΙΟ ΔΕΔΟΜΕΝΩΝ'!D13*'1α.ΔΕΛΤΙΟ ΔΕΔΟΜΕΝΩΝ'!C13*'2.ΒΑΣΙΚΕΣ ΤΙΜΕΣ'!D$70)*IF('1α.ΔΕΛΤΙΟ ΔΕΔΟΜΕΝΩΝ'!S13="",0,VLOOKUP('1α.ΔΕΛΤΙΟ ΔΕΔΟΜΕΝΩΝ'!S13,'CS DATA'!A$1:B$13,2,FALSE)) -> 0 | I13: =IF('1α.ΔΕΛΤΙΟ ΔΕΔΟΜΕΝΩΝ'!T13="",0,VLOOKUP('1α.ΔΕΛΤΙΟ ΔΕΔΟΜΕΝΩΝ'!T13,'2.ΒΑΣΙΚΕΣ ΤΙΜΕΣ'!E$64:F$74,2,FALSE)*'1α.ΔΕΛΤΙΟ ΔΕΔΟΜΕΝΩΝ'!C13)*'2.ΒΑΣΙΚΕΣ ΤΙΜΕΣ'!D$71 -> 0 | J13: =IF('1α.ΔΕΛΤΙΟ ΔΕΔΟΜΕΝΩΝ'!B13="",0,VLOOKUP('1α.ΔΕΛΤΙΟ ΔΕΔΟΜΕΝΩΝ'!B13,'2.ΒΑΣΙΚΕΣ ΤΙΜΕΣ'!A$76:B$89,2,FALSE)*'1α.ΔΕΛΤΙΟ ΔΕΔΟΜΕΝΩΝ'!C13) -> 0 | K13: 0 | N13: =IF('1α.ΔΕΛΤΙΟ ΔΕΔΟΜΕΝΩΝ'!C$23=0,0,'1β.ΜΞΔΠ'!F35*'1α.ΔΕΛΤΙΟ ΔΕΔΟΜΕΝΩΝ'!C13/'1α.ΔΕΛΤΙΟ ΔΕΔΟΜΕΝΩΝ'!C$23) -> 0
A14: 12 | B14: =IF('1α.ΔΕΛΤΙΟ ΔΕΔΟΜΕΝΩΝ'!B14="",0,IF('1α.ΔΕΛΤΙΟ ΔΕΔΟΜΕΝΩΝ'!C14>0,VLOOKUP('1α.ΔΕΛΤΙΟ ΔΕΔΟΜΕΝΩΝ'!B14,'2.ΒΑΣΙΚΕΣ ΤΙΜΕΣ'!A$6:D$18,4,FALSE)*VLOOKUP('1α.ΔΕΛΤΙΟ ΔΕΔΟΜΕΝΩΝ'!B14,'2.ΒΑΣΙΚΕΣ ΤΙΜΕΣ'!A$6:K$18,11,FALSE),0)*'1α.ΔΕΛΤΙΟ ΔΕΔΟΜΕΝΩΝ'!C14*'1α.ΔΕΛΤΙΟ ΔΕΔΟΜΕΝΩΝ'!D14) -> 0 | C14: ='1α.ΔΕΛΤΙΟ ΔΕΔΟΜΕΝΩΝ'!F14*'2.ΒΑΣΙΚΕΣ ΤΙΜΕΣ'!C$22*'2.ΒΑΣΙΚΕΣ ΤΙΜΕΣ'!D$22*'1α.ΔΕΛΤΙΟ ΔΕΔΟΜΕΝΩΝ'!C14+'1α.ΔΕΛΤΙΟ ΔΕΔΟΜΕΝΩΝ'!C14*'1α.ΔΕΛΤΙΟ ΔΕΔΟΜΕΝΩΝ'!G14*'2.ΒΑΣΙΚΕΣ ΤΙΜΕΣ'!C$25*'2.ΒΑΣΙΚΕΣ ΤΙΜΕΣ'!D$25+'1α.ΔΕΛΤΙΟ ΔΕΔΟΜΕΝΩΝ'!H14*'1α.ΔΕΛΤΙΟ ΔΕΔΟΜΕΝΩΝ'!C14*'2.ΒΑΣΙΚΕΣ ΤΙΜΕΣ'!C$27*'2.ΒΑΣΙΚΕΣ ΤΙΜΕΣ'!D$27*'1α.ΔΕΛΤΙΟ ΔΕΔΟΜΕΝΩΝ'!W14+N14 -> 0 | D14: =IF('1α.ΔΕΛΤΙΟ ΔΕΔΟΜΕΝΩΝ'!B14="",0,VLOOKUP('1α.ΔΕΛΤΙΟ ΔΕΔΟΜΕΝΩΝ'!B14,'2.ΒΑΣΙΚΕΣ ΤΙΜΕΣ'!A$36:B$51,2,FALSE)*('1α.ΔΕΛΤΙΟ ΔΕΔΟΜΕΝΩΝ'!C14-'1α.ΔΕΛΤΙΟ ΔΕΔΟΜΕΝΩΝ'!J14)) -> 0 | E14: ='2.ΒΑΣΙΚΕΣ ΤΙΜΕΣ'!D$36*0.7*('1α.ΔΕΛΤΙΟ ΔΕΔΟΜΕΝΩΝ'!C14-'1α.ΔΕΛΤΙΟ ΔΕΔΟΜΕΝΩΝ'!K14) -> 0 | F14: =IF('1α.ΔΕΛΤΙΟ ΔΕΔΟΜΕΝΩΝ'!B14="",0,VLOOKUP('1α.ΔΕΛΤΙΟ ΔΕΔΟΜΕΝΩΝ'!B14,'2.ΒΑΣΙΚΕΣ ΤΙΜΕΣ'!A$36:C$51,3,FALSE)*'1α.ΔΕΛΤΙΟ ΔΕΔΟΜΕΝΩΝ'!C14) -> 0 | G14: =(IF(OR('1α.ΔΕΛΤΙΟ ΔΕΔΟΜΕΝΩΝ'!M14="",'1α.ΔΕΛΤΙΟ ΔΕΔΟΜΕΝΩΝ'!Q14="",'1α.ΔΕΛΤΙΟ ΔΕΔΟΜΕΝΩΝ'!R14="",'1α.ΔΕΛΤΙΟ ΔΕΔΟΜΕΝΩΝ'!R14="Επιφάνεια χωρίς φυτοκάλυψη "),0,IF('1α.ΔΕΛΤΙΟ ΔΕΔΟΜΕΝΩΝ'!M14=0,0,VLOOKUP('1α.ΔΕΛΤΙΟ ΔΕΔΟΜΕΝΩΝ'!M14&'1α.ΔΕΛΤΙΟ ΔΕΔΟΜΕΝΩΝ'!Q14&'1α.ΔΕΛΤΙΟ ΔΕΔΟΜΕΝΩΝ'!R14,'PS DATA'!D:E,2,FALSE)*'1α.ΔΕΛΤΙΟ ΔΕΔΟΜΕΝΩΝ'!C14*'2.ΒΑΣΙΚΕΣ ΤΙΜΕΣ'!B$54))) -> 0 | H14: =IF('1α.ΔΕΛΤΙΟ ΔΕΔΟΜΕΝΩΝ'!B14="",0,VLOOKUP('1α.ΔΕΛΤΙΟ ΔΕΔΟΜΕΝΩΝ'!B14,'CS DATA'!D$2:H$13,5,FALSE)*'1α.ΔΕΛΤΙΟ ΔΕΔΟΜΕΝΩΝ'!D14*'1α.ΔΕΛΤΙΟ ΔΕΔΟΜΕΝΩΝ'!C14*'2.ΒΑΣΙΚΕΣ ΤΙΜΕΣ'!D$70)*IF('1α.ΔΕΛΤΙΟ ΔΕΔΟΜΕΝΩΝ'!S14="",0,VLOOKUP('1α.ΔΕΛΤΙΟ ΔΕΔΟΜΕΝΩΝ'!S14,'CS DATA'!A$1:B$13,2,FALSE)) -> 0 | I14: =IF('1α.ΔΕΛΤΙΟ ΔΕΔΟΜΕΝΩΝ'!T14="",0,VLOOKUP('1α.ΔΕΛΤΙΟ ΔΕΔΟΜΕΝΩΝ'!T14,'2.ΒΑΣΙΚΕΣ ΤΙΜΕΣ'!E$64:F$74,2,FALSE)*'1α.ΔΕΛΤΙΟ ΔΕΔΟΜΕΝΩΝ'!C14)*'2.ΒΑΣΙΚΕΣ ΤΙΜΕΣ'!D$71 -> 0 | J14: =IF('1α.ΔΕΛΤΙΟ ΔΕΔΟΜΕΝΩΝ'!B14="",0,VLOOKUP('1α.ΔΕΛΤΙΟ ΔΕΔΟΜΕΝΩΝ'!B14,'2.ΒΑΣΙΚΕΣ ΤΙΜΕΣ'!A$76:B$89,2,FALSE)*'1α.ΔΕΛΤΙΟ ΔΕΔΟΜΕΝΩΝ'!C14) -> 0 | K14: 0 | N14: =IF('1α.ΔΕΛΤΙΟ ΔΕΔΟΜΕΝΩΝ'!C$23=0,0,'1β.ΜΞΔΠ'!F36*'1α.ΔΕΛΤΙΟ ΔΕΔΟΜΕΝΩΝ'!C14/'1α.ΔΕΛΤΙΟ ΔΕΔΟΜΕΝΩΝ'!C$23) -> 0
A15: 13 | B15: =IF('1α.ΔΕΛΤΙΟ ΔΕΔΟΜΕΝΩΝ'!B15="",0,IF('1α.ΔΕΛΤΙΟ ΔΕΔΟΜΕΝΩΝ'!C15>0,VLOOKUP('1α.ΔΕΛΤΙΟ ΔΕΔΟΜΕΝΩΝ'!B15,'2.ΒΑΣΙΚΕΣ ΤΙΜΕΣ'!A$6:D$18,4,FALSE)*VLOOKUP('1α.ΔΕΛΤΙΟ ΔΕΔΟΜΕΝΩΝ'!B15,'2.ΒΑΣΙΚΕΣ ΤΙΜΕΣ'!A$6:K$18,11,FALSE),0)*'1α.ΔΕΛΤΙΟ ΔΕΔΟΜΕΝΩΝ'!C15*'1α.ΔΕΛΤΙΟ ΔΕΔΟΜΕΝΩΝ'!D15) -> 0 | C15: ='1α.ΔΕΛΤΙΟ ΔΕΔΟΜΕΝΩΝ'!F15*'2.ΒΑΣΙΚΕΣ ΤΙΜΕΣ'!C$22*'2.ΒΑΣΙΚΕΣ ΤΙΜΕΣ'!D$22*'1α.ΔΕΛΤΙΟ ΔΕΔΟΜΕΝΩΝ'!C15+'1α.ΔΕΛΤΙΟ ΔΕΔΟΜΕΝΩΝ'!C15*'1α.ΔΕΛΤΙΟ ΔΕΔΟΜΕΝΩΝ'!G15*'2.ΒΑΣΙΚΕΣ ΤΙΜΕΣ'!C$25*'2.ΒΑΣΙΚΕΣ ΤΙΜΕΣ'!D$25+'1α.ΔΕΛΤΙΟ ΔΕΔΟΜΕΝΩΝ'!H15*'1α.ΔΕΛΤΙΟ ΔΕΔΟΜΕΝΩΝ'!C15*'2.ΒΑΣΙΚΕΣ ΤΙΜΕΣ'!C$27*'2.ΒΑΣΙΚΕΣ ΤΙΜΕΣ'!D$27*'1α.ΔΕΛΤΙΟ ΔΕΔΟΜΕΝΩΝ'!W15+N15 -> 0 | D15: =IF('1α.ΔΕΛΤΙΟ ΔΕΔΟΜΕΝΩΝ'!B15="",0,VLOOKUP('1α.ΔΕΛΤΙΟ ΔΕΔΟΜΕΝΩΝ'!B15,'2.ΒΑΣΙΚΕΣ ΤΙΜΕΣ'!A$36:B$51,2,FALSE)*('1α.ΔΕΛΤΙΟ ΔΕΔΟΜΕΝΩΝ'!C15-'1α.ΔΕΛΤΙΟ ΔΕΔΟΜΕΝΩΝ'!J15)) -> 0 | E15: ='2.ΒΑΣΙΚΕΣ ΤΙΜΕΣ'!D$36*0.7*('1α.ΔΕΛΤΙΟ ΔΕΔΟΜΕΝΩΝ'!C15-'1α.ΔΕΛΤΙΟ ΔΕΔΟΜΕΝΩΝ'!K15) -> 0 | F15: =IF('1α.ΔΕΛΤΙΟ ΔΕΔΟΜΕΝΩΝ'!B15="",0,VLOOKUP('1α.ΔΕΛΤΙΟ ΔΕΔΟΜΕΝΩΝ'!B15,'2.ΒΑΣΙΚΕΣ ΤΙΜΕΣ'!A$36:C$51,3,FALSE)*'1α.ΔΕΛΤΙΟ ΔΕΔΟΜΕΝΩΝ'!C15) -> 0 | G15: =(IF(OR('1α.ΔΕΛΤΙΟ ΔΕΔΟΜΕΝΩΝ'!M15="",'1α.ΔΕΛΤΙΟ ΔΕΔΟΜΕΝΩΝ'!Q15="",'1α.ΔΕΛΤΙΟ ΔΕΔΟΜΕΝΩΝ'!R15="",'1α.ΔΕΛΤΙΟ ΔΕΔΟΜΕΝΩΝ'!R15="Επιφάνεια χωρίς φυτοκάλυψη "),0,IF('1α.ΔΕΛΤΙΟ ΔΕΔΟΜΕΝΩΝ'!M15=0,0,VLOOKUP('1α.ΔΕΛΤΙΟ ΔΕΔΟΜΕΝΩΝ'!M15&'1α.ΔΕΛΤΙΟ ΔΕΔΟΜΕΝΩΝ'!Q15&'1α.ΔΕΛΤΙΟ ΔΕΔΟΜΕΝΩΝ'!R15,'PS DATA'!D:E,2,FALSE)*'1α.ΔΕΛΤΙΟ ΔΕΔΟΜΕΝΩΝ'!C15*'2.ΒΑΣΙΚΕΣ ΤΙΜΕΣ'!B$54))) -> 0 | H15: =IF('1α.ΔΕΛΤΙΟ ΔΕΔΟΜΕΝΩΝ'!B15="",0,VLOOKUP('1α.ΔΕΛΤΙΟ ΔΕΔΟΜΕΝΩΝ'!B15,'CS DATA'!D$2:H$13,5,FALSE)*'1α.ΔΕΛΤΙΟ ΔΕΔΟΜΕΝΩΝ'!D15*'1α.ΔΕΛΤΙΟ ΔΕΔΟΜΕΝΩΝ'!C15*'2.ΒΑΣΙΚΕΣ ΤΙΜΕΣ'!D$70)*IF('1α.ΔΕΛΤΙΟ ΔΕΔΟΜΕΝΩΝ'!S15="",0,VLOOKUP('1α.ΔΕΛΤΙΟ ΔΕΔΟΜΕΝΩΝ'!S15,'CS DATA'!A$1:B$13,2,FALSE)) -> 0 | I15: =IF('1α.ΔΕΛΤΙΟ ΔΕΔΟΜΕΝΩΝ'!T15="",0,VLOOKUP('1α.ΔΕΛΤΙΟ ΔΕΔΟΜΕΝΩΝ'!T15,'2.ΒΑΣΙΚΕΣ ΤΙΜΕΣ'!E$64:F$74,2,FALSE)*'1α.ΔΕΛΤΙΟ ΔΕΔΟΜΕΝΩΝ'!C15)*'2.ΒΑΣΙΚΕΣ ΤΙΜΕΣ'!D$71 -> 0 | J15: =IF('1α.ΔΕΛΤΙΟ ΔΕΔΟΜΕΝΩΝ'!B15="",0,VLOOKUP('1α.ΔΕΛΤΙΟ ΔΕΔΟΜΕΝΩΝ'!B15,'2.ΒΑΣΙΚΕΣ ΤΙΜΕΣ'!A$76:B$89,2,FALSE)*'1α.ΔΕΛΤΙΟ ΔΕΔΟΜΕΝΩΝ'!C15) -> 0 | K15: 0 | N15: =IF('1α.ΔΕΛΤΙΟ ΔΕΔΟΜΕΝΩΝ'!C$23=0,0,'1β.ΜΞΔΠ'!F37*'1α.ΔΕΛΤΙΟ ΔΕΔΟΜΕΝΩΝ'!C15/'1α.ΔΕΛΤΙΟ ΔΕΔΟΜΕΝΩΝ'!C$23) -> 0
A16: 14 | B16: =IF('1α.ΔΕΛΤΙΟ ΔΕΔΟΜΕΝΩΝ'!B16="",0,IF('1α.ΔΕΛΤΙΟ ΔΕΔΟΜΕΝΩΝ'!C16>0,VLOOKUP('1α.ΔΕΛΤΙΟ ΔΕΔΟΜΕΝΩΝ'!B16,'2.ΒΑΣΙΚΕΣ ΤΙΜΕΣ'!A$6:D$18,4,FALSE)*VLOOKUP('1α.ΔΕΛΤΙΟ ΔΕΔΟΜΕΝΩΝ'!B16,'2.ΒΑΣΙΚΕΣ ΤΙΜΕΣ'!A$6:K$18,11,FALSE),0)*'1α.ΔΕΛΤΙΟ ΔΕΔΟΜΕΝΩΝ'!C16*'1α.ΔΕΛΤΙΟ ΔΕΔΟΜΕΝΩΝ'!D16) -> 0 | C16: ='1α.ΔΕΛΤΙΟ ΔΕΔΟΜΕΝΩΝ'!F16*'2.ΒΑΣΙΚΕΣ ΤΙΜΕΣ'!C$22*'2.ΒΑΣΙΚΕΣ ΤΙΜΕΣ'!D$22*'1α.ΔΕΛΤΙΟ ΔΕΔΟΜΕΝΩΝ'!C16+'1α.ΔΕΛΤΙΟ ΔΕΔΟΜΕΝΩΝ'!C16*'1α.ΔΕΛΤΙΟ ΔΕΔΟΜΕΝΩΝ'!G16*'2.ΒΑΣΙΚΕΣ ΤΙΜΕΣ'!C$25*'2.ΒΑΣΙΚΕΣ ΤΙΜΕΣ'!D$25+'1α.ΔΕΛΤΙΟ ΔΕΔΟΜΕΝΩΝ'!H16*'1α.ΔΕΛΤΙΟ ΔΕΔΟΜΕΝΩΝ'!C16*'2.ΒΑΣΙΚΕΣ ΤΙΜΕΣ'!C$27*'2.ΒΑΣΙΚΕΣ ΤΙΜΕΣ'!D$27*'1α.ΔΕΛΤΙΟ ΔΕΔΟΜΕΝΩΝ'!W16+N16 -> 0 | D16: =IF('1α.ΔΕΛΤΙΟ ΔΕΔΟΜΕΝΩΝ'!B16="",0,VLOOKUP('1α.ΔΕΛΤΙΟ ΔΕΔΟΜΕΝΩΝ'!B16,'2.ΒΑΣΙΚΕΣ ΤΙΜΕΣ'!A$36:B$51,2,FALSE)*('1α.ΔΕΛΤΙΟ ΔΕΔΟΜΕΝΩΝ'!C16-'1α.ΔΕΛΤΙΟ ΔΕΔΟΜΕΝΩΝ'!J16)) -> 0 | E16: ='2.ΒΑΣΙΚΕΣ ΤΙΜΕΣ'!D$36*0.7*('1α.ΔΕΛΤΙΟ ΔΕΔΟΜΕΝΩΝ'!C16-'1α.ΔΕΛΤΙΟ ΔΕΔΟΜΕΝΩΝ'!K16) -> 0 | F16: =IF('1α.ΔΕΛΤΙΟ ΔΕΔΟΜΕΝΩΝ'!B16="",0,VLOOKUP('1α.ΔΕΛΤΙΟ ΔΕΔΟΜΕΝΩΝ'!B16,'2.ΒΑΣΙΚΕΣ ΤΙΜΕΣ'!A$36:C$51,3,FALSE)*'1α.ΔΕΛΤΙΟ ΔΕΔΟΜΕΝΩΝ'!C16) -> 0 | G16: =(IF(OR('1α.ΔΕΛΤΙΟ ΔΕΔΟΜΕΝΩΝ'!M16="",'1α.ΔΕΛΤΙΟ ΔΕΔΟΜΕΝΩΝ'!Q16="",'1α.ΔΕΛΤΙΟ ΔΕΔΟΜΕΝΩΝ'!R16="",'1α.ΔΕΛΤΙΟ ΔΕΔΟΜΕΝΩΝ'!R16="Επιφάνεια χωρίς φυτοκάλυψη "),0,IF('1α.ΔΕΛΤΙΟ ΔΕΔΟΜΕΝΩΝ'!M16=0,0,VLOOKUP('1α.ΔΕΛΤΙΟ ΔΕΔΟΜΕΝΩΝ'!M16&'1α.ΔΕΛΤΙΟ ΔΕΔΟΜΕΝΩΝ'!Q16&'1α.ΔΕΛΤΙΟ ΔΕΔΟΜΕΝΩΝ'!R16,'PS DATA'!D:E,2,FALSE)*'1α.ΔΕΛΤΙΟ ΔΕΔΟΜΕΝΩΝ'!C16*'2.ΒΑΣΙΚΕΣ ΤΙΜΕΣ'!B$54))) -> 0 | H16: =IF('1α.ΔΕΛΤΙΟ ΔΕΔΟΜΕΝΩΝ'!B16="",0,VLOOKUP('1α.ΔΕΛΤΙΟ ΔΕΔΟΜΕΝΩΝ'!B16,'CS DATA'!D$2:H$13,5,FALSE)*'1α.ΔΕΛΤΙΟ ΔΕΔΟΜΕΝΩΝ'!D16*'1α.ΔΕΛΤΙΟ ΔΕΔΟΜΕΝΩΝ'!C16*'2.ΒΑΣΙΚΕΣ ΤΙΜΕΣ'!D$70)*IF('1α.ΔΕΛΤΙΟ ΔΕΔΟΜΕΝΩΝ'!S16="",0,VLOOKUP('1α.ΔΕΛΤΙΟ ΔΕΔΟΜΕΝΩΝ'!S16,'CS DATA'!A$1:B$13,2,FALSE)) -> 0 | I16: =IF('1α.ΔΕΛΤΙΟ ΔΕΔΟΜΕΝΩΝ'!T16="",0,VLOOKUP('1α.ΔΕΛΤΙΟ ΔΕΔΟΜΕΝΩΝ'!T16,'2.ΒΑΣΙΚΕΣ ΤΙΜΕΣ'!E$64:F$74,2,FALSE)*'1α.ΔΕΛΤΙΟ ΔΕΔΟΜΕΝΩΝ'!C16)*'2.ΒΑΣΙΚΕΣ ΤΙΜΕΣ'!D$71 -> 0 | J16: =IF('1α.ΔΕΛΤΙΟ ΔΕΔΟΜΕΝΩΝ'!B16="",0,VLOOKUP('1α.ΔΕΛΤΙΟ ΔΕΔΟΜΕΝΩΝ'!B16,'2.ΒΑΣΙΚΕΣ ΤΙΜΕΣ'!A$76:B$89,2,FALSE)*'1α.ΔΕΛΤΙΟ ΔΕΔΟΜΕΝΩΝ'!C16) -> 0 | K16: 0 | N16: =IF('1α.ΔΕΛΤΙΟ ΔΕΔΟΜΕΝΩΝ'!C$23=0,0,'1β.ΜΞΔΠ'!F38*'1α.ΔΕΛΤΙΟ ΔΕΔΟΜΕΝΩΝ'!C16/'1α.ΔΕΛΤΙΟ ΔΕΔΟΜΕΝΩΝ'!C$23) -> 0
A17: 15 | B17: =IF('1α.ΔΕΛΤΙΟ ΔΕΔΟΜΕΝΩΝ'!B17="",0,IF('1α.ΔΕΛΤΙΟ ΔΕΔΟΜΕΝΩΝ'!C17>0,VLOOKUP('1α.ΔΕΛΤΙΟ ΔΕΔΟΜΕΝΩΝ'!B17,'2.ΒΑΣΙΚΕΣ ΤΙΜΕΣ'!A$6:D$18,4,FALSE)*VLOOKUP('1α.ΔΕΛΤΙΟ ΔΕΔΟΜΕΝΩΝ'!B17,'2.ΒΑΣΙΚΕΣ ΤΙΜΕΣ'!A$6:K$18,11,FALSE),0)*'1α.ΔΕΛΤΙΟ ΔΕΔΟΜΕΝΩΝ'!C17*'1α.ΔΕΛΤΙΟ ΔΕΔΟΜΕΝΩΝ'!D17) -> 0 | C17: ='1α.ΔΕΛΤΙΟ ΔΕΔΟΜΕΝΩΝ'!F17*'2.ΒΑΣΙΚΕΣ ΤΙΜΕΣ'!C$22*'2.ΒΑΣΙΚΕΣ ΤΙΜΕΣ'!D$22*'1α.ΔΕΛΤΙΟ ΔΕΔΟΜΕΝΩΝ'!C17+'1α.ΔΕΛΤΙΟ ΔΕΔΟΜΕΝΩΝ'!C17*'1α.ΔΕΛΤΙΟ ΔΕΔΟΜΕΝΩΝ'!G17*'2.ΒΑΣΙΚΕΣ ΤΙΜΕΣ'!C$25*'2.ΒΑΣΙΚΕΣ ΤΙΜΕΣ'!D$25+'1α.ΔΕΛΤΙΟ ΔΕΔΟΜΕΝΩΝ'!H17*'1α.ΔΕΛΤΙΟ ΔΕΔΟΜΕΝΩΝ'!C17*'2.ΒΑΣΙΚΕΣ ΤΙΜΕΣ'!C$27*'2.ΒΑΣΙΚΕΣ ΤΙΜΕΣ'!D$27*'1α.ΔΕΛΤΙΟ ΔΕΔΟΜΕΝΩΝ'!W17+N17 -> 0 | D17: =IF('1α.ΔΕΛΤΙΟ ΔΕΔΟΜΕΝΩΝ'!B17="",0,VLOOKUP('1α.ΔΕΛΤΙΟ ΔΕΔΟΜΕΝΩΝ'!B17,'2.ΒΑΣΙΚΕΣ ΤΙΜΕΣ'!A$36:B$51,2,FALSE)*('1α.ΔΕΛΤΙΟ ΔΕΔΟΜΕΝΩΝ'!C17-'1α.ΔΕΛΤΙΟ ΔΕΔΟΜΕΝΩΝ'!J17)) -> 0 | E17: ='2.ΒΑΣΙΚΕΣ ΤΙΜΕΣ'!D$36*0.7*('1α.ΔΕΛΤΙΟ ΔΕΔΟΜΕΝΩΝ'!C17-'1α.ΔΕΛΤΙΟ ΔΕΔΟΜΕΝΩΝ'!K17) -> 0 | F17: =IF('1α.ΔΕΛΤΙΟ ΔΕΔΟΜΕΝΩΝ'!B17="",0,VLOOKUP('1α.ΔΕΛΤΙΟ ΔΕΔΟΜΕΝΩΝ'!B17,'2.ΒΑΣΙΚΕΣ ΤΙΜΕΣ'!A$36:C$51,3,FALSE)*'1α.ΔΕΛΤΙΟ ΔΕΔΟΜΕΝΩΝ'!C17) -> 0 | G17: =(IF(OR('1α.ΔΕΛΤΙΟ ΔΕΔΟΜΕΝΩΝ'!M17="",'1α.ΔΕΛΤΙΟ ΔΕΔΟΜΕΝΩΝ'!Q17="",'1α.ΔΕΛΤΙΟ ΔΕΔΟΜΕΝΩΝ'!R17="",'1α.ΔΕΛΤΙΟ ΔΕΔΟΜΕΝΩΝ'!R17="Επιφάνεια χωρίς φυτοκάλυψη "),0,IF('1α.ΔΕΛΤΙΟ ΔΕΔΟΜΕΝΩΝ'!M17=0,0,VLOOKUP('1α.ΔΕΛΤΙΟ ΔΕΔΟΜΕΝΩΝ'!M17&'1α.ΔΕΛΤΙΟ ΔΕΔΟΜΕΝΩΝ'!Q17&'1α.ΔΕΛΤΙΟ ΔΕΔΟΜΕΝΩΝ'!R17,'PS DATA'!D:E,2,FALSE)*'1α.ΔΕΛΤΙΟ ΔΕΔΟΜΕΝΩΝ'!C17*'2.ΒΑΣΙΚΕΣ ΤΙΜΕΣ'!B$54))) -> 0 | H17: =IF('1α.ΔΕΛΤΙΟ ΔΕΔΟΜΕΝΩΝ'!B17="",0,VLOOKUP('1α.ΔΕΛΤΙΟ ΔΕΔΟΜΕΝΩΝ'!B17,'CS DATA'!D$2:H$13,5,FALSE)*'1α.ΔΕΛΤΙΟ ΔΕΔΟΜΕΝΩΝ'!D17*'1α.ΔΕΛΤΙΟ ΔΕΔΟΜΕΝΩΝ'!C17*'2.ΒΑΣΙΚΕΣ ΤΙΜΕΣ'!D$70)*IF('1α.ΔΕΛΤΙΟ ΔΕΔΟΜΕΝΩΝ'!S17="",0,VLOOKUP('1α.ΔΕΛΤΙΟ ΔΕΔΟΜΕΝΩΝ'!S17,'CS DATA'!A$1:B$13,2,FALSE)) -> 0 | I17: =IF('1α.ΔΕΛΤΙΟ ΔΕΔΟΜΕΝΩΝ'!T17="",0,VLOOKUP('1α.ΔΕΛΤΙΟ ΔΕΔΟΜΕΝΩΝ'!T17,'2.ΒΑΣΙΚΕΣ ΤΙΜΕΣ'!E$64:F$74,2,FALSE)*'1α.ΔΕΛΤΙΟ ΔΕΔΟΜΕΝΩΝ'!C17)*'2.ΒΑΣΙΚΕΣ ΤΙΜΕΣ'!D$71 -> 0 | J17: =IF('1α.ΔΕΛΤΙΟ ΔΕΔΟΜΕΝΩΝ'!B17="",0,VLOOKUP('1α.ΔΕΛΤΙΟ ΔΕΔΟΜΕΝΩΝ'!B17,'2.ΒΑΣΙΚΕΣ ΤΙΜΕΣ'!A$76:B$89,2,FALSE)*'1α.ΔΕΛΤΙΟ ΔΕΔΟΜΕΝΩΝ'!C17) -> 0 | K17: 0 | N17: =IF('1α.ΔΕΛΤΙΟ ΔΕΔΟΜΕΝΩΝ'!C$23=0,0,'1β.ΜΞΔΠ'!F39*'1α.ΔΕΛΤΙΟ ΔΕΔΟΜΕΝΩΝ'!C17/'1α.ΔΕΛΤΙΟ ΔΕΔΟΜΕΝΩΝ'!C$23) -> 0
A18: 16 | B18: =IF('1α.ΔΕΛΤΙΟ ΔΕΔΟΜΕΝΩΝ'!B18="",0,IF('1α.ΔΕΛΤΙΟ ΔΕΔΟΜΕΝΩΝ'!C18>0,VLOOKUP('1α.ΔΕΛΤΙΟ ΔΕΔΟΜΕΝΩΝ'!B18,'2.ΒΑΣΙΚΕΣ ΤΙΜΕΣ'!A$6:D$18,4,FALSE)*VLOOKUP('1α.ΔΕΛΤΙΟ ΔΕΔΟΜΕΝΩΝ'!B18,'2.ΒΑΣΙΚΕΣ ΤΙΜΕΣ'!A$6:K$18,11,FALSE),0)*'1α.ΔΕΛΤΙΟ ΔΕΔΟΜΕΝΩΝ'!C18*'1α.ΔΕΛΤΙΟ ΔΕΔΟΜΕΝΩΝ'!D18) -> 0 | C18: ='1α.ΔΕΛΤΙΟ ΔΕΔΟΜΕΝΩΝ'!F18*'2.ΒΑΣΙΚΕΣ ΤΙΜΕΣ'!C$22*'2.ΒΑΣΙΚΕΣ ΤΙΜΕΣ'!D$22*'1α.ΔΕΛΤΙΟ ΔΕΔΟΜΕΝΩΝ'!C18+'1α.ΔΕΛΤΙΟ ΔΕΔΟΜΕΝΩΝ'!C18*'1α.ΔΕΛΤΙΟ ΔΕΔΟΜΕΝΩΝ'!G18*'2.ΒΑΣΙΚΕΣ ΤΙΜΕΣ'!C$25*'2.ΒΑΣΙΚΕΣ ΤΙΜΕΣ'!D$25+'1α.ΔΕΛΤΙΟ ΔΕΔΟΜΕΝΩΝ'!H18*'1α.ΔΕΛΤΙΟ ΔΕΔΟΜΕΝΩΝ'!C18*'2.ΒΑΣΙΚΕΣ ΤΙΜΕΣ'!C$27*'2.ΒΑΣΙΚΕΣ ΤΙΜΕΣ'!D$27*'1α.ΔΕΛΤΙΟ ΔΕΔΟΜΕΝΩΝ'!W18+N18 -> 0 | D18: =IF('1α.ΔΕΛΤΙΟ ΔΕΔΟΜΕΝΩΝ'!B18="",0,VLOOKUP('1α.ΔΕΛΤΙΟ ΔΕΔΟΜΕΝΩΝ'!B18,'2.ΒΑΣΙΚΕΣ ΤΙΜΕΣ'!A$36:B$51,2,FALSE)*('1α.ΔΕΛΤΙΟ ΔΕΔΟΜΕΝΩΝ'!C18-'1α.ΔΕΛΤΙΟ ΔΕΔΟΜΕΝΩΝ'!J18)) -> 0 | E18: ='2.ΒΑΣΙΚΕΣ ΤΙΜΕΣ'!D$36*0.7*('1α.ΔΕΛΤΙΟ ΔΕΔΟΜΕΝΩΝ'!C18-'1α.ΔΕΛΤΙΟ ΔΕΔΟΜΕΝΩΝ'!K18) -> 0 | F18: =IF('1α.ΔΕΛΤΙΟ ΔΕΔΟΜΕΝΩΝ'!B18="",0,VLOOKUP('1α.ΔΕΛΤΙΟ ΔΕΔΟΜΕΝΩΝ'!B18,'2.ΒΑΣΙΚΕΣ ΤΙΜΕΣ'!A$36:C$51,3,FALSE)*'1α.ΔΕΛΤΙΟ ΔΕΔΟΜΕΝΩΝ'!C18) -> 0 | G18: =(IF(OR('1α.ΔΕΛΤΙΟ ΔΕΔΟΜΕΝΩΝ'!M18="",'1α.ΔΕΛΤΙΟ ΔΕΔΟΜΕΝΩΝ'!Q18="",'1α.ΔΕΛΤΙΟ ΔΕΔΟΜΕΝΩΝ'!R18="",'1α.ΔΕΛΤΙΟ ΔΕΔΟΜΕΝΩΝ'!R18="Επιφάνεια χωρίς φυτοκάλυψη "),0,IF('1α.ΔΕΛΤΙΟ ΔΕΔΟΜΕΝΩΝ'!M18=0,0,VLOOKUP('1α.ΔΕΛΤΙΟ ΔΕΔΟΜΕΝΩΝ'!M18&'1α.ΔΕΛΤΙΟ ΔΕΔΟΜΕΝΩΝ'!Q18&'1α.ΔΕΛΤΙΟ ΔΕΔΟΜΕΝΩΝ'!R18,'PS DATA'!D:E,2,FALSE)*'1α.ΔΕΛΤΙΟ ΔΕΔΟΜΕΝΩΝ'!C18*'2.ΒΑΣΙΚΕΣ ΤΙΜΕΣ'!B$54))) -> 0 | H18: =IF('1α.ΔΕΛΤΙΟ ΔΕΔΟΜΕΝΩΝ'!B18="",0,VLOOKUP('1α.ΔΕΛΤΙΟ ΔΕΔΟΜΕΝΩΝ'!B18,'CS DATA'!D$2:H$13,5,FALSE)*'1α.ΔΕΛΤΙΟ ΔΕΔΟΜΕΝΩΝ'!D18*'1α.ΔΕΛΤΙΟ ΔΕΔΟΜΕΝΩΝ'!C18*'2.ΒΑΣΙΚΕΣ ΤΙΜΕΣ'!D$70)*IF('1α.ΔΕΛΤΙΟ ΔΕΔΟΜΕΝΩΝ'!S18="",0,VLOOKUP('1α.ΔΕΛΤΙΟ ΔΕΔΟΜΕΝΩΝ'!S18,'CS DATA'!A$1:B$13,2,FALSE)) -> 0 | I18: =IF('1α.ΔΕΛΤΙΟ ΔΕΔΟΜΕΝΩΝ'!T18="",0,VLOOKUP('1α.ΔΕΛΤΙΟ ΔΕΔΟΜΕΝΩΝ'!T18,'2.ΒΑΣΙΚΕΣ ΤΙΜΕΣ'!E$64:F$74,2,FALSE)*'1α.ΔΕΛΤΙΟ ΔΕΔΟΜΕΝΩΝ'!C18)*'2.ΒΑΣΙΚΕΣ ΤΙΜΕΣ'!D$71 -> 0 | J18: =IF('1α.ΔΕΛΤΙΟ ΔΕΔΟΜΕΝΩΝ'!B18="",0,VLOOKUP('1α.ΔΕΛΤΙΟ ΔΕΔΟΜΕΝΩΝ'!B18,'2.ΒΑΣΙΚΕΣ ΤΙΜΕΣ'!A$76:B$89,2,FALSE)*'1α.ΔΕΛΤΙΟ ΔΕΔΟΜΕΝΩΝ'!C18) -> 0 | K18: 0 | N18: =IF('1α.ΔΕΛΤΙΟ ΔΕΔΟΜΕΝΩΝ'!C$23=0,0,'1β.ΜΞΔΠ'!F40*'1α.ΔΕΛΤΙΟ ΔΕΔΟΜΕΝΩΝ'!C18/'1α.ΔΕΛΤΙΟ ΔΕΔΟΜΕΝΩΝ'!C$23) -> 0
A19: 17 | B19: =IF('1α.ΔΕΛΤΙΟ ΔΕΔΟΜΕΝΩΝ'!B19="",0,IF('1α.ΔΕΛΤΙΟ ΔΕΔΟΜΕΝΩΝ'!C19>0,VLOOKUP('1α.ΔΕΛΤΙΟ ΔΕΔΟΜΕΝΩΝ'!B19,'2.ΒΑΣΙΚΕΣ ΤΙΜΕΣ'!A$6:D$18,4,FALSE)*VLOOKUP('1α.ΔΕΛΤΙΟ ΔΕΔΟΜΕΝΩΝ'!B19,'2.ΒΑΣΙΚΕΣ ΤΙΜΕΣ'!A$6:K$18,11,FALSE),0)*'1α.ΔΕΛΤΙΟ ΔΕΔΟΜΕΝΩΝ'!C19*'1α.ΔΕΛΤΙΟ ΔΕΔΟΜΕΝΩΝ'!D19) -> 0 | C19: ='1α.ΔΕΛΤΙΟ ΔΕΔΟΜΕΝΩΝ'!F19*'2.ΒΑΣΙΚΕΣ ΤΙΜΕΣ'!C$22*'2.ΒΑΣΙΚΕΣ ΤΙΜΕΣ'!D$22*'1α.ΔΕΛΤΙΟ ΔΕΔΟΜΕΝΩΝ'!C19+'1α.ΔΕΛΤΙΟ ΔΕΔΟΜΕΝΩΝ'!C19*'1α.ΔΕΛΤΙΟ ΔΕΔΟΜΕΝΩΝ'!G19*'2.ΒΑΣΙΚΕΣ ΤΙΜΕΣ'!C$25*'2.ΒΑΣΙΚΕΣ ΤΙΜΕΣ'!D$25+'1α.ΔΕΛΤΙΟ ΔΕΔΟΜΕΝΩΝ'!H19*'1α.ΔΕΛΤΙΟ ΔΕΔΟΜΕΝΩΝ'!C19*'2.ΒΑΣΙΚΕΣ ΤΙΜΕΣ'!C$27*'2.ΒΑΣΙΚΕΣ ΤΙΜΕΣ'!D$27*'1α.ΔΕΛΤΙΟ ΔΕΔΟΜΕΝΩΝ'!W19+N19 -> 0 | D19: =IF('1α.ΔΕΛΤΙΟ ΔΕΔΟΜΕΝΩΝ'!B19="",0,VLOOKUP('1α.ΔΕΛΤΙΟ ΔΕΔΟΜΕΝΩΝ'!B19,'2.ΒΑΣΙΚΕΣ ΤΙΜΕΣ'!A$36:B$51,2,FALSE)*('1α.ΔΕΛΤΙΟ ΔΕΔΟΜΕΝΩΝ'!C19-'1α.ΔΕΛΤΙΟ ΔΕΔΟΜΕΝΩΝ'!J19)) -> 0 | E19: ='2.ΒΑΣΙΚΕΣ ΤΙΜΕΣ'!D$36*0.7*('1α.ΔΕΛΤΙΟ ΔΕΔΟΜΕΝΩΝ'!C19-'1α.ΔΕΛΤΙΟ ΔΕΔΟΜΕΝΩΝ'!K19) -> 0 | F19: =IF('1α.ΔΕΛΤΙΟ ΔΕΔΟΜΕΝΩΝ'!B19="",0,VLOOKUP('1α.ΔΕΛΤΙΟ ΔΕΔΟΜΕΝΩΝ'!B19,'2.ΒΑΣΙΚΕΣ ΤΙΜΕΣ'!A$36:C$51,3,FALSE)*'1α.ΔΕΛΤΙΟ ΔΕΔΟΜΕΝΩΝ'!C19) -> 0 | G19: =(IF(OR('1α.ΔΕΛΤΙΟ ΔΕΔΟΜΕΝΩΝ'!M19="",'1α.ΔΕΛΤΙΟ ΔΕΔΟΜΕΝΩΝ'!Q19="",'1α.ΔΕΛΤΙΟ ΔΕΔΟΜΕΝΩΝ'!R19="",'1α.ΔΕΛΤΙΟ ΔΕΔΟΜΕΝΩΝ'!R19="Επιφάνεια χωρίς φυτοκάλυψη "),0,IF('1α.ΔΕΛΤΙΟ ΔΕΔΟΜΕΝΩΝ'!M19=0,0,VLOOKUP('1α.ΔΕΛΤΙΟ ΔΕΔΟΜΕΝΩΝ'!M19&'1α.ΔΕΛΤΙΟ ΔΕΔΟΜΕΝΩΝ'!Q19&'1α.ΔΕΛΤΙΟ ΔΕΔΟΜΕΝΩΝ'!R19,'PS DATA'!D:E,2,FALSE)*'1α.ΔΕΛΤΙΟ ΔΕΔΟΜΕΝΩΝ'!C19*'2.ΒΑΣΙΚΕΣ ΤΙΜΕΣ'!B$54))) -> 0 | H19: =IF('1α.ΔΕΛΤΙΟ ΔΕΔΟΜΕΝΩΝ'!B19="",0,VLOOKUP('1α.ΔΕΛΤΙΟ ΔΕΔΟΜΕΝΩΝ'!B19,'CS DATA'!D$2:H$13,5,FALSE)*'1α.ΔΕΛΤΙΟ ΔΕΔΟΜΕΝΩΝ'!D19*'1α.ΔΕΛΤΙΟ ΔΕΔΟΜΕΝΩΝ'!C19*'2.ΒΑΣΙΚΕΣ ΤΙΜΕΣ'!D$70)*IF('1α.ΔΕΛΤΙΟ ΔΕΔΟΜΕΝΩΝ'!S19="",0,VLOOKUP('1α.ΔΕΛΤΙΟ ΔΕΔΟΜΕΝΩΝ'!S19,'CS DATA'!A$1:B$13,2,FALSE)) -> 0 | I19: =IF('1α.ΔΕΛΤΙΟ ΔΕΔΟΜΕΝΩΝ'!T19="",0,VLOOKUP('1α.ΔΕΛΤΙΟ ΔΕΔΟΜΕΝΩΝ'!T19,'2.ΒΑΣΙΚΕΣ ΤΙΜΕΣ'!E$64:F$74,2,FALSE)*'1α.ΔΕΛΤΙΟ ΔΕΔΟΜΕΝΩΝ'!C19)*'2.ΒΑΣΙΚΕΣ ΤΙΜΕΣ'!D$71 -> 0 | J19: =IF('1α.ΔΕΛΤΙΟ ΔΕΔΟΜΕΝΩΝ'!B19="",0,VLOOKUP('1α.ΔΕΛΤΙΟ ΔΕΔΟΜΕΝΩΝ'!B19,'2.ΒΑΣΙΚΕΣ ΤΙΜΕΣ'!A$76:B$89,2,FALSE)*'1α.ΔΕΛΤΙΟ ΔΕΔΟΜΕΝΩΝ'!C19) -> 0 | K19: 0 | N19: =IF('1α.ΔΕΛΤΙΟ ΔΕΔΟΜΕΝΩΝ'!C$23=0,0,'1β.ΜΞΔΠ'!F41*'1α.ΔΕΛΤΙΟ ΔΕΔΟΜΕΝΩΝ'!C19/'1α.ΔΕΛΤΙΟ ΔΕΔΟΜΕΝΩΝ'!C$23) -> 0
A20: 18 | B20: =IF('1α.ΔΕΛΤΙΟ ΔΕΔΟΜΕΝΩΝ'!B20="",0,IF('1α.ΔΕΛΤΙΟ ΔΕΔΟΜΕΝΩΝ'!C20>0,VLOOKUP('1α.ΔΕΛΤΙΟ ΔΕΔΟΜΕΝΩΝ'!B20,'2.ΒΑΣΙΚΕΣ ΤΙΜΕΣ'!A$6:D$18,4,FALSE)*VLOOKUP('1α.ΔΕΛΤΙΟ ΔΕΔΟΜΕΝΩΝ'!B20,'2.ΒΑΣΙΚΕΣ ΤΙΜΕΣ'!A$6:K$18,11,FALSE),0)*'1α.ΔΕΛΤΙΟ ΔΕΔΟΜΕΝΩΝ'!C20*'1α.ΔΕΛΤΙΟ ΔΕΔΟΜΕΝΩΝ'!D20) -> 0 | C20: ='1α.ΔΕΛΤΙΟ ΔΕΔΟΜΕΝΩΝ'!F20*'2.ΒΑΣΙΚΕΣ ΤΙΜΕΣ'!C$22*'2.ΒΑΣΙΚΕΣ ΤΙΜΕΣ'!D$22*'1α.ΔΕΛΤΙΟ ΔΕΔΟΜΕΝΩΝ'!C20+'1α.ΔΕΛΤΙΟ ΔΕΔΟΜΕΝΩΝ'!C20*'1α.ΔΕΛΤΙΟ ΔΕΔΟΜΕΝΩΝ'!G20*'2.ΒΑΣΙΚΕΣ ΤΙΜΕΣ'!C$25*'2.ΒΑΣΙΚΕΣ ΤΙΜΕΣ'!D$25+'1α.ΔΕΛΤΙΟ ΔΕΔΟΜΕΝΩΝ'!H20*'1α.ΔΕΛΤΙΟ ΔΕΔΟΜΕΝΩΝ'!C20*'2.ΒΑΣΙΚΕΣ ΤΙΜΕΣ'!C$27*'2.ΒΑΣΙΚΕΣ ΤΙΜΕΣ'!D$27*'1α.ΔΕΛΤΙΟ ΔΕΔΟΜΕΝΩΝ'!W20+N20 -> 0 | D20: =IF('1α.ΔΕΛΤΙΟ ΔΕΔΟΜΕΝΩΝ'!B20="",0,VLOOKUP('1α.ΔΕΛΤΙΟ ΔΕΔΟΜΕΝΩΝ'!B20,'2.ΒΑΣΙΚΕΣ ΤΙΜΕΣ'!A$36:B$51,2,FALSE)*('1α.ΔΕΛΤΙΟ ΔΕΔΟΜΕΝΩΝ'!C20-'1α.ΔΕΛΤΙΟ ΔΕΔΟΜΕΝΩΝ'!J20)) -> 0 | E20: ='2.ΒΑΣΙΚΕΣ ΤΙΜΕΣ'!D$36*0.7*('1α.ΔΕΛΤΙΟ ΔΕΔΟΜΕΝΩΝ'!C20-'1α.ΔΕΛΤΙΟ ΔΕΔΟΜΕΝΩΝ'!K20) -> 0 | F20: =IF('1α.ΔΕΛΤΙΟ ΔΕΔΟΜΕΝΩΝ'!B20="",0,VLOOKUP('1α.ΔΕΛΤΙΟ ΔΕΔΟΜΕΝΩΝ'!B20,'2.ΒΑΣΙΚΕΣ ΤΙΜΕΣ'!A$36:C$51,3,FALSE)*'1α.ΔΕΛΤΙΟ ΔΕΔΟΜΕΝΩΝ'!C20) -> 0 | G20: =(IF(OR('1α.ΔΕΛΤΙΟ ΔΕΔΟΜΕΝΩΝ'!M20="",'1α.ΔΕΛΤΙΟ ΔΕΔΟΜΕΝΩΝ'!Q20="",'1α.ΔΕΛΤΙΟ ΔΕΔΟΜΕΝΩΝ'!R20="",'1α.ΔΕΛΤΙΟ ΔΕΔΟΜΕΝΩΝ'!R20="Επιφάνεια χωρίς φυτοκάλυψη "),0,IF('1α.ΔΕΛΤΙΟ ΔΕΔΟΜΕΝΩΝ'!M20=0,0,VLOOKUP('1α.ΔΕΛΤΙΟ ΔΕΔΟΜΕΝΩΝ'!M20&'1α.ΔΕΛΤΙΟ ΔΕΔΟΜΕΝΩΝ'!Q20&'1α.ΔΕΛΤΙΟ ΔΕΔΟΜΕΝΩΝ'!R20,'PS DATA'!D:E,2,FALSE)*'1α.ΔΕΛΤΙΟ ΔΕΔΟΜΕΝΩΝ'!C20*'2.ΒΑΣΙΚΕΣ ΤΙΜΕΣ'!B$54))) -> 0 | H20: =IF('1α.ΔΕΛΤΙΟ ΔΕΔΟΜΕΝΩΝ'!B20="",0,VLOOKUP('1α.ΔΕΛΤΙΟ ΔΕΔΟΜΕΝΩΝ'!B20,'CS DATA'!D$2:H$13,5,FALSE)*'1α.ΔΕΛΤΙΟ ΔΕΔΟΜΕΝΩΝ'!D20*'1α.ΔΕΛΤΙΟ ΔΕΔΟΜΕΝΩΝ'!C20*'2.ΒΑΣΙΚΕΣ ΤΙΜΕΣ'!D$70)*IF('1α.ΔΕΛΤΙΟ ΔΕΔΟΜΕΝΩΝ'!S20="",0,VLOOKUP('1α.ΔΕΛΤΙΟ ΔΕΔΟΜΕΝΩΝ'!S20,'CS DATA'!A$1:B$13,2,FALSE)) -> 0 | I20: =IF('1α.ΔΕΛΤΙΟ ΔΕΔΟΜΕΝΩΝ'!T20="",0,VLOOKUP('1α.ΔΕΛΤΙΟ ΔΕΔΟΜΕΝΩΝ'!T20,'2.ΒΑΣΙΚΕΣ ΤΙΜΕΣ'!E$64:F$74,2,FALSE)*'1α.ΔΕΛΤΙΟ ΔΕΔΟΜΕΝΩΝ'!C20)*'2.ΒΑΣΙΚΕΣ ΤΙΜΕΣ'!D$71 -> 0 | J20: =IF('1α.ΔΕΛΤΙΟ ΔΕΔΟΜΕΝΩΝ'!B20="",0,VLOOKUP('1α.ΔΕΛΤΙΟ ΔΕΔΟΜΕΝΩΝ'!B20,'2.ΒΑΣΙΚΕΣ ΤΙΜΕΣ'!A$76:B$89,2,FALSE)*'1α.ΔΕΛΤΙΟ ΔΕΔΟΜΕΝΩΝ'!C20) -> 0 | K20: 0 | N20: =IF('1α.ΔΕΛΤΙΟ ΔΕΔΟΜΕΝΩΝ'!C$23=0,0,'1β.ΜΞΔΠ'!F42*'1α.ΔΕΛΤΙΟ ΔΕΔΟΜΕΝΩΝ'!C20/'1α.ΔΕΛΤΙΟ ΔΕΔΟΜΕΝΩΝ'!C$23) -> 0
A21: 19 | B21: =IF('1α.ΔΕΛΤΙΟ ΔΕΔΟΜΕΝΩΝ'!B21="",0,IF('1α.ΔΕΛΤΙΟ ΔΕΔΟΜΕΝΩΝ'!C21>0,VLOOKUP('1α.ΔΕΛΤΙΟ ΔΕΔΟΜΕΝΩΝ'!B21,'2.ΒΑΣΙΚΕΣ ΤΙΜΕΣ'!A$6:D$18,4,FALSE)*VLOOKUP('1α.ΔΕΛΤΙΟ ΔΕΔΟΜΕΝΩΝ'!B21,'2.ΒΑΣΙΚΕΣ ΤΙΜΕΣ'!A$6:K$18,11,FALSE),0)*'1α.ΔΕΛΤΙΟ ΔΕΔΟΜΕΝΩΝ'!C21*'1α.ΔΕΛΤΙΟ ΔΕΔΟΜΕΝΩΝ'!D21) -> 0 | C21: ='1α.ΔΕΛΤΙΟ ΔΕΔΟΜΕΝΩΝ'!F21*'2.ΒΑΣΙΚΕΣ ΤΙΜΕΣ'!C$22*'2.ΒΑΣΙΚΕΣ ΤΙΜΕΣ'!D$22*'1α.ΔΕΛΤΙΟ ΔΕΔΟΜΕΝΩΝ'!C21+'1α.ΔΕΛΤΙΟ ΔΕΔΟΜΕΝΩΝ'!C21*'1α.ΔΕΛΤΙΟ ΔΕΔΟΜΕΝΩΝ'!G21*'2.ΒΑΣΙΚΕΣ ΤΙΜΕΣ'!C$25*'2.ΒΑΣΙΚΕΣ ΤΙΜΕΣ'!D$25+'1α.ΔΕΛΤΙΟ ΔΕΔΟΜΕΝΩΝ'!H21*'1α.ΔΕΛΤΙΟ ΔΕΔΟΜΕΝΩΝ'!C21*'2.ΒΑΣΙΚΕΣ ΤΙΜΕΣ'!C$27*'2.ΒΑΣΙΚΕΣ ΤΙΜΕΣ'!D$27*'1α.ΔΕΛΤΙΟ ΔΕΔΟΜΕΝΩΝ'!W21+N21 -> 0 | D21: =IF('1α.ΔΕΛΤΙΟ ΔΕΔΟΜΕΝΩΝ'!B21="",0,VLOOKUP('1α.ΔΕΛΤΙΟ ΔΕΔΟΜΕΝΩΝ'!B21,'2.ΒΑΣΙΚΕΣ ΤΙΜΕΣ'!A$36:B$51,2,FALSE)*('1α.ΔΕΛΤΙΟ ΔΕΔΟΜΕΝΩΝ'!C21-'1α.ΔΕΛΤΙΟ ΔΕΔΟΜΕΝΩΝ'!J21)) -> 0 | E21: ='2.ΒΑΣΙΚΕΣ ΤΙΜΕΣ'!D$36*0.7*('1α.ΔΕΛΤΙΟ ΔΕΔΟΜΕΝΩΝ'!C21-'1α.ΔΕΛΤΙΟ ΔΕΔΟΜΕΝΩΝ'!K21) -> 0 | F21: =IF('1α.ΔΕΛΤΙΟ ΔΕΔΟΜΕΝΩΝ'!B21="",0,VLOOKUP('1α.ΔΕΛΤΙΟ ΔΕΔΟΜΕΝΩΝ'!B21,'2.ΒΑΣΙΚΕΣ ΤΙΜΕΣ'!A$36:C$51,3,FALSE)*'1α.ΔΕΛΤΙΟ ΔΕΔΟΜΕΝΩΝ'!C21) -> 0 | G21: =(IF(OR('1α.ΔΕΛΤΙΟ ΔΕΔΟΜΕΝΩΝ'!M21="",'1α.ΔΕΛΤΙΟ ΔΕΔΟΜΕΝΩΝ'!Q21="",'1α.ΔΕΛΤΙΟ ΔΕΔΟΜΕΝΩΝ'!R21="",'1α.ΔΕΛΤΙΟ ΔΕΔΟΜΕΝΩΝ'!R21="Επιφάνεια χωρίς φυτοκάλυψη "),0,IF('1α.ΔΕΛΤΙΟ ΔΕΔΟΜΕΝΩΝ'!M21=0,0,VLOOKUP('1α.ΔΕΛΤΙΟ ΔΕΔΟΜΕΝΩΝ'!M21&'1α.ΔΕΛΤΙΟ ΔΕΔΟΜΕΝΩΝ'!Q21&'1α.ΔΕΛΤΙΟ ΔΕΔΟΜΕΝΩΝ'!R21,'PS DATA'!D:E,2,FALSE)*'1α.ΔΕΛΤΙΟ ΔΕΔΟΜΕΝΩΝ'!C21*'2.ΒΑΣΙΚΕΣ ΤΙΜΕΣ'!B$54))) -> 0 | H21: =IF('1α.ΔΕΛΤΙΟ ΔΕΔΟΜΕΝΩΝ'!B21="",0,VLOOKUP('1α.ΔΕΛΤΙΟ ΔΕΔΟΜΕΝΩΝ'!B21,'CS DATA'!D$2:H$13,5,FALSE)*'1α.ΔΕΛΤΙΟ ΔΕΔΟΜΕΝΩΝ'!D21*'1α.ΔΕΛΤΙΟ ΔΕΔΟΜΕΝΩΝ'!C21*'2.ΒΑΣΙΚΕΣ ΤΙΜΕΣ'!D$70)*IF('1α.ΔΕΛΤΙΟ ΔΕΔΟΜΕΝΩΝ'!S21="",0,VLOOKUP('1α.ΔΕΛΤΙΟ ΔΕΔΟΜΕΝΩΝ'!S21,'CS DATA'!A$1:B$13,2,FALSE)) -> 0 | I21: =IF('1α.ΔΕΛΤΙΟ ΔΕΔΟΜΕΝΩΝ'!T21="",0,VLOOKUP('1α.ΔΕΛΤΙΟ ΔΕΔΟΜΕΝΩΝ'!T21,'2.ΒΑΣΙΚΕΣ ΤΙΜΕΣ'!E$64:F$74,2,FALSE)*'1α.ΔΕΛΤΙΟ ΔΕΔΟΜΕΝΩΝ'!C21)*'2.ΒΑΣΙΚΕΣ ΤΙΜΕΣ'!D$71 -> 0 | J21: =IF('1α.ΔΕΛΤΙΟ ΔΕΔΟΜΕΝΩΝ'!B21="",0,VLOOKUP('1α.ΔΕΛΤΙΟ ΔΕΔΟΜΕΝΩΝ'!B21,'2.ΒΑΣΙΚΕΣ ΤΙΜΕΣ'!A$76:B$89,2,FALSE)*'1α.ΔΕΛΤΙΟ ΔΕΔΟΜΕΝΩΝ'!C21) -> 0 | K21: 0 | N21: =IF('1α.ΔΕΛΤΙΟ ΔΕΔΟΜΕΝΩΝ'!C$23=0,0,'1β.ΜΞΔΠ'!F43*'1α.ΔΕΛΤΙΟ ΔΕΔΟΜΕΝΩΝ'!C21/'1α.ΔΕΛΤΙΟ ΔΕΔΟΜΕΝΩΝ'!C$23) -> 0
A22: 20 | B22: =IF('1α.ΔΕΛΤΙΟ ΔΕΔΟΜΕΝΩΝ'!B22="",0,IF('1α.ΔΕΛΤΙΟ ΔΕΔΟΜΕΝΩΝ'!C22>0,VLOOKUP('1α.ΔΕΛΤΙΟ ΔΕΔΟΜΕΝΩΝ'!B22,'2.ΒΑΣΙΚΕΣ ΤΙΜΕΣ'!A$6:D$18,4,FALSE)*VLOOKUP('1α.ΔΕΛΤΙΟ ΔΕΔΟΜΕΝΩΝ'!B22,'2.ΒΑΣΙΚΕΣ ΤΙΜΕΣ'!A$6:K$18,11,FALSE),0)*'1α.ΔΕΛΤΙΟ ΔΕΔΟΜΕΝΩΝ'!C22*'1α.ΔΕΛΤΙΟ ΔΕΔΟΜΕΝΩΝ'!D22) -> 0 | C22: ='1α.ΔΕΛΤΙΟ ΔΕΔΟΜΕΝΩΝ'!F22*'2.ΒΑΣΙΚΕΣ ΤΙΜΕΣ'!C$22*'2.ΒΑΣΙΚΕΣ ΤΙΜΕΣ'!D$22*'1α.ΔΕΛΤΙΟ ΔΕΔΟΜΕΝΩΝ'!C22+'1α.ΔΕΛΤΙΟ ΔΕΔΟΜΕΝΩΝ'!C22*'1α.ΔΕΛΤΙΟ ΔΕΔΟΜΕΝΩΝ'!G22*'2.ΒΑΣΙΚΕΣ ΤΙΜΕΣ'!C$25*'2.ΒΑΣΙΚΕΣ ΤΙΜΕΣ'!D$25+'1α.ΔΕΛΤΙΟ ΔΕΔΟΜΕΝΩΝ'!H22*'1α.ΔΕΛΤΙΟ ΔΕΔΟΜΕΝΩΝ'!C22*'2.ΒΑΣΙΚΕΣ ΤΙΜΕΣ'!C$27*'2.ΒΑΣΙΚΕΣ ΤΙΜΕΣ'!D$27*'1α.ΔΕΛΤΙΟ ΔΕΔΟΜΕΝΩΝ'!W22+N22 -> 0 | D22: =IF('1α.ΔΕΛΤΙΟ ΔΕΔΟΜΕΝΩΝ'!B22="",0,VLOOKUP('1α.ΔΕΛΤΙΟ ΔΕΔΟΜΕΝΩΝ'!B22,'2.ΒΑΣΙΚΕΣ ΤΙΜΕΣ'!A$36:B$51,2,FALSE)*('1α.ΔΕΛΤΙΟ ΔΕΔΟΜΕΝΩΝ'!C22-'1α.ΔΕΛΤΙΟ ΔΕΔΟΜΕΝΩΝ'!J22)) -> 0 | E22: ='2.ΒΑΣΙΚΕΣ ΤΙΜΕΣ'!D$36*0.7*('1α.ΔΕΛΤΙΟ ΔΕΔΟΜΕΝΩΝ'!C22-'1α.ΔΕΛΤΙΟ ΔΕΔΟΜΕΝΩΝ'!K22) -> 0 | F22: =IF('1α.ΔΕΛΤΙΟ ΔΕΔΟΜΕΝΩΝ'!B22="",0,VLOOKUP('1α.ΔΕΛΤΙΟ ΔΕΔΟΜΕΝΩΝ'!B22,'2.ΒΑΣΙΚΕΣ ΤΙΜΕΣ'!A$36:C$51,3,FALSE)*'1α.ΔΕΛΤΙΟ ΔΕΔΟΜΕΝΩΝ'!C22) -> 0 | G22: =(IF(OR('1α.ΔΕΛΤΙΟ ΔΕΔΟΜΕΝΩΝ'!M22="",'1α.ΔΕΛΤΙΟ ΔΕΔΟΜΕΝΩΝ'!Q22="",'1α.ΔΕΛΤΙΟ ΔΕΔΟΜΕΝΩΝ'!R22="",'1α.ΔΕΛΤΙΟ ΔΕΔΟΜΕΝΩΝ'!R22="Επιφάνεια χωρίς φυτοκάλυψη "),0,IF('1α.ΔΕΛΤΙΟ ΔΕΔΟΜΕΝΩΝ'!M22=0,0,VLOOKUP('1α.ΔΕΛΤΙΟ ΔΕΔΟΜΕΝΩΝ'!M22&'1α.ΔΕΛΤΙΟ ΔΕΔΟΜΕΝΩΝ'!Q22&'1α.ΔΕΛΤΙΟ ΔΕΔΟΜΕΝΩΝ'!R22,'PS DATA'!D:E,2,FALSE)*'1α.ΔΕΛΤΙΟ ΔΕΔΟΜΕΝΩΝ'!C22*'2.ΒΑΣΙΚΕΣ ΤΙΜΕΣ'!B$54))) -> 0 | H22: =IF('1α.ΔΕΛΤΙΟ ΔΕΔΟΜΕΝΩΝ'!B22="",0,VLOOKUP('1α.ΔΕΛΤΙΟ ΔΕΔΟΜΕΝΩΝ'!B22,'CS DATA'!D$2:H$13,5,FALSE)*'1α.ΔΕΛΤΙΟ ΔΕΔΟΜΕΝΩΝ'!D22*'1α.ΔΕΛΤΙΟ ΔΕΔΟΜΕΝΩΝ'!C22*'2.ΒΑΣΙΚΕΣ ΤΙΜΕΣ'!D$70)*IF('1α.ΔΕΛΤΙΟ ΔΕΔΟΜΕΝΩΝ'!S22="",0,VLOOKUP('1α.ΔΕΛΤΙΟ ΔΕΔΟΜΕΝΩΝ'!S22,'CS DATA'!A$1:B$13,2,FALSE)) -> 0 | I22: =IF('1α.ΔΕΛΤΙΟ ΔΕΔΟΜΕΝΩΝ'!T22="",0,VLOOKUP('1α.ΔΕΛΤΙΟ ΔΕΔΟΜΕΝΩΝ'!T22,'2.ΒΑΣΙΚΕΣ ΤΙΜΕΣ'!E$64:F$74,2,FALSE)*'1α.ΔΕΛΤΙΟ ΔΕΔΟΜΕΝΩΝ'!C22)*'2.ΒΑΣΙΚΕΣ ΤΙΜΕΣ'!D$71 -> 0 | J22: =IF('1α.ΔΕΛΤΙΟ ΔΕΔΟΜΕΝΩΝ'!B22="",0,VLOOKUP('1α.ΔΕΛΤΙΟ ΔΕΔΟΜΕΝΩΝ'!B22,'2.ΒΑΣΙΚΕΣ ΤΙΜΕΣ'!A$76:B$89,2,FALSE)*'1α.ΔΕΛΤΙΟ ΔΕΔΟΜΕΝΩΝ'!C22) -> 0 | K22: 0 | N22: =IF('1α.ΔΕΛΤΙΟ ΔΕΔΟΜΕΝΩΝ'!C$23=0,0,'1β.ΜΞΔΠ'!F44*'1α.ΔΕΛΤΙΟ ΔΕΔΟΜΕΝΩΝ'!C22/'1α.ΔΕΛΤΙΟ ΔΕΔΟΜΕΝΩΝ'!C$23) -> 0
A23: Σ | B23: =SUM(B3:B22) -> 0 | C23: =SUM(C3:C22) -> 0 | D23: 0 | E23: 0 | F23: 0 | G23: 0 | H23: 0 | I23: 0 | J23: 0 | K23: =SUM(K3:K22) -> 0
B24: =B23/$K23 ->  | C24: =C23/$K23 -> 
B25: =IF($K23>0,B24,"-") -> - | C25: =IF($K23>0,C24,"-") -> - | D25: - | E25: - | F25: - | G25: - | H25: - | I25: - | J25: - | K25: -
A26: €/ha | B26: =IF('1α.ΔΕΛΤΙΟ ΔΕΔΟΜΕΝΩΝ'!$C23=0,0,B23/'1α.ΔΕΛΤΙΟ ΔΕΔΟΜΕΝΩΝ'!$C23) -> 0 | C26: =IF('1α.ΔΕΛΤΙΟ ΔΕΔΟΜΕΝΩΝ'!$C23=0,0,C23/'1α.ΔΕΛΤΙΟ ΔΕΔΟΜΕΝΩΝ'!$C23) -> 0 | D26: =IF('1α.ΔΕΛΤΙΟ ΔΕΔΟΜΕΝΩΝ'!$C23=0,0,D23/'1α.ΔΕΛΤΙΟ ΔΕΔΟΜΕΝΩΝ'!$C23) -> 0 | E26: =IF('1α.ΔΕΛΤΙΟ ΔΕΔΟΜΕΝΩΝ'!$C23=0,0,E23/'1α.ΔΕΛΤΙΟ ΔΕΔΟΜΕΝΩΝ'!$C23) -> 0 | F26: =IF('1α.ΔΕΛΤΙΟ ΔΕΔΟΜΕΝΩΝ'!$C23=0,0,F23/'1α.ΔΕΛΤΙΟ ΔΕΔΟΜΕΝΩΝ'!$C23) -> 0 | G26: =IF('1α.ΔΕΛΤΙΟ ΔΕΔΟΜΕΝΩΝ'!$C23=0,0,G23/'1α.ΔΕΛΤΙΟ ΔΕΔΟΜΕΝΩΝ'!$C23) -> 0 | H26: =IF('1α.ΔΕΛΤΙΟ ΔΕΔΟΜΕΝΩΝ'!$C23=0,0,H23/'1α.ΔΕΛΤΙΟ ΔΕΔΟΜΕΝΩΝ'!$C23) -> 0 | I26: =IF('1α.ΔΕΛΤΙΟ ΔΕΔΟΜΕΝΩΝ'!$C23=0,0,I23/'1α.ΔΕΛΤΙΟ ΔΕΔΟΜΕΝΩΝ'!$C23) -> 0 | J26: =IF('1α.ΔΕΛΤΙΟ ΔΕΔΟΜΕΝΩΝ'!$C23=0,0,J23/'1α.ΔΕΛΤΙΟ ΔΕΔΟΜΕΝΩΝ'!$C23) -> 0 | K26: =IF('1α.ΔΕΛΤΙΟ ΔΕΔΟΜΕΝΩΝ'!$C23=0,0,K23/'1α.ΔΕΛΤΙΟ ΔΕΔΟΜΕΝΩΝ'!$C23) -> 0
B28: ΤΙΜΗ ΑΝΑ ΣΤΡΕΜΜΑ | D28: =K26/C29/10 -> 0 | F28: ΣΥΝΟΛΙΚΗ ΑΞΙΑ ΤΗΣ ΔΑΣΙΚΗΣ ΓΗΣ | H28: =K23/G29 -> 0
B29: για p= | C29: 0.035 | F29: για p= | G29: 0.035

Sheet 3β.ΤΕΚΜΗΡΙΩΣΗ
A1: ΔΕΛΤΙΟ ΤΕΚΜΗΡΙΩΣΗΣ ΤΗΣ ΑΠΟΤΙΜΗΣΗΣ ΤΗΣ ΑΞΙΑΣ ΔΑΣΙΚΗΣ ΓΗΣ
A2: Δάσος ή δασική θέση:
A3: Συνολική έκταση: | D3: ='1α.ΔΕΛΤΙΟ ΔΕΔΟΜΕΝΩΝ'!C23 -> 0 | E3: ha
A5: Α. ΥΠΟΛΟΓΙΖΟΜΕΝΗ ΑΞΙΑ ΤΗΣ ΔΑΣΙΚΗΣ ΓΗΣ
A6: α/α | B6: Λειτουργία | D6: Ετήσια αξία σε | F6: %
D7: €/ha | E7: €
A8: 1 | B8: Παραγωγή ξύλου (Vw) | D8: ='3α.ΑΠΟΤΕΛΕΣΜΑΤΑ'!B26 -> 0 | E8: ='3α.ΑΠΟΤΕΛΕΣΜΑΤΑ'!B23 -> 0 | F8: =IF(E8=0,0,E8/E$18) -> 0
A9: 2 | B9: Μη ξυλώδη δασ.πρ. (Vnwfp) | D9: ='3α.ΑΠΟΤΕΛΕΣΜΑΤΑ'!C26 -> 0 | E9: ='3α.ΑΠΟΤΕΛΕΣΜΑΤΑ'!C23 -> 0 | F9: 0
A10: 3 | B10: Βόσκηση (Vg) | D10: ='3α.ΑΠΟΤΕΛΕΣΜΑΤΑ'!D26 -> 0 | E10: ='3α.ΑΠΟΤΕΛΕΣΜΑΤΑ'!D23 -> 0 | F10: 0
A11: 4 | B11: Κυνήγι (Vh) | D11: ='3α.ΑΠΟΤΕΛΕΣΜΑΤΑ'!E26 -> 0 | E11: ='3α.ΑΠΟΤΕΛΕΣΜΑΤΑ'!E23 -> 0 | F11: 0
A12: 5 | B12: Αναψυχή (Vr) | D12: ='3α.ΑΠΟΤΕΛΕΣΜΑΤΑ'!F26 -> 0 | E12: ='3α.ΑΠΟΤΕΛΕΣΜΑΤΑ'!F23 -> 0 | F12: 0
A13: 6 | B13: Προστασία εδάφους (Vps) | D13: ='3α.ΑΠΟΤΕΛΕΣΜΑΤΑ'!G26 -> 0 | E13: ='3α.ΑΠΟΤΕΛΕΣΜΑΤΑ'!G23 -> 0 | F13: 0
A14: 7 | B14: Δέσμευση άνθρακα (Vcs) | D14: ='3α.ΑΠΟΤΕΛΕΣΜΑΤΑ'!H26 -> 0 | E14: ='3α.ΑΠΟΤΕΛΕΣΜΑΤΑ'!H23 -> 0 | F14: 0
A15: 8 | B15: Βιοποικιλότητα (Vps) | D15: ='3α.ΑΠΟΤΕΛΕΣΜΑΤΑ'!I26 -> 0 | E15: ='3α.ΑΠΟΤΕΛΕΣΜΑΤΑ'!I23 -> 0 | F15: 0
A16: 9 | B16: Ζημίες από πυρκαγιές (Df) | D16: ='3α.ΑΠΟΤΕΛΕΣΜΑΤΑ'!J26 -> 0 | E16: ='3α.ΑΠΟΤΕΛΕΣΜΑΤΑ'!J23 -> 0 | F16: 0
A17: 10
A18: 11 | B18: Σύνολο | D18: ='3α.ΑΠΟΤΕΛΕΣΜΑΤΑ'!K26 -> 0 | E18: ='3α.ΑΠΟΤΕΛΕΣΜΑΤΑ'!K23 -> 0 | F18: =IF(E18=0,0,E18/E$18) -> 0
B20: ΚΕΦΑΛΑΙΑΚΗ ΑΞΙΑ ΣΕ €/ΣΤΡ. | D20: ='3α.ΑΠΟΤΕΛΕΣΜΑΤΑ'!D28 -> 0
B21: ΣΥΝΟΛΙΚΗ ΚΕΦΑΛ. ΑΞΙΑ | D21: ='3α.ΑΠΟΤΕΛΕΣΜΑΤΑ'!H28 -> 0
B22: προεξοφλ. Επιτόκιο p | D22: ='3α.ΑΠΟΤΕΛΕΣΜΑΤΑ'!C29 -> 0.035
B24: Ο ΑΠΟΤΙΜΗΤΗΣ
A29: Β. ΠΑΡΑΔΟΧΕΣ ΚΑΙ ΒΑΣΙΚΕΣ ΤΙΜΕΣ
A30: α/α | B30: Δασικό είδος | D30: Μέση περίτροπη προσαύξηση | E30: Τιμές πρέμνου | F30: Μέση παραγωγή | G30: Ετήσια ζημία από πυρκαγιές
D31: m3/ha,έτος | E31: (€/m3) | F31: m3/ha,έτος | G31: €/ha
A32: 1 | B32: ='2.ΒΑΣΙΚΕΣ ΤΙΜΕΣ'!A6 -> Ελάτη | D32: ='2.ΒΑΣΙΚΕΣ ΤΙΜΕΣ'!D6 -> 5.2 | E32: ='2.ΒΑΣΙΚΕΣ ΤΙΜΕΣ'!K6 -> 20.39 | F32: ='2.ΒΑΣΙΚΕΣ ΤΙΜΕΣ'!K64 -> 0.15 | G32: ='2.ΒΑΣΙΚΕΣ ΤΙΜΕΣ'!B76 -> 38.63
A33: 2 | B33: ='2.ΒΑΣΙΚΕΣ ΤΙΜΕΣ'!A7 -> Ερυθρελάτη | D33: ='2.ΒΑΣΙΚΕΣ ΤΙΜΕΣ'!D7 -> 8.5 | E33: ='2.ΒΑΣΙΚΕΣ ΤΙΜΕΣ'!K7 -> 30.96 | F33: ='2.ΒΑΣΙΚΕΣ ΤΙΜΕΣ'!K65 -> 5.65 | G33: ='2.ΒΑΣΙΚΕΣ ΤΙΜΕΣ'!B77 -> 44.46
A34: 3 | B34: ='2.ΒΑΣΙΚΕΣ ΤΙΜΕΣ'!A8 -> Πεύκη | D34: ='2.ΒΑΣΙΚΕΣ ΤΙΜΕΣ'!D8 -> 5.87 | E34: ='2.ΒΑΣΙΚΕΣ ΤΙΜΕΣ'!K8 -> 10.97 | F34: ='2.ΒΑΣΙΚΕΣ ΤΙΜΕΣ'!K66 -> 0.3 | G34: ='2.ΒΑΣΙΚΕΣ ΤΙΜΕΣ'!B78 -> 55.13
A35: 4 | B35: ='2.ΒΑΣΙΚΕΣ ΤΙΜΕΣ'!A9 -> Οξυά | D35: ='2.ΒΑΣΙΚΕΣ ΤΙΜΕΣ'!D9 -> 6.3 | E35: ='2.ΒΑΣΙΚΕΣ ΤΙΜΕΣ'!K9 -> 14.13 | F35: ='2.ΒΑΣΙΚΕΣ ΤΙΜΕΣ'!K67 -> 0.86 | G35: ='2.ΒΑΣΙΚΕΣ ΤΙΜΕΣ'!B79 -> 36.93
A36: 5 | B36: ='2.ΒΑΣΙΚΕΣ ΤΙΜΕΣ'!A10 -> Δρυς | D36: ='2.ΒΑΣΙΚΕΣ ΤΙΜΕΣ'!D10 -> 2.62 | E36: ='2.ΒΑΣΙΚΕΣ ΤΙΜΕΣ'!K10 -> 13.24 | F36: ='2.ΒΑΣΙΚΕΣ ΤΙΜΕΣ'!K68 -> 0.2 | G36: ='2.ΒΑΣΙΚΕΣ ΤΙΜΕΣ'!B80 -> 46.88
A37: 6 | B37: ='2.ΒΑΣΙΚΕΣ ΤΙΜΕΣ'!A11 -> Λοιπά πλατύφυλλα | D37: ='2.ΒΑΣΙΚΕΣ ΤΙΜΕΣ'!D11 -> 2.06 | E37: ='2.ΒΑΣΙΚΕΣ ΤΙΜΕΣ'!K11 -> 12.81 | F37: ='2.ΒΑΣΙΚΕΣ ΤΙΜΕΣ'!K69 -> 0.43 | G37: ='2.ΒΑΣΙΚΕΣ ΤΙΜΕΣ'!B81 -> 85.8
A38: 7 | B38: ='2.ΒΑΣΙΚΕΣ ΤΙΜΕΣ'!A12 -> Αείφυλλα πλατύφυλλα | D38: ='2.ΒΑΣΙΚΕΣ ΤΙΜΕΣ'!D12 -> 0.3 | E38: ='2.ΒΑΣΙΚΕΣ ΤΙΜΕΣ'!K12 -> 2.35 | F38: ='2.ΒΑΣΙΚΕΣ ΤΙΜΕΣ'!K70 -> 0.2 | G38: ='2.ΒΑΣΙΚΕΣ ΤΙΜΕΣ'!B82 -> 39.54
A39: 8 | B39: Φρύγανα | G39: ='2.ΒΑΣΙΚΕΣ ΤΙΜΕΣ'!B83 -> 41.1
A40: 9 | B40: Χορτολίβαδα | G40: ='2.ΒΑΣΙΚΕΣ ΤΙΜΕΣ'!B84 -> 37.67
A42: α/α | B42: Κατηγορία βλάστησης | D42: Ετήσιες πρόσοδοι από
D43: Βόσκηση | E43: Αναψυχή | F43: Κυνήγι
A44: 10 | B44: ='2.ΒΑΣΙΚΕΣ ΤΙΜΕΣ'!A36 -> Υψηλά δάση | D44: ='2.ΒΑΣΙΚΕΣ ΤΙΜΕΣ'!B36 -> 45 | E44: ='2.ΒΑΣΙΚΕΣ ΤΙΜΕΣ'!C36 -> 94.3 | F44: ='2.ΒΑΣΙΚΕΣ ΤΙΜΕΣ'!D36 -> 1.57
A45: 11 | B45: ='2.ΒΑΣΙΚΕΣ ΤΙΜΕΣ'!A37 -> Αείφυλλα πλατύφυλλα | D45: ='2.ΒΑΣΙΚΕΣ ΤΙΜΕΣ'!B37 -> 82.5 | E45: ='2.ΒΑΣΙΚΕΣ ΤΙΜΕΣ'!C37 -> 75.4
A46: 12 | B46: ='2.ΒΑΣΙΚΕΣ ΤΙΜΕΣ'!A38 -> Φρυγανικά οικοσυστήματα | D46: ='2.ΒΑΣΙΚΕΣ ΤΙΜΕΣ'!B38 -> 80 | E46: ='2.ΒΑΣΙΚΕΣ ΤΙΜΕΣ'!C38 -> 66
A47: 13 | B47: ='2.ΒΑΣΙΚΕΣ ΤΙΜΕΣ'!A39 -> Χορτολιβαδικές εκτάσεις | D47: ='2.ΒΑΣΙΚΕΣ ΤΙΜΕΣ'!B39 -> 125 | E47: ='2.ΒΑΣΙΚΕΣ ΤΙΜΕΣ'!C39 -> 47.2
B49: Τιμή άνθρακα (€/tn) | D49: ='2.ΒΑΣΙΚΕΣ ΤΙΜΕΣ'!D70 -> 4.87
B50: Ετήσια αξία βιοποικιλότητας (€/ha) | D50: ='2.ΒΑΣΙΚΕΣ ΤΙΜΕΣ'!D71 -> 120
B51: Τιμή εδάφους (€/m3) | D51: ='2.ΒΑΣΙΚΕΣ ΤΙΜΕΣ'!B54 -> 6
A53: Γ. ΑΝΑΛΥΣΗ ΕΥΑΙΣΘΗΣΙΑΣ
B54: ΚΕΦΑΛΑΙΑΚΗ ΑΞΙΑ | D54: Επιτόκιο προεξόφλησης p
D55: =E55-0.005 -> 0.03 | E55: =D22 -> 0.035 | F55: =E55+0.005 -> 0.04
B56: €/στρέμμα | D56: =D18/10/D55 -> 0 | E56: =D20 -> 0 | F56: =D18/10/F55 -> 0
B57: € | D57: =E18/D55 -> 0 | E57: =D21 -> 0 | F57: =E18/F55 -> 0

Sheet PS DATA (hidden)
A1: ΚΛΙΣΗ | B1: ΓΕΩΛΟΓΙΚΟΙ ΣΧΗΜΑΤΙΣΜΟΙ | C1: ΒΛΑΣΤΗΣΗ | D1: CODE | E1: ΤΙΜΗ S
A2: 0-25% | B2: Σκληρά πετρώματα, ανθεκτικά στη διάβρωση | C2: Μικτές δασοσυστάδες και πυκνοί θαμνώνες ή δασοσυστάδες αραιές με υπόροφο | D2: =A2&B2&C2 -> 0-25%Σκληρά πετρώματα, ανθεκτικά στη διάβρωσηΜικτές δασοσυστάδες και πυκνοί θαμνώνες ή δασοσυστάδες αραιές με υπόροφο | E2: 3.16
A3: 0-25% | B3: Σκληρά πετρώματα, ανθεκτικά στη διάβρωση | C3: Δασοσυστάδες κωνοφόρων με υπόροφο ασθενή ή θαμνώνες όχι σύμπυκνοι | D3: =A3&B3&C3 -> 0-25%Σκληρά πετρώματα, ανθεκτικά στη διάβρωσηΔασοσυστάδες κωνοφόρων με υπόροφο ασθενή ή θαμνώνες όχι σύμπυκνοι | E3: 2.93
A4: 0-25% | B4: Σκληρά πετρώματα, ανθεκτικά στη διάβρωση | C4: Δασοσυστάδες και θαμνώνες υποβαθμισμένοι, λιβάδια | D4: 0-25%Σκληρά πετρώματα, ανθεκτικά στη διάβρωσηΔασοσυστάδες και θαμνώνες υποβαθμισμένοι, λιβάδια | E4: 2.44
A5: 0-25% | B5: Σκληρά πετρώματα, ανθεκτικά στη διάβρωση | C5: Λιβάδια και εδάφη καλλιεργούμενα, υποβαθμισμένα | D5: 0-25%Σκληρά πετρώματα, ανθεκτικά στη διάβρωσηΛιβάδια και εδάφη καλλιεργούμενα, υποβαθμισμένα | E5: 1.31
A6: 25-40% | B6: Σκληρά πετρώματα, ανθεκτικά στη διάβρωση | C6: Μικτές δασοσυστάδες και πυκνοί θαμνώνες ή δασοσυστάδες αραιές με υπόροφο | D6: 25-40%Σκληρά πετρώματα, ανθεκτικά στη διάβρωσηΜικτές δασοσυστάδες και πυκνοί θαμνώνες ή δασοσυστάδες αραιές με υπόροφο | E6: 4.61
A7: 25-40% | B7: Σκληρά πετρώματα, ανθεκτικά στη διάβρωση | C7: Δασοσυστάδες κωνοφόρων με υπόροφο ασθενή ή θαμνώνες όχι σύμπυκνοι | D7: 25-40%Σκληρά πετρώματα, ανθεκτικά στη διάβρωσηΔασοσυστάδες κωνοφόρων με υπόροφο ασθενή ή θαμνώνες όχι σύμπυκνοι | E7: 4.28
A8: 25-40% | B8: Σκληρά πετρώματα, ανθεκτικά στη διάβρωση | C8: Δασοσυστάδες και θαμνώνες υποβαθμισμένοι, λιβάδια | D8: 25-40%Σκληρά πετρώματα, ανθεκτικά στη διάβρωσηΔασοσυστάδες και θαμνώνες υποβαθμισμένοι, λιβάδια | E8: 3.57
A9: 25-40% | B9: Σκληρά πετρώματα, ανθεκτικά στη διάβρωση | C9: Λιβάδια και εδάφη καλλιεργούμενα, υποβαθμισμένα | D9: 25-40%Σκληρά πετρώματα, ανθεκτικά στη διάβρωσηΛιβάδια και εδάφη καλλιεργούμενα, υποβαθμισμένα | E9: 1.91
A10: 40-60% | B10: Σκληρά πετρώματα, ανθεκτικά στη διάβρωση | C10: Μικτές δασοσυστάδες και πυκνοί θαμνώνες ή δασοσυστάδες αραιές με υπόροφο | D10: 40-60%Σκληρά πετρώματα, ανθεκτικά στη διάβρωσηΜικτές δασοσυστάδες και πυκνοί θαμνώνες ή δασοσυστάδες αραιές με υπόροφο | E10: 5.62
A11: 40-60% | B11: Σκληρά πετρώματα, ανθεκτικά στη διάβρωση | C11: Δασοσυστάδες κωνοφόρων με υπόροφο ασθενή ή θαμνώνες όχι σύμπυκνοι | D11: 40-60%Σκληρά πετρώματα, ανθεκτικά στη διάβρωσηΔασοσυστάδες κωνοφόρων με υπόροφο ασθενή ή θαμνώνες όχι σύμπυκνοι | E11: 5.22
A12: 40-60% | B12: Σκληρά πετρώματα, ανθεκτικά στη διάβρωση | C12: Δασοσυστάδες και θαμνώνες υποβαθμισμένοι, λιβάδια | D12: 40-60%Σκληρά πετρώματα, ανθεκτικά στη διάβρωσηΔασοσυστάδες και θαμνώνες υποβαθμισμένοι, λιβάδια | E12: 4.35
A13: 40-60% | B13: Σκληρά πετρώματα, ανθεκτικά στη διάβρωση | C13: Λιβάδια και εδάφη καλλιεργούμενα, υποβαθμισμένα | D13: 40-60%Σκληρά πετρώματα, ανθεκτικά στη διάβρωσηΛιβάδια και εδάφη καλλιεργούμενα, υποβαθμισμένα | E13: 2.33
A14: 60-90% | B14: Σκληρά πετρώματα, ανθεκτικά στη διάβρωση | C14: Μικτές δασοσυστάδες και πυκνοί θαμνώνες ή δασοσυστάδες αραιές με υπόροφο | D14: 60-90%Σκληρά πετρώματα, ανθεκτικά στη διάβρωσηΜικτές δασοσυστάδες και πυκνοί θαμνώνες ή δασοσυστάδες αραιές με υπόροφο | E14: 6.87
A15: 60-90% | B15: Σκληρά πετρώματα, ανθεκτικά στη διάβρωση | C15: Δασοσυστάδες κωνοφόρων με υπόροφο ασθενή ή θαμνώνες όχι σύμπυκνοι | D15: 60-90%Σκληρά πετρώματα, ανθεκτικά στη διάβρωσηΔασοσυστάδες κωνοφόρων με υπόροφο ασθενή ή θαμνώνες όχι σύμπυκνοι | E15: 6.39
A16: 60-90% | B16: Σκληρά πετρώματα, ανθεκτικά στη διάβρωση | C16: Δασοσυστάδες και θαμνώνες υποβαθμισμένοι, λιβάδια | D16: 60-90%Σκληρά πετρώματα, ανθεκτικά στη διάβρωσηΔασοσυστάδες και θαμνώνες υποβαθμισμένοι, λιβάδια | E16: 5.32
A17: 60-90% | B17: Σκληρά πετρώματα, ανθεκτικά στη διάβρωση | C17: Λιβάδια και εδάφη καλλιεργούμενα, υποβαθμισμένα | D17: 60-90%Σκληρά πετρώματα, ανθεκτικά στη διάβρωσηΛιβάδια και εδάφη καλλιεργούμενα, υποβαθμισμένα | E17: 2.85
A18: >90% | B18: Σκληρά πετρώματα, ανθεκτικά στη διάβρωση | C18: Μικτές δασοσυστάδες και πυκνοί θαμνώνες ή δασοσυστάδες αραιές με υπόροφο | D18: >90%Σκληρά πετρώματα, ανθεκτικά στη διάβρωσηΜικτές δασοσυστάδες και πυκνοί θαμνώνες ή δασοσυστάδες αραιές με υπόροφο | E18: 7.99
A19: >90% | B19: Σκληρά πετρώματα, ανθεκτικά στη διάβρωση | C19: Δασοσυστάδες κωνοφόρων με υπόροφο ασθενή ή θαμνώνες όχι σύμπυκνοι | D19: >90%Σκληρά πετρώματα, ανθεκτικά στη διάβρωσηΔασοσυστάδες κωνοφόρων με υπόροφο ασθενή ή θαμνώνες όχι σύμπυκνοι | E19: 7.43
A20: >90% | B20: Σκληρά πετρώματα, ανθεκτικά στη διάβρωση | C20: Δασοσυστάδες και θαμνώνες υποβαθμισμένοι, λιβάδια | D20: >90%Σκληρά πετρώματα, ανθεκτικά στη διάβρωσηΔασοσυστάδες και θαμνώνες υποβαθμισμένοι, λιβάδια | E20: 6.18
A21: >90% | B21: Σκληρά πετρώματα, ανθεκτικά στη διάβρωση | C21: Λιβάδια και εδάφη καλλιεργούμενα, υποβαθμισμένα | D21: >90%Σκληρά πετρώματα, ανθεκτικά στη διάβρωσηΛιβάδια και εδάφη καλλιεργούμενα, υποβαθμισμένα | E21: 3.31
A22: 0-25% | B22: Πετρώματα μετρίως ανθεκτικά στη διάβρωση | C22: Μικτές δασοσυστάδες και πυκνοί θαμνώνες ή δασοσυστάδες αραιές με υπόροφο | D22: =A22&B22&C22 -> 0-25%Πετρώματα μετρίως ανθεκτικά στη διάβρωση Μικτές δασοσυστάδες και πυκνοί θαμνώνες ή δασοσυστάδες αραιές με υπόροφο | E22: 8.93
A23: 0-25% | B23: Πετρώματα μετρίως ανθεκτικά στη διάβρωση | C23: Δασοσυστάδες κωνοφόρων με υπόροφο ασθενή ή θαμνώνες όχι σύμπυκνοι | D23: 0-25%Πετρώματα μετρίως ανθεκτικά στη διάβρωση Δασοσυστάδες κωνοφόρων με υπόροφο ασθενή ή θαμνώνες όχι σύμπυκνοι | E23: 8.29
A24: 0-25% | B24: Πετρώματα μετρίως ανθεκτικά στη διάβρωση | C24: Δασοσυστάδες και θαμνώνες υποβαθμισμένοι, λιβάδια | D24: 0-25%Πετρώματα μετρίως ανθεκτικά στη διάβρωση Δασοσυστάδες και θαμνώνες υποβαθμισμένοι, λιβάδια | E24: 6.91
A25: 0-25% | B25: Πετρώματα μετρίως ανθεκτικά στη διάβρωση | C25: Λιβάδια και εδάφη καλλιεργούμενα, υποβαθμισμένα | D25: 0-25%Πετρώματα μετρίως ανθεκτικά στη διάβρωση Λιβάδια και εδάφη καλλιεργούμενα, υποβαθμισμένα | E25: 3.7
A26: 25-40% | B26: Πετρώματα μετρίως ανθεκτικά στη διάβρωση | C26: Μικτές δασοσυστάδες και πυκνοί θαμνώνες ή δασοσυστάδες αραιές με υπόροφο | D26: 25-40%Πετρώματα μετρίως ανθεκτικά στη διάβρωση Μικτές δασοσυστάδες και πυκνοί θαμνώνες ή δασοσυστάδες αραιές με υπόροφο | E26: 13.04
A27: 25-40% | B27: Πετρώματα μετρίως ανθεκτικά στη διάβρωση | C27: Δασοσυστάδες κωνοφόρων με υπόροφο ασθενή ή θαμνώνες όχι σύμπυκνοι | D27: 25-40%Πετρώματα μετρίως ανθεκτικά στη διάβρωση Δασοσυστάδες κωνοφόρων με υπόροφο ασθενή ή θαμνώνες όχι σύμπυκνοι | E27: 12.11
A28: 25-40% | B28: Πετρώματα μετρίως ανθεκτικά στη διάβρωση | C28: Δασοσυστάδες και θαμνώνες υποβαθμισμένοι, λιβάδια | D28: 25-40%Πετρώματα μετρίως ανθεκτικά στη διάβρωση Δασοσυστάδες και θαμνώνες υποβαθμισμένοι, λιβάδια | E28: 10.09
A29: 25-40% | B29: Πετρώματα μετρίως ανθεκτικά στη διάβρωση | C29: Λιβάδια και εδάφη καλλιεργούμενα, υποβαθμισμένα | D29: 25-40%Πετρώματα μετρίως ανθεκτικά στη διάβρωση Λιβάδια και εδάφη καλλιεργούμενα, υποβαθμισμένα | E29: 5.41
A30: 40-60% | B30: Πετρώματα μετρίως ανθεκτικά στη διάβρωση | C30: Μικτές δασοσυστάδες και πυκνοί θαμνώνες ή δασοσυστάδες αραιές με υπόροφο | D30: 40-60%Πετρώματα μετρίως ανθεκτικά στη διάβρωση Μικτές δασοσυστάδες και πυκνοί θαμνώνες ή δασοσυστάδες αραιές με υπόροφο | E30: 15.9
A31: 40-60% | B31: Πετρώματα μετρίως ανθεκτικά στη διάβρωση | C31: Δασοσυστάδες κωνοφόρων με υπόροφο ασθενή ή θαμνώνες όχι σύμπυκνοι | D31: 40-60%Πετρώματα μετρίως ανθεκτικά στη διάβρωση Δασοσυστάδες κωνοφόρων με υπόροφο ασθενή ή θαμνώνες όχι σύμπυκνοι | E31: 14.77
A32: 40-60% | B32: Πετρώματα μετρίως ανθεκτικά στη διάβρωση | C32: Δασοσυστάδες και θαμνώνες υποβαθμισμένοι, λιβάδια | D32: 40-60%Πετρώματα μετρίως ανθεκτικά στη διάβρωση Δασοσυστάδες και θαμνώνες υποβαθμισμένοι, λιβάδια | E32: 12.3
A33: 40-60% | B33: Πετρώματα μετρίως ανθεκτικά στη διάβρωση | C33: Λιβάδια και εδάφη καλλιεργούμενα, υποβαθμισμένα | D33: 40-60%Πετρώματα μετρίως ανθεκτικά στη διάβρωση Λιβάδια και εδάφη καλλιεργούμενα, υποβαθμισμένα | E33: 6.59
A34: 60-90% | B34: Πετρώματα μετρίως ανθεκτικά στη διάβρωση | C34: Μικτές δασοσυστάδες και πυκνοί θαμνώνες ή δασοσυστάδες αραιές με υπόροφο | D34: 60-90%Πετρώματα μετρίως ανθεκτικά στη διάβρωση Μικτές δασοσυστάδες και πυκνοί θαμνώνες ή δασοσυστάδες αραιές με υπόροφο | E34: 19.44
A35: 60-90% | B35: Πετρώματα μετρίως ανθεκτικά στη διάβρωση | C35: Δασοσυστάδες κωνοφόρων με υπόροφο ασθενή ή θαμνώνες όχι σύμπυκνοι | D35: 60-90%Πετρώματα μετρίως ανθεκτικά στη διάβρωση Δασοσυστάδες κωνοφόρων με υπόροφο ασθενή ή θαμνώνες όχι σύμπυκνοι | E35: 18.06
A36: 60-90% | B36: Πετρώματα μετρίως ανθεκτικά στη διάβρωση | C36: Δασοσυστάδες και θαμνώνες υποβαθμισμένοι, λιβάδια | D36: 60-90%Πετρώματα μετρίως ανθεκτικά στη διάβρωση Δασοσυστάδες και θαμνώνες υποβαθμισμένοι, λιβάδια | E36: 15.04
A37: 60-90% | B37: Πετρώματα μετρίως ανθεκτικά στη διάβρωση | C37: Λιβάδια και εδάφη καλλιεργούμενα, υποβαθμισμένα | D37: 60-90%Πετρώματα μετρίως ανθεκτικά στη διάβρωση Λιβάδια και εδάφη καλλιεργούμενα, υποβαθμισμένα | E37: 8.06
A38: >90% | B38: Πετρώματα μετρίως ανθεκτικά στη διάβρωση | C38: Μικτές δασοσυστάδες και πυκνοί θαμνώνες ή δασοσυστάδες αραιές με υπόροφο | D38: >90%Πετρώματα μετρίως ανθεκτικά στη διάβρωση Μικτές δασοσυστάδες και πυκνοί θαμνώνες ή δασοσυστάδες αραιές με υπόροφο | E38: 22.61
A39: >90% | B39: Πετρώματα μετρίως ανθεκτικά στη διάβρωση | C39: Δασοσυστάδες κωνοφόρων με υπόροφο ασθενή ή θαμνώνες όχι σύμπυκνοι | D39: >90%Πετρώματα μετρίως ανθεκτικά στη διάβρωση Δασοσυστάδες κωνοφόρων με υπόροφο ασθενή ή θαμνώνες όχι σύμπυκνοι | E39: 21
A40: >90% | B40: Πετρώματα μετρίως ανθεκτικά στη διάβρωση | C40: Δασοσυστάδες και θαμνώνες υποβαθμισμένοι, λιβάδια | D40: >90%Πετρώματα μετρίως ανθεκτικά στη διάβρωση Δασοσυστάδες και θαμνώνες υποβαθμισμένοι, λιβάδια | E40: 17.49
A41: >90% | B41: Πετρώματα μετρίως ανθεκτικά στη διάβρωση | C41: Λιβάδια και εδάφη καλλιεργούμενα, υποβαθμισμένα | D41: >90%Πετρώματα μετρίως ανθεκτικά στη διάβρωση Λιβάδια και εδάφη καλλιεργούμενα, υποβαθμισμένα | E41: 9.37
A42: 0-25% | B42: Εύθρυπτα πετρώματα | C42: Μικτές δασοσυστάδες και πυκνοί θαμνώνες ή δασοσυστάδες αραιές με υπόροφο | D42: 0-25%Εύθρυπτα πετρώματα Μικτές δασοσυστάδες και πυκνοί θαμνώνες ή δασοσυστάδες αραιές με υπόροφο | E42: 15.39
A43: 0-25% | B43: Εύθρυπτα πετρώματα | C43: Δασοσυστάδες κωνοφόρων με υπόροφο ασθενή ή θαμνώνες όχι σύμπυκνοι | D43: 0-25%Εύθρυπτα πετρώματα Δασοσυστάδες κωνοφόρων με υπόροφο ασθενή ή θαμνώνες όχι σύμπυκνοι | E43: 14.29
A44: 0-25% | B44: Εύθρυπτα πετρώματα | C44: Δασοσυστάδες και θαμνώνες υποβαθμισμένοι, λιβάδια | D44: 0-25%Εύθρυπτα πετρώματα Δασοσυστάδες και θαμνώνες υποβαθμισμένοι, λιβάδια | E44: 11.9
A45: 0-25% | B45: Εύθρυπτα πετρώματα | C45: Λιβάδια και εδάφη καλλιεργούμενα, υποβαθμισμένα | D45: 0-25%Εύθρυπτα πετρώματα Λιβάδια και εδάφη καλλιεργούμενα, υποβαθμισμένα | E45: 6.38
A46: 25-40% | B46: Εύθρυπτα πετρώματα | C46: Μικτές δασοσυστάδες και πυκνοί θαμνώνες ή δασοσυστάδες αραιές με υπόροφο | D46: 25-40%Εύθρυπτα πετρώματα Μικτές δασοσυστάδες και πυκνοί θαμνώνες ή δασοσυστάδες αραιές με υπόροφο | E46: 22.47
A47: 25-40% | B47: Εύθρυπτα πετρώματα | C47: Δασοσυστάδες κωνοφόρων με υπόροφο ασθενή ή θαμνώνες όχι σύμπυκνοι | D47: 25-40%Εύθρυπτα πετρώματα Δασοσυστάδες κωνοφόρων με υπόροφο ασθενή ή θαμνώνες όχι σύμπυκνοι | E47: 20.88
A48: 25-40% | B48: Εύθρυπτα πετρώματα | C48: Δασοσυστάδες και θαμνώνες υποβαθμισμένοι, λιβάδια | D48: 25-40%Εύθρυπτα πετρώματα Δασοσυστάδες και θαμνώνες υποβαθμισμένοι, λιβάδια | E48: 17.38
A49: 25-40% | B49: Εύθρυπτα πετρώματα | C49: Λιβάδια και εδάφη καλλιεργούμενα, υποβαθμισμένα | D49: 25-40%Εύθρυπτα πετρώματα Λιβάδια και εδάφη καλλιεργούμενα, υποβαθμισμένα | E49: 9.32
A50: 40-60% | B50: Εύθρυπτα πετρώματα | C50: Μικτές δασοσυστάδες και πυκνοί θαμνώνες ή δασοσυστάδες αραιές με υπόροφο | D50: 40-60%Εύθρυπτα πετρώματα Μικτές δασοσυστάδες και πυκνοί θαμνώνες ή δασοσυστάδες αραιές με υπόροφο | E50: 27.4
A51: 40-60% | B51: Εύθρυπτα πετρώματα | C51: Δασοσυστάδες κωνοφόρων με υπόροφο ασθενή ή θαμνώνες όχι σύμπυκνοι | D51: 40-60%Εύθρυπτα πετρώματα Δασοσυστάδες κωνοφόρων με υπόροφο ασθενή ή θαμνώνες όχι σύμπυκνοι | E51: 25.45
A52: 40-60% | B52: Εύθρυπτα πετρώματα | C52: Δασοσυστάδες και θαμνώνες υποβαθμισμένοι, λιβάδια | D52: 40-60%Εύθρυπτα πετρώματα Δασοσυστάδες και θαμνώνες υποβαθμισμένοι, λιβάδια | E52: 21.19
A53: 40-60% | B53: Εύθρυπτα πετρώματα | C53: Λιβάδια και εδάφη καλλιεργούμενα, υποβαθμισμένα | D53: 40-60%Εύθρυπτα πετρώματα Λιβάδια και εδάφη καλλιεργούμενα, υποβαθμισμένα | E53: 11.36
A54: 60-90% | B54: Εύθρυπτα πετρώματα | C54: Μικτές δασοσυστάδες και πυκνοί θαμνώνες ή δασοσυστάδες αραιές με υπόροφο | D54: 60-90%Εύθρυπτα πετρώματα Μικτές δασοσυστάδες και πυκνοί θαμνώνες ή δασοσυστάδες αραιές με υπόροφο | E54: 33.51
A55: 60-90% | B55: Εύθρυπτα πετρώματα | C55: Δασοσυστάδες κωνοφόρων με υπόροφο ασθενή ή θαμνώνες όχι σύμπυκνοι | D55: 60-90%Εύθρυπτα πετρώματα Δασοσυστάδες κωνοφόρων με υπόροφο ασθενή ή θαμνώνες όχι σύμπυκνοι | E55: 31.13
A56: 60-90% | B56: Εύθρυπτα πετρώματα | C56: Δασοσυστάδες και θαμνώνες υποβαθμισμένοι, λιβάδια | D56: 60-90%Εύθρυπτα πετρώματα Δασοσυστάδες και θαμνώνες υποβαθμισμένοι, λιβάδια | E56: 25.92
A57: 60-90% | B57: Εύθρυπτα πετρώματα | C57: Λιβάδια και εδάφη καλλιεργούμενα, υποβαθμισμένα | D57: 60-90%Εύθρυπτα πετρώματα Λιβάδια και εδάφη καλλιεργούμενα, υποβαθμισμένα | E57: 13.89
A58: >90% | B58: Εύθρυπτα πετρώματα | C58: Μικτές δασοσυστάδες και πυκνοί θαμνώνες ή δασοσυστάδες αραιές με υπόροφο | D58: >90%Εύθρυπτα πετρώματα Μικτές δασοσυστάδες και πυκνοί θαμνώνες ή δασοσυστάδες αραιές με υπόροφο | E58: 38.96
A59: >90% | B59: Εύθρυπτα πετρώματα | C59: Δασοσυστάδες κωνοφόρων με υπόροφο ασθενή ή θαμνώνες όχι σύμπυκνοι | D59: >90%Εύθρυπτα πετρώματα Δασοσυστάδες κωνοφόρων με υπόροφο ασθενή ή θαμνώνες όχι σύμπυκνοι | E59: 36.2
A60: >90% | B60: Εύθρυπτα πετρώματα | C60: Δασοσυστάδες και θαμνώνες υποβαθμισμένοι, λιβάδια | D60: >90%Εύθρυπτα πετρώματα Δασοσυστάδες και θαμνώνες υποβαθμισμένοι, λιβάδια | E60: 30.14
A61: >90% | B61: Εύθρυπτα πετρώματα | C61: Λιβάδια και εδάφη καλλιεργούμενα, υποβαθμισμένα | D61: >90%Εύθρυπτα πετρώματα Λιβάδια και εδάφη καλλιεργούμενα, υποβαθμισμένα | E61: 16.15
A62: 0-25% | B62: Αποθέσεις, μορένες, άργιλοι, ψαμμόλιθοι και άλλα ανθεκτικά πετρώματα | C62: Μικτές δασοσυστάδες και πυκνοί θαμνώνες ή δασοσυστάδες αραιές με υπόροφο | D62: 0-25%Αποθέσεις, μορένες, άργιλοι, ψαμμόλιθοι και άλλα ανθεκτικά πετρώματαΜικτές δασοσυστάδες και πυκνοί θαμνώνες ή δασοσυστάδες αραιές με υπόροφο | E62: 24.08
A63: 0-25% | B63: Αποθέσεις, μορένες, άργιλοι, ψαμμόλιθοι και άλλα ανθεκτικά πετρώματα | C63: Δασοσυστάδες κωνοφόρων με υπόροφο ασθενή ή θαμνώνες όχι σύμπυκνοι | D63: 0-25%Αποθέσεις, μορένες, άργιλοι, ψαμμόλιθοι και άλλα ανθεκτικά πετρώματαΔασοσυστάδες κωνοφόρων με υπόροφο ασθενή ή θαμνώνες όχι σύμπυκνοι | E63: 22.37
A64: 0-25% | B64: Αποθέσεις, μορένες, άργιλοι, ψαμμόλιθοι και άλλα ανθεκτικά πετρώματα | C64: Δασοσυστάδες και θαμνώνες υποβαθμισμένοι, λιβάδια | D64: 0-25%Αποθέσεις, μορένες, άργιλοι, ψαμμόλιθοι και άλλα ανθεκτικά πετρώματαΔασοσυστάδες και θαμνώνες υποβαθμισμένοι, λιβάδια | E64: 18.62
A65: 0-25% | B65: Αποθέσεις, μορένες, άργιλοι, ψαμμόλιθοι και άλλα ανθεκτικά πετρώματα | C65: Λιβάδια και εδάφη καλλιεργούμενα, υποβαθμισμένα | D65: 0-25%Αποθέσεις, μορένες, άργιλοι, ψαμμόλιθοι και άλλα ανθεκτικά πετρώματαΛιβάδια και εδάφη καλλιεργούμενα, υποβαθμισμένα | E65: 9.98
A66: 25-40% | B66: Αποθέσεις, μορένες, άργιλοι, ψαμμόλιθοι και άλλα ανθεκτικά πετρώματα | C66: Μικτές δασοσυστάδες και πυκνοί θαμνώνες ή δασοσυστάδες αραιές με υπόροφο | D66: 25-40%Αποθέσεις, μορένες, άργιλοι, ψαμμόλιθοι και άλλα ανθεκτικά πετρώματαΜικτές δασοσυστάδες και πυκνοί θαμνώνες ή δασοσυστάδες αραιές με υπόροφο | E66: 35.17
A67: 25-40% | B67: Αποθέσεις, μορένες, άργιλοι, ψαμμόλιθοι και άλλα ανθεκτικά πετρώματα | C67: Δασοσυστάδες κωνοφόρων με υπόροφο ασθενή ή θαμνώνες όχι σύμπυκνοι | D67: =A67&B67&C67 -> 25-40%Αποθέσεις, μορένες, άργιλοι, ψαμμόλιθοι και άλλα ανθεκτικά πετρώματαΔασοσυστάδες κωνοφόρων με υπόροφο ασθενή ή θαμνώνες όχι σύμπυκνοι | E67: 32.67
A68: 25-40% | B68: Αποθέσεις, μορένες, άργιλοι, ψαμμόλιθοι και άλλα ανθεκτικά πετρώματα | C68: Δασοσυστάδες και θαμνώνες υποβαθμισμένοι, λιβάδια | D68: 25-40%Αποθέσεις, μορένες, άργιλοι, ψαμμόλιθοι και άλλα ανθεκτικά πετρώματαΔασοσυστάδες και θαμνώνες υποβαθμισμένοι, λιβάδια | E68: 27.2
A69: 25-40% | B69: Αποθέσεις, μορένες, άργιλοι, ψαμμόλιθοι και άλλα ανθεκτικά πετρώματα | C69: Λιβάδια και εδάφη καλλιεργούμενα, υποβαθμισμένα | D69: 25-40%Αποθέσεις, μορένες, άργιλοι, ψαμμόλιθοι και άλλα ανθεκτικά πετρώματαΛιβάδια και εδάφη καλλιεργούμενα, υποβαθμισμένα | E69: 14.58
A70: 40-60% | B70: Αποθέσεις, μορένες, άργιλοι, ψαμμόλιθοι και άλλα ανθεκτικά πετρώματα | C70: Μικτές δασοσυστάδες και πυκνοί θαμνώνες ή δασοσυστάδες αραιές με υπόροφο | D70: 40-60%Αποθέσεις, μορένες, άργιλοι, ψαμμόλιθοι και άλλα ανθεκτικά πετρώματαΜικτές δασοσυστάδες και πυκνοί θαμνώνες ή δασοσυστάδες αραιές με υπόροφο | E70: 42.87
A71: 40-60% | B71: Αποθέσεις, μορένες, άργιλοι, ψαμμόλιθοι και άλλα ανθεκτικά πετρώματα | C71: Δασοσυστάδες κωνοφόρων με υπόροφο ασθενή ή θαμνώνες όχι σύμπυκνοι | D71: 40-60%Αποθέσεις, μορένες, άργιλοι, ψαμμόλιθοι και άλλα ανθεκτικά πετρώματαΔασοσυστάδες κωνοφόρων με υπόροφο ασθενή ή θαμνώνες όχι σύμπυκνοι | E71: 39.83
A72: 40-60% | B72: Αποθέσεις, μορένες, άργιλοι, ψαμμόλιθοι και άλλα ανθεκτικά πετρώματα | C72: Δασοσυστάδες και θαμνώνες υποβαθμισμένοι, λιβάδια | D72: 40-60%Αποθέσεις, μορένες, άργιλοι, ψαμμόλιθοι και άλλα ανθεκτικά πετρώματαΔασοσυστάδες και θαμνώνες υποβαθμισμένοι, λιβάδια | E72: 33.16
A73: 40-60% | B73: Αποθέσεις, μορένες, άργιλοι, ψαμμόλιθοι και άλλα ανθεκτικά πετρώματα | C73: Λιβάδια και εδάφη καλλιεργούμενα, υποβαθμισμένα | D73: 40-60%Αποθέσεις, μορένες, άργιλοι, ψαμμόλιθοι και άλλα ανθεκτικά πετρώματαΛιβάδια και εδάφη καλλιεργούμενα, υποβαθμισμένα | E73: 17.78
A74: 60-90% | B74: Αποθέσεις, μορένες, άργιλοι, ψαμμόλιθοι και άλλα ανθεκτικά πετρώματα | C74: Μικτές δασοσυστάδες και πυκνοί θαμνώνες ή δασοσυστάδες αραιές με υπόροφο | D74: 60-90%Αποθέσεις, μορένες, άργιλοι, ψαμμόλιθοι και άλλα ανθεκτικά πετρώματαΜικτές δασοσυστάδες και πυκνοί θαμνώνες ή δασοσυστάδες αραιές με υπόροφο | E74: 52.43
A75: 60-90% | B75: Αποθέσεις, μορένες, άργιλοι, ψαμμόλιθοι και άλλα ανθεκτικά πετρώματα | C75: Δασοσυστάδες κωνοφόρων με υπόροφο ασθενή ή θαμνώνες όχι σύμπυκνοι | D75: 60-90%Αποθέσεις, μορένες, άργιλοι, ψαμμόλιθοι και άλλα ανθεκτικά πετρώματαΔασοσυστάδες κωνοφόρων με υπόροφο ασθενή ή θαμνώνες όχι σύμπυκνοι | E75: 48.71
A76: 60-90% | B76: Αποθέσεις, μορένες, άργιλοι, ψαμμόλιθοι και άλλα ανθεκτικά πετρώματα | C76: Δασοσυστάδες και θαμνώνες υποβαθμισμένοι, λιβάδια | D76: 60-90%Αποθέσεις, μορένες, άργιλοι, ψαμμόλιθοι και άλλα ανθεκτικά πετρώματαΔασοσυστάδες και θαμνώνες υποβαθμισμένοι, λιβάδια | E76: 40.55
A77: 60-90% | B77: Αποθέσεις, μορένες, άργιλοι, ψαμμόλιθοι και άλλα ανθεκτικά πετρώματα | C77: Λιβάδια και εδάφη καλλιεργούμενα, υποβαθμισμένα | D77: 60-90%Αποθέσεις, μορένες, άργιλοι, ψαμμόλιθοι και άλλα ανθεκτικά πετρώματαΛιβάδια και εδάφη καλλιεργούμενα, υποβαθμισμένα | E77: 21.74
A78: >90% | B78: Αποθέσεις, μορένες, άργιλοι, ψαμμόλιθοι και άλλα ανθεκτικά πετρώματα | C78: Μικτές δασοσυστάδες και πυκνοί θαμνώνες ή δασοσυστάδες αραιές με υπόροφο | D78: >90%Αποθέσεις, μορένες, άργιλοι, ψαμμόλιθοι και άλλα ανθεκτικά πετρώματαΜικτές δασοσυστάδες και πυκνοί θαμνώνες ή δασοσυστάδες αραιές με υπόροφο | E78: 60.97
A79: >90% | B79: Αποθέσεις, μορένες, άργιλοι, ψαμμόλιθοι και άλλα ανθεκτικά πετρώματα | C79: Δασοσυστάδες κωνοφόρων με υπόροφο ασθενή ή θαμνώνες όχι σύμπυκνοι | D79: >90%Αποθέσεις, μορένες, άργιλοι, ψαμμόλιθοι και άλλα ανθεκτικά πετρώματαΔασοσυστάδες κωνοφόρων με υπόροφο ασθενή ή θαμνώνες όχι σύμπυκνοι | E79: 56.64
A80: >90% | B80: Αποθέσεις, μορένες, άργιλοι, ψαμμόλιθοι και άλλα ανθεκτικά πετρώματα | C80: Δασοσυστάδες και θαμνώνες υποβαθμισμένοι, λιβάδια | D80: >90%Αποθέσεις, μορένες, άργιλοι, ψαμμόλιθοι και άλλα ανθεκτικά πετρώματαΔασοσυστάδες και θαμνώνες υποβαθμισμένοι, λιβάδια | E80: 47.16
A81: >90% | B81: Αποθέσεις, μορένες, άργιλοι, ψαμμόλιθοι και άλλα ανθεκτικά πετρώματα | C81: Λιβάδια και εδάφη καλλιεργούμενα, υποβαθμισμένα | D81: >90%Αποθέσεις, μορένες, άργιλοι, ψαμμόλιθοι και άλλα ανθεκτικά πετρώματαΛιβάδια και εδάφη καλλιεργούμενα, υποβαθμισμένα | E81: 25.28
A82: 0-25% | B82: Πολύ ευαίσθητα στη διάβρωση πετρώματα και εδάφη | C82: Μικτές δασοσυστάδες και πυκνοί θαμνώνες ή δασοσυστάδες αραιές με υπόροφο | D82: 0-25%Πολύ ευαίσθητα στη διάβρωση πετρώματα και εδάφη Μικτές δασοσυστάδες και πυκνοί θαμνώνες ή δασοσυστάδες αραιές με υπόροφο | E82: 32.67
A83: 0-25% | B83: Πολύ ευαίσθητα στη διάβρωση πετρώματα και εδάφη | C83: Δασοσυστάδες κωνοφόρων με υπόροφο ασθενή ή θαμνώνες όχι σύμπυκνοι | D83: 0-25%Πολύ ευαίσθητα στη διάβρωση πετρώματα και εδάφη Δασοσυστάδες κωνοφόρων με υπόροφο ασθενή ή θαμνώνες όχι σύμπυκνοι | E83: 30.35
A84: 0-25% | B84: Πολύ ευαίσθητα στη διάβρωση πετρώματα και εδάφη | C84: Δασοσυστάδες και θαμνώνες υποβαθμισμένοι, λιβάδια | D84: 0-25%Πολύ ευαίσθητα στη διάβρωση πετρώματα και εδάφη Δασοσυστάδες και θαμνώνες υποβαθμισμένοι, λιβάδια | E84: 25.27
A85: 0-25% | B85: Πολύ ευαίσθητα στη διάβρωση πετρώματα και εδάφη | C85: Λιβάδια και εδάφη καλλιεργούμενα, υποβαθμισμένα | D85: 0-25%Πολύ ευαίσθητα στη διάβρωση πετρώματα και εδάφη Λιβάδια και εδάφη καλλιεργούμενα, υποβαθμισμένα | E85: 13.55
A86: 25-40% | B86: Πολύ ευαίσθητα στη διάβρωση πετρώματα και εδάφη | C86: Μικτές δασοσυστάδες και πυκνοί θαμνώνες ή δασοσυστάδες αραιές με υπόροφο | D86: 25-40%Πολύ ευαίσθητα στη διάβρωση πετρώματα και εδάφη Μικτές δασοσυστάδες και πυκνοί θαμνώνες ή δασοσυστάδες αραιές με υπόροφο | E86: 47.73
A87: 25-40% | B87: Πολύ ευαίσθητα στη διάβρωση πετρώματα και εδάφη | C87: Δασοσυστάδες κωνοφόρων με υπόροφο ασθενή ή θαμνώνες όχι σύμπυκνοι | D87: 25-40%Πολύ ευαίσθητα στη διάβρωση πετρώματα και εδάφη Δασοσυστάδες κωνοφόρων με υπόροφο ασθενή ή θαμνώνες όχι σύμπυκνοι | E87: 44.34
A88: 25-40% | B88: Πολύ ευαίσθητα στη διάβρωση πετρώματα και εδάφη | C88: Δασοσυστάδες και θαμνώνες υποβαθμισμένοι, λιβάδια | D88: 25-40%Πολύ ευαίσθητα στη διάβρωση πετρώματα και εδάφη Δασοσυστάδες και θαμνώνες υποβαθμισμένοι, λιβάδια | E88: 36.92
A89: 25-40% | B89: Πολύ ευαίσθητα στη διάβρωση πετρώματα και εδάφη | C89: Λιβάδια και εδάφη καλλιεργούμενα, υποβαθμισμένα | D89: 25-40%Πολύ ευαίσθητα στη διάβρωση πετρώματα και εδάφη Λιβάδια και εδάφη καλλιεργούμενα, υποβαθμισμένα | E89: 19.79
A90: 40-60% | B90: Πολύ ευαίσθητα στη διάβρωση πετρώματα και εδάφη | C90: Μικτές δασοσυστάδες και πυκνοί θαμνώνες ή δασοσυστάδες αραιές με υπόροφο | D90: 40-60%Πολύ ευαίσθητα στη διάβρωση πετρώματα και εδάφη Μικτές δασοσυστάδες και πυκνοί θαμνώνες ή δασοσυστάδες αραιές με υπόροφο | E90: 58.19
A91: 40-60% | B91: Πολύ ευαίσθητα στη διάβρωση πετρώματα και εδάφη | C91: Δασοσυστάδες κωνοφόρων με υπόροφο ασθενή ή θαμνώνες όχι σύμπυκνοι | D91: 40-60%Πολύ ευαίσθητα στη διάβρωση πετρώματα και εδάφη Δασοσυστάδες κωνοφόρων με υπόροφο ασθενή ή θαμνώνες όχι σύμπυκνοι | E91: 54.05
A92: 40-60% | B92: Πολύ ευαίσθητα στη διάβρωση πετρώματα και εδάφη | C92: Δασοσυστάδες και θαμνώνες υποβαθμισμένοι, λιβάδια | D92: 40-60%Πολύ ευαίσθητα στη διάβρωση πετρώματα και εδάφη Δασοσυστάδες και θαμνώνες υποβαθμισμένοι, λιβάδια | E92: 45.01
A93: 40-60% | B93: Πολύ ευαίσθητα στη διάβρωση πετρώματα και εδάφη | C93: Λιβάδια και εδάφη καλλιεργούμενα, υποβαθμισμένα | D93: 40-60%Πολύ ευαίσθητα στη διάβρωση πετρώματα και εδάφη Λιβάδια και εδάφη καλλιεργούμενα, υποβαθμισμένα | E93: 24.12
A94: 60-90% | B94: Πολύ ευαίσθητα στη διάβρωση πετρώματα και εδάφη | C94: Μικτές δασοσυστάδες και πυκνοί θαμνώνες ή δασοσυστάδες αραιές με υπόροφο | D94: 60-90%Πολύ ευαίσθητα στη διάβρωση πετρώματα και εδάφη Μικτές δασοσυστάδες και πυκνοί θαμνώνες ή δασοσυστάδες αραιές με υπόροφο | E94: 71.15
A95: 60-90% | B95: Πολύ ευαίσθητα στη διάβρωση πετρώματα και εδάφη | C95: Δασοσυστάδες κωνοφόρων με υπόροφο ασθενή ή θαμνώνες όχι σύμπυκνοι | D95: 60-90%Πολύ ευαίσθητα στη διάβρωση πετρώματα και εδάφη Δασοσυστάδες κωνοφόρων με υπόροφο ασθενή ή θαμνώνες όχι σύμπυκνοι | E95: 66.1
A96: 60-90% | B96: Πολύ ευαίσθητα στη διάβρωση πετρώματα και εδάφη | C96: Δασοσυστάδες και θαμνώνες υποβαθμισμένοι, λιβάδια | D96: 60-90%Πολύ ευαίσθητα στη διάβρωση πετρώματα και εδάφη Δασοσυστάδες και θαμνώνες υποβαθμισμένοι, λιβάδια | E96: 55.04
A97: 60-90% | B97: Πολύ ευαίσθητα στη διάβρωση πετρώματα και εδάφη | C97: Λιβάδια και εδάφη καλλιεργούμενα, υποβαθμισμένα | D97: 60-90%Πολύ ευαίσθητα στη διάβρωση πετρώματα και εδάφη Λιβάδια και εδάφη καλλιεργούμενα, υποβαθμισμένα | E97: 29.5
A98: >90% | B98: Πολύ ευαίσθητα στη διάβρωση πετρώματα και εδάφη | C98: Μικτές δασοσυστάδες και πυκνοί θαμνώνες ή δασοσυστάδες αραιές με υπόροφο | D98: >90%Πολύ ευαίσθητα στη διάβρωση πετρώματα και εδάφη Μικτές δασοσυστάδες και πυκνοί θαμνώνες ή δασοσυστάδες αραιές με υπόροφο | E98: 82.74
A99: >90% | B99: Πολύ ευαίσθητα στη διάβρωση πετρώματα και εδάφη | C99: Δασοσυστάδες κωνοφόρων με υπόροφο ασθενή ή θαμνώνες όχι σύμπυκνοι | D99: >90%Πολύ ευαίσθητα στη διάβρωση πετρώματα και εδάφη Δασοσυστάδες κωνοφόρων με υπόροφο ασθενή ή θαμνώνες όχι σύμπυκνοι | E99: 76.87
A100: >90% | B100: Πολύ ευαίσθητα στη διάβρωση πετρώματα και εδάφη | C100: Δασοσυστάδες και θαμνώνες υποβαθμισμένοι, λιβάδια | D100: >90%Πολύ ευαίσθητα στη διάβρωση πετρώματα και εδάφη Δασοσυστάδες και θαμνώνες υποβαθμισμένοι, λιβάδια | E100: 64
A101: >90% | B101: Πολύ ευαίσθητα στη διάβρωση πετρώματα και εδάφη | C101: Λιβάδια και εδάφη καλλιεργούμενα, υποβαθμισμένα | D101: >90%Πολύ ευαίσθητα στη διάβρωση πετρώματα και εδάφη Λιβάδια και εδάφη καλλιεργούμενα, υποβαθμισμένα | E101: 34.31

Sheet CS DATA (hidden)
A1: Συντελεστές BEF | B1: t/m3 | D1: Δασικά είδη | E1: MAI-Vp | F1: R | G1: MACI | H1: GINOMENO
A2: A (Δάση σφενδάμου Υγρόφιλα παρόχθια δάση Υψηλά δάση δρυός σε χαμηλά υψόμετρα Υψηλά δάση οξυάς ή σημύδας) | B2: 0.8 | D2: Ελάτη | E2: ='2.ΒΑΣΙΚΕΣ ΤΙΜΕΣ'!M64 -> 5.05 | F2: ='2.ΒΑΣΙΚΕΣ ΤΙΜΕΣ'!L64 -> 0.46 | G2: 0.5 | H2: =E2*(1+F2)*G2 -> 3.6865
A3: B (Υψηλά δάση δρυός (Q. petreae, Q.pubescens, Q.cerris) Αειθαλή υψηλά δάση δρυός) | B3: 0.95 | D3: Ερυθρελάτη | E3: ='2.ΒΑΣΙΚΕΣ ΤΙΜΕΣ'!M65 -> 2.85 | F3: =F2 -> 0.46 | G3: =G2 -> 0.5 | H3: =E3*(1+F3)*G3 -> 2.0805
A4: C (Δάση ερυθρελάτης ή ελάτης Μεικτά δάση ελάτης και ερυθρελάτης Δάση δασικής ή μαύρης πεύκης) | B4: 0.6 | D4: Πεύκη Χαλέπιος ή Τραχεία | E4: ='2.ΒΑΣΙΚΕΣ ΤΙΜΕΣ'!M66 -> 5.57 | F4: =F3 -> 0.46 | G4: =G3 -> 0.5 | H4: 4.0661
A5: D (Λοφώδη και επίπεδα δάση δασικής πεύκης Δάση τραχείας και λευκόδερμου πεύκης Λοφώδη δάση μαύρης πεύκης Μεσογειακά δάση πεύκης Άλλα δάση κωνοφόρων) | B5: 0.7 | D5: Πεύκη λοιπά | E5: =E4 -> 5.57 | F5: =F4 -> 0.46 | G5: 0.5 | H5: 4.0661
A6: E (Πρεμνοφυή δάση οξυάς ή καστανιάς ή γαύρου) | B6: 0.8 | D6: Οξυά | E6: ='2.ΒΑΣΙΚΕΣ ΤΙΜΕΣ'!M67 -> 5.44 | F6: ='2.ΒΑΣΙΚΕΣ ΤΙΜΕΣ'!L67 -> 0.43 | G6: 0.5 | H6: 3.8896
A7: F (Πρεμνοφυή δάση δρυός (Q.petreae, Q. pubescens, Q. aegilops, Q. frainetto, Q. trojana) Πρεμνοφυή δάση οστριάς Πρεμνοφυή αειθαλή δάση δρυός) | B7: 0.9 | D7: Δρυς | E7: ='2.ΒΑΣΙΚΕΣ ΤΙΜΕΣ'!M68 -> 2.42 | F7: =F6 -> 0.43 | G7: 0.5 | H7: 1.7303
A8: G (Μεσογειακά δάση αειφύλλων πλατυφύλλων) | B8: 1 | D8: Λοιπά πλατύφυλλα | E8: ='2.ΒΑΣΙΚΕΣ ΤΙΜΕΣ'!M69 -> 1.63 | F8: =F7 -> 0.43 | G8: 0.5 | H8: 1.16545
A9: H (Δάση πλατύφυλλων με μέσο ύψος <3,5 m) | B9: 0.9 | D9: Αείφυλλα πλατύφυλλα | E9: ='2.ΒΑΣΙΚΕΣ ΤΙΜΕΣ'!M70 -> 0.1 | F9: ='2.ΒΑΣΙΚΕΣ ΤΙΜΕΣ'!L70 -> 2.83 | G9: 0.5 | H9: 0.1915
A10: I (Δάση κωνοφόρων με μέσο ύψος <3,5 m) | B10: 0.6 | D10: Φρύγανα | E10: 0.48 | F10: ='2.ΒΑΣΙΚΕΣ ΤΙΜΕΣ'!L71 -> 1.48 | G10: 0.4 | H10: 0.47616
A11: Άλλο | B11: 1 | D11: Χορτολίβαδα>800 m | E11: 1 | F11: 1 | G11: 0.4 | H11: =E11*G11 -> 0.4
A12: ΔΕΝ ΑΠΑΙΤΕΙΤΑΙ | B12: 1 | D12: Χορτολίβαδα<800 m | E12: 1 | F12: 1 | G12: 0.1 | H12: =E12*G12 -> 0.1
D13: Άγονη / βραχώδης έκταση | E13: 0 | F13: 0 | G13: 0 | H13: 0

Sheet 5.ΥΠΟΛΟΓΙΣΜΟΙ (hidden)
A1: 5. ΒΟΗΘΗΤΙΚΟΙ ΥΠΟΛΟΓΙΣΜΟΙ ΤΙΜΩΝ
A3: Α) ΕΠΙΛΟΓΗ ΤΙΜΗΣ S | H3: Β) ΕΚΤΙΜΗΣΗ ΑΞΙΑΣ ΑΠΌ ΔΕΣΜΕΥΣΗ ΑΝΘΡΑΚΑ
A4: Σκληρά πετρώματα, ανθεκτικά στη διάβρωση | I4: ha | J4: MAI-Vv | K4: BEF | L4: R | M4: Vb
A5: Κλίση (%) | B5: Α | C5: Β | D5: Γ | E5: Δ | F5: Ε | H5: Ελάτη | I5: =#REF! ->  | J5: ='2.ΒΑΣΙΚΕΣ ΤΙΜΕΣ'!D6-'2.ΒΑΣΙΚΕΣ ΤΙΜΕΣ'!K64 -> 5.05 | K5: ='2.ΒΑΣΙΚΕΣ ΤΙΜΕΣ'!B66 -> 0.6 | L5: 0.46 | M5: =I5*J5*K5*0.5*'2.ΒΑΣΙΚΕΣ ΤΙΜΕΣ'!D$70 -> 
A6: 0-25% | B6: 3.16 | C6: 2.93 | D6: 2.44 | E6: 1.31 | F6: 0 | H6: Ερυθρελάτη | I6: =#REF! ->  | J6: ='2.ΒΑΣΙΚΕΣ ΤΙΜΕΣ'!D7-'2.ΒΑΣΙΚΕΣ ΤΙΜΕΣ'!K65 -> 2.85 | K6: =K5 -> 0.6 | L6: 0.46 | M6: =I6*J6*K6*0.5*'2.ΒΑΣΙΚΕΣ ΤΙΜΕΣ'!D$70 -> 
A7: 25-40% | B7: 4.61 | C7: 4.28 | D7: 3.57 | E7: 1.91 | F7: 0 | H7: Πεύκη | I7: =#REF! ->  | J7: ='2.ΒΑΣΙΚΕΣ ΤΙΜΕΣ'!D8-'2.ΒΑΣΙΚΕΣ ΤΙΜΕΣ'!K66 -> 5.57 | K7: =('2.ΒΑΣΙΚΕΣ ΤΙΜΕΣ'!B66+'2.ΒΑΣΙΚΕΣ ΤΙΜΕΣ'!B67)/2 -> 0.65 | L7: 0.46 | M7: =I7*J7*K7*0.5*'2.ΒΑΣΙΚΕΣ ΤΙΜΕΣ'!D$70 -> 
A8: 40-60% | B8: 5.62 | C8: 5.22 | D8: 4.35 | E8: 2.33 | F8: 0 | H8: Οξυά | I8: =#REF! ->  | J8: ='2.ΒΑΣΙΚΕΣ ΤΙΜΕΣ'!D9-'2.ΒΑΣΙΚΕΣ ΤΙΜΕΣ'!K67 -> 5.44 | K8: ='2.ΒΑΣΙΚΕΣ ΤΙΜΕΣ'!B64 -> 0.8 | L8: 0.43 | M8: =I8*J8*K8*0.5*'2.ΒΑΣΙΚΕΣ ΤΙΜΕΣ'!D$70 -> 
A9: 60-90% | B9: 6.87 | C9: 6.39 | D9: 5.32 | E9: 2.85 | F9: 0 | H9: Δρυς | I9: =#REF! ->  | J9: ='2.ΒΑΣΙΚΕΣ ΤΙΜΕΣ'!D10-'2.ΒΑΣΙΚΕΣ ΤΙΜΕΣ'!K68 -> 2.42 | K9: 0.9 | L9: 0.43 | M9: =I9*J9*K9*0.5*'2.ΒΑΣΙΚΕΣ ΤΙΜΕΣ'!D$70 -> 
A10: >90% | B10: 7.99 | C10: 7.43 | D10: 6.18 | E10: 3.31 | F10: 0 | H10: Λοιπά πλατύφυλλα | I10: =#REF! ->  | J10: ='2.ΒΑΣΙΚΕΣ ΤΙΜΕΣ'!D11-'2.ΒΑΣΙΚΕΣ ΤΙΜΕΣ'!K69 -> 1.63 | K10: 0.9 | L10: 0.43 | M10: =I10*J10*K10*0.5*'2.ΒΑΣΙΚΕΣ ΤΙΜΕΣ'!D$70 -> 
A11: Πετρώματα μετρίως ανθεκτικά στη διάβρωση | H11: Αείφυλλα πλατύφυλλα | I11: =#REF! ->  | J11: ='2.ΒΑΣΙΚΕΣ ΤΙΜΕΣ'!D12-'2.ΒΑΣΙΚΕΣ ΤΙΜΕΣ'!K70 -> 0.1 | K11: 1 | L11: 2.83 | M11: =I11*J11*K11*0.5*'2.ΒΑΣΙΚΕΣ ΤΙΜΕΣ'!D$70 -> 
A12: Κλίση (%) | B12: Α | C12: Β | D12: Γ | E12: Δ | F12: Ε | H12: Φρύγανα | I12: =#REF! ->  | J12: 0.48 | K12: 0.4 | L12: 1.48 | M12: =I12*J12*(1+L12)*0.4*'2.ΒΑΣΙΚΕΣ ΤΙΜΕΣ'!D70 -> 
A13: 0-25% | B13: 8.93 | C13: 8.29 | D13: 6.91 | E13: 3.7 | F13: 0 | H13: Χορτολίβαδα>800 m | I13: =#REF! ->  | K13: 0.4 | M13: =I13*K13*'2.ΒΑΣΙΚΕΣ ΤΙΜΕΣ'!D$70 -> 
A14: 25-40% | B14: 13.04 | C14: 12.11 | D14: 10.09 | E14: 5.41 | F14: 0 | H14: Χορτολίβαδα<800 m | I14: =#REF! ->  | K14: 0.1 | M14: =I14*K14*'2.ΒΑΣΙΚΕΣ ΤΙΜΕΣ'!D$70 -> 
A15: 40-60% | B15: 15.9 | C15: 14.77 | D15: 12.3 | E15: 6.59 | F15: 0 | M15: =SUM(M5:M14) -> 
A16: 60-90% | B16: 19.44 | C16: 18.06 | D16: 15.04 | E16: 8.06 | F16: 0
A17: >90% | B17: 22.61 | C17: 21 | D17: 17.49 | E17: 9.37 | F17: 0
A18: Εύθρυπτα πετρώματα
A19: Κλίση (%) | B19: Α | C19: Β | D19: Γ | E19: Δ | F19: Ε
A20: 0-25% | B20: 15.39 | C20: 14.29 | D20: 11.9 | E20: 6.38 | F20: 0
A21: 25-40% | B21: 22.47 | C21: 20.88 | D21: 17.38 | E21: 9.32 | F21: 0
A22: 40-60% | B22: 27.4 | C22: 25.45 | D22: 21.19 | E22: 11.36 | F22: 0
A23: 60-90% | B23: 33.51 | C23: 31.13 | D23: 25.92 | E23: 13.89 | F23: 0
A24: >90% | B24: 38.96 | C24: 36.2 | D24: 30.14 | E24: 16.15 | F24: 0
A25: Αποθέσεις, μορένες, άργιλοι, ψαμμόλιθοι και άλλα ανθεκτικά πετρώματα
A26: Κλίση (%) | B26: Α | C26: Β | D26: Γ | E26: Δ | F26: Ε
A27: 0-25% | B27: 24.08 | C27: 22.37 | D27: 18.62 | E27: 9.98 | F27: 0
A28: 25-40% | B28: 35.17 | C28: 32.67 | D28: 27.2 | E28: 14.58 | F28: 0
A29: 40-60% | B29: 42.87 | C29: 39.83 | D29: 33.16 | E29: 17.78 | F29: 0
A30: 60-90% | B30: 52.43 | C30: 48.71 | D30: 40.55 | E30: 21.74 | F30: 0
A31: >90% | B31: 60.97 | C31: 56.64 | D31: 47.16 | E31: 25.28 | F31: 0
A32: Πολύ ευαίσθητα στη διάβρωση πετρώματα και εδάφη
A33: Κλίση (%) | B33: Α | C33: Β | D33: Γ | E33: Δ | F33: Ε
A34: 0-25% | B34: 32.67 | C34: 30.35 | D34: 25.27 | E34: 13.55 | F34: 0
A35: 25-40% | B35: 47.73 | C35: 44.34 | D35: 36.92 | E35: 19.79 | F35: 0
A36: 40-60% | B36: 58.19 | C36: 54.05 | D36: 45.01 | E36: 24.12 | F36: 0
A37: 60-90% | B37: 71.15 | C37: 66.1 | D37: 55.04 | E37: 29.5 | F37: 0
A38: >90% | B38: 82.74 | C38: 76.87 | D38: 64 | E38: 34.31 | F38: 0
